Directorate,Department,Expenditure Type,Ref.Doc.1,Vendor Name,Expenditure Amount (exc VAT),Payment Date
Delivery Units,Assurance,Audit Fee,1031645401,PRICEWATERHOUSE COOPERS,"5,000.00",01/12/2023
Delivery Units,Assurance,Professional Services,1032295801,One Eighty Advisory Limited,"6,600.00",28/12/2023
Delivery Units,Assurance,Training,1031851202,London Borough of Lambeth,500.00,12/12/2023
Delivery Units,Assurance,Training,1031974502,CIPFA,120.00,15/12/2023
Delivery Units,Assurance,Advertising,1031609502,GOOD IMPRESSIONS (LONDON) LIMITED,90.00,01/12/2023
Delivery Units,Strategy and Resources,Other Establishments - Third P,0080072831,GLA LEVIES,"50,633.80",20/12/2023
Delivery Units,Strategy and Resources,Other Establishments - Third P,0080072830,ENVIRONMENT AGENCY,"90,498.59",20/12/2023
Delivery Units,Strategy and Resources,Other Establishments - Third P,0080072528,LEE VALLEY REGIONAL PARK AUTH.,"32,407.20",12/12/2023
Delivery Units,Strategy and Resources,Other Services,0080072973,North London Waste Authority ,"897,742.00",22/12/2023
Delivery Units,Customer and Place,Professional Services,1031773001,PeopleScout Limited,457.58,07/12/2023
Delivery Units,Customer and Place,Professional Services,1032010701,PeopleScout Limited,"1,052.32",18/12/2023
Delivery Units,Customer and Place,Professional Services,1032085301,WSP UK LIMITED,307.30,20/12/2023
Delivery Units,Customer and Place,Professional Services,1032088901,Capita Property & Infrastructure Ltd,"6,888.60",20/12/2023
Delivery Units,Customer and Place,Professional Services,1032090101,PeopleScout Limited,166.54,20/12/2023
Delivery Units,Customer and Place,Professional Services,1031677602,THE PLANNING INSPECTORATE,"12,968.58",04/12/2023
Delivery Units,Customer and Place,Fees and Charges,0080072127,Ravens Lawn Tennis Club,"8,615.00",01/12/2023
Delivery Units,Childrens Service DSG,Education CFR Funding Advances,0050075082,DANEGROVE PRIMARY SCHOOL,"239,866.99",15/12/2023
Delivery Units,Childrens Service DSG,Other Establishments - Third P,0050074692,INDEPENDENT JEWISH DAY SCHOOL,"29,785.00",04/12/2023
Delivery Units,Customer and Place,Building Repairs & Maintenance,1027180003,Integrated Water Services Ltd,400.00,05/12/2023
Delivery Units,Customer and Place,Building Repairs & Maintenance,1027483802,Integrated Water Services Ltd,400.00,01/12/2023
Delivery Units,Customer and Place,Building Repairs & Maintenance,1027644803,Sureserve Fire & Electrical Ltd,36.00,01/12/2023
Delivery Units,Customer and Place,Building Repairs & Maintenance,1027646703,Sureserve Fire & Electrical Ltd,77.49,01/12/2023
Delivery Units,Customer and Place,Building Repairs & Maintenance,1029312003,Sureserve Fire & Electrical Ltd,36.00,01/12/2023
Delivery Units,Customer and Place,Building Repairs & Maintenance,1029313203,Sureserve Fire & Electrical Ltd,36.00,01/12/2023
Delivery Units,Customer and Place,Building Repairs & Maintenance,1029313603,Sureserve Fire & Electrical Ltd,277.42,01/12/2023
Delivery Units,Customer and Place,Building Repairs & Maintenance,1029314103,Sureserve Fire & Electrical Ltd,51.98,01/12/2023
Delivery Units,Customer and Place,Building Repairs & Maintenance,1029315203,Sureserve Fire & Electrical Ltd,36.00,01/12/2023
Delivery Units,Customer and Place,Building Repairs & Maintenance,1030592702,Integrated Water Services Ltd,"8,472.00",01/12/2023
Delivery Units,Customer and Place,Building Repairs & Maintenance,1031745903,Integrated Water Services Ltd,"6,114.94",27/12/2023
Delivery Units,Customer and Place,Building Repairs & Maintenance,1032042902,Orion Building Engineering Services Ltd,"4,448.75",27/12/2023
Delivery Units,Childrens Family Services,Professional Services,1025764002,Access UK Ltd,"30,980.00",14/12/2023
Delivery Units,Childrens Family Services,Professional Services,1028284602,Access UK Ltd,"9,514.00",14/12/2023
Delivery Units,Childrens Service DSG,Other Services,0050075011,Bright Horizons East Barnet,574.00,14/12/2023
Delivery Units,Childrens Service DSG,Other Services,0050075033,GREENWICH LEISURE LTD,717.00,14/12/2023
Delivery Units,Childrens Service DSG,Other Services,0050075036,PUDDLEDUCKS NURSERIES,"2,390.00",14/12/2023
Delivery Units,Childrens Service DSG,Other Services,0050075010,ST ANDREWS PRE-SCHOOL,478.00,14/12/2023
Delivery Units,Childrens Service DSG,Other Services,0050075012,ST ANDREWS PRE-SCHOOL,574.00,14/12/2023
Delivery Units,Childrens Service DSG,Other Services,0050075013,GOLDERS GREEN DAY NUR( ASQUITH,478.00,14/12/2023
Delivery Units,Childrens Service DSG,Other Services,0050075014,LUBAVITCH OF EDGWARE,382.00,14/12/2023
Delivery Units,Childrens Service DSG,Other Services,0050075016,Little Bicks 2 Nursery,478.00,14/12/2023
Delivery Units,Childrens Service DSG,Other Services,0050075017,ST ANDREWS PRE-SCHOOL,478.00,14/12/2023
Delivery Units,Childrens Service DSG,Other Services,0050075018,SPARKLER'S  NURSERY,478.00,14/12/2023
Delivery Units,Childrens Service DSG,Other Services,0050075019,GOLDERS GREEN DAY NUR( ASQUITH,359.00,14/12/2023
Delivery Units,Childrens Service DSG,Other Services,0050075020,ST PHILLIPS PRE-SCHOOL,478.00,14/12/2023
Delivery Units,Childrens Service DSG,Other Services,0050075021,HENDON DAY NURSERY (ASQUITH),956.00,14/12/2023
Delivery Units,Childrens Service DSG,Other Services,0050075022,FINCHLEY REFORM SYNAGOGUE,359.00,14/12/2023
Delivery Units,Childrens Service DSG,Other Services,0050075023,LITTLE PEBBLES LIMITED,382.00,14/12/2023
Delivery Units,Childrens Service DSG,Other Services,0050075024,Kana Nurseries Ltd,478.00,14/12/2023
Delivery Units,Childrens Service DSG,Other Services,0050075026,SPARKLER'S  NURSERY,478.00,14/12/2023
Delivery Units,Childrens Service DSG,Other Services,0050075027,ST PHILLIPS PRE-SCHOOL,478.00,14/12/2023
Delivery Units,Childrens Service DSG,Other Services,0050075028,Busy Bees Nurseries Ltd,478.00,14/12/2023
Delivery Units,Childrens Service DSG,Other Services,0050075029,JOEL DAY NURSERY,359.00,14/12/2023
Delivery Units,Childrens Service DSG,Other Services,0050075030,JOEL DAY NURSERY,478.00,14/12/2023
Delivery Units,Childrens Service DSG,Other Services,0050075031,GAN ALON PRE SCHOOL,478.00,14/12/2023
Delivery Units,Childrens Service DSG,Other Services,0050075032,GAN KINNERET NURSERY,478.00,14/12/2023
Delivery Units,Childrens Service DSG,Other Services,0050075034,JACK & JILL PLAYGROUP,478.00,14/12/2023
Delivery Units,Childrens Service DSG,Other Services,0050075035,JOEL DAY NURSERY,359.00,14/12/2023
Delivery Units,Childrens Service DSG,Other Services,0050075037,Belmont Farm Nursery School,359.00,14/12/2023
Delivery Units,Childrens Service DSG,Other Services,0050075038,Bright Little Stars Nursery Ba,478.00,14/12/2023
Delivery Units,Childrens Service DSG,Other Services,0050075039,Abracadabra Preschool Nursery,478.00,14/12/2023
Delivery Units,Childrens Service DSG,Other Services,0050075040,ST ANDREWS PRE-SCHOOL,478.00,14/12/2023
Delivery Units,Childrens Service DSG,Other Services,0050075041,MIDDLESEX UNIVERSITY NURSERY,478.00,14/12/2023
Delivery Units,Childrens Service DSG,Other Establishments - Third P,0050075314,PARKFIELD ACADEMY,"1,972.26",15/12/2023
Delivery Units,Childrens Service DSG,Other Establishments - Third P,0050075320,THE HYDE EF ACADEMY,"1,824.69",15/12/2023
Delivery Units,Childrens Service DSG,Other Establishments - Third P,0050075380,BROADFIELDS ACADEMY,"4,205.57",15/12/2023
Delivery Units,Childrens Service DSG,Other Establishments - Third P,0050075445,Summerside Primary Academy,487.60,15/12/2023
Delivery Units,Childrens Service DSG,Other Services,0050075015,Apple Day Nursery,430.00,14/12/2023
Delivery Units,Childrens Service DSG,Education CFR Funding Advances,0020068125,ST MARGARET'S NURSERY SCHOOL,"118,798.20",20/12/2023
Delivery Units,Childrens Service DSG,Education CFR Funding Advances,0020066682,INDEPENDENT JEWISH DAY SCHOOL,"10,530.78",04/12/2023
Delivery Units,Childrens Service DSG,Education CFR Funding Advances,0020066761,INDEPENDENT JEWISH DAY SCHOOL,"11,023.68",04/12/2023
Delivery Units,Childrens Service DSG,Education CFR Funding Advances,0020067136,INDEPENDENT JEWISH DAY SCHOOL,"13,259.48",04/12/2023
Delivery Units,Childrens Service DSG,Education CFR Funding Advances,0020067462,INDEPENDENT JEWISH DAY SCHOOL,"13,259.48",04/12/2023
Delivery Units,Childrens Service DSG,Education CFR Funding Advances,0020067784,INDEPENDENT JEWISH DAY SCHOOL,"13,259.48",04/12/2023
Delivery Units,Childrens Service DSG,Education CFR Funding Advances,0020068075,BEIS SOROH SCHNEIRER,"41,499.96",20/12/2023
Delivery Units,Childrens Service DSG,Education CFR Funding Advances,0020068080,BROADFIELDS ACADEMY,"14,637.78",20/12/2023
Delivery Units,Childrens Service DSG,Education CFR Funding Advances,0020068090,BEIS CHINUCH PRIMARY SCHOOL,"29,657.04",20/12/2023
Delivery Units,Childrens Service DSG,Education CFR Funding Advances,0020068093,Finchley Yochien,"3,600.24",20/12/2023
Delivery Units,Childrens Service DSG,Education CFR Funding Advances,0020068097,HENDON PREPARATORY SCHOOL,"3,835.97",20/12/2023
Delivery Units,Childrens Service DSG,Education CFR Funding Advances,0020068101,INDEPENDENT JEWISH DAY SCHOOL,"7,832.76",20/12/2023
Delivery Units,Childrens Service DSG,Education CFR Funding Advances,0020068103,The Mill Hill Foundation,"4,624.32",20/12/2023
Delivery Units,Childrens Service DSG,Education CFR Funding Advances,0020068109,Millbrook Park Primary School,"13,644.33",20/12/2023
Delivery Units,Childrens Service DSG,Education CFR Funding Advances,0020068111,NANCY REUBEN PRIMARY SCHOOL,"37,727.04",20/12/2023
Delivery Units,Childrens Service DSG,Education CFR Funding Advances,0020068115,PARKFIELD ACADEMY,"16,635.60",20/12/2023
Delivery Units,Childrens Service DSG,Education CFR Funding Advances,0020068116,Peninim Primary School,"26,512.98",20/12/2023
Delivery Units,Childrens Service DSG,Education CFR Funding Advances,0020068120,St Anthony's School for Girls,"25,012.60",20/12/2023
Delivery Units,Childrens Service DSG,Education CFR Funding Advances,0020068126,ST MARTIN'S SCHOOL,"4,077.96",20/12/2023
Delivery Units,Childrens Service DSG,Education CFR Funding Advances,0020068130,Summerside Primary Academy,"7,743.36",20/12/2023
Delivery Units,Childrens Service DSG,Education CFR Funding Advances,0020068132,THE HYDE EF ACADEMY,"33,757.86",20/12/2023
Delivery Units,Childrens Service DSG,Private Contractors - Third Pa,0080072246,PUDDLEDUCKS NURSERIES,840.60,05/12/2023
Delivery Units,Childrens Service DSG,Private Contractors - Third Pa,0080072277,Tinky's Day Nursery,737.30,06/12/2023
Delivery Units,Childrens Service DSG,Private Contractors - Third Pa,0080072279,Perfect Start Montessori,"1,079.33",06/12/2023
Delivery Units,Childrens Service DSG,Private Contractors - Third Pa,0080072282,SPARKLER'S  NURSERY,"1,217.20",06/12/2023
Delivery Units,Childrens Service DSG,Private Contractors - Third Pa,0080072309,New Studio Pre-Schoo,"1,168.84",07/12/2023
Delivery Units,Childrens Service DSG,Private Contractors - Third Pa,0080073061,FINCHLEY REFORM SYNAGOGUE,397.17,28/12/2023
Delivery Units,Childrens Service DSG,Private Contractors - Third Pa,0080072274,Sparkly Childminding,"1,807.20",06/12/2023
Delivery Units,Childrens Family Services,Cleaning and domestic material,1031774101,Cleantec Services Ltd,"1,217.44",07/12/2023
Delivery Units,Childrens Family Services,Other Services,1032140101,LEE SECURITY LONDON LIMITED,77.00,22/12/2023
Delivery Units,Childrens Family Services,Cleaning and domestic material,1032257101,Cleantec Services Ltd,"1,217.44",27/12/2023
Delivery Units,Childrens Family Services,Equipment and Materials Purcha,1031782702,Norse Commercial Services Ltd,64.25,07/12/2023
Delivery Units,Childrens Family Services,Cleaning and domestic material,1031782901,Norse Commercial Services Ltd,704.36,07/12/2023
Delivery Units,Childrens Family Services,Building Repairs & Maintenance,1031815101,S W Bruce & Co Ltd,346.00,08/12/2023
Delivery Units,Childrens Family Services,Other Services,1003344301,ASDAN,199.00,07/12/2023
Delivery Units,Childrens Family Services,Equipment and Materials Purcha,1031644501,Banham Patent Locks Ltd,517.20,04/12/2023
Delivery Units,Childrens Family Services,Cleaning and domestic material,1031781402,Norse Commercial Services Ltd,528.42,07/12/2023
Delivery Units,Childrens Family Services,Equipment and Materials Purcha,1031783101,Norse Commercial Services Ltd,61.58,07/12/2023
Delivery Units,Childrens Family Services,Gas,1031607401,KENT COUNTY COUNCIL (KCS),673.81,04/12/2023
Delivery Units,Childrens Family Services,Contract Cleaning,0080072296,Norse Commercial Services Ltd,876.27,06/12/2023
Delivery Units,Childrens Family Services,Professional Services,1032011501,Cohort Security Solutions,212.00,19/12/2023
Delivery Units,Childrens Family Services,Professional Services,1032013401,New Enterprise Pest,75.00,19/12/2023
Delivery Units,Childrens Family Services,Professional Services,1032196201,Cohort Security Solutions,141.00,22/12/2023
Delivery Units,Childrens Family Services,Subscriptions,1031853202,Libraries Connected,561.71,12/12/2023
Delivery Units,Childrens Family Services,Subscriptions,1031854102,Libraries Connected,180.00,12/12/2023
Delivery Units,Childrens Family Services,Operational Leases - Equipment,1031946501,Canon (UK) limited,-2.37,21/12/2023
Delivery Units,Childrens Family Services,Operational Leases - Equipment,1031946902,Canon (UK) limited,-8.47,21/12/2023
Delivery Units,Childrens Family Services,Operational Leases - Equipment,1031947202,Canon (UK) limited,-5.96,21/12/2023
Delivery Units,Childrens Family Services,Operational Leases - Equipment,1031947501,Canon (UK) limited,-9.10,21/12/2023
Delivery Units,Childrens Family Services,Operational Leases - Equipment,1031947901,Canon (UK) limited,-4.44,21/12/2023
Delivery Units,Childrens Family Services,Operational Leases - Equipment,1031948102,Canon (UK) limited,-2.44,21/12/2023
Delivery Units,Childrens Family Services,Other Services,1031971701,BLUE 9 SECURITY LIMITED,"2,123.10",15/12/2023
Delivery Units,Childrens Family Services,Other Services,1031972501,BLUE 9 SECURITY LIMITED,323.52,15/12/2023
Delivery Units,Childrens Family Services,Other Services,1031972701,BLUE 9 SECURITY LIMITED,"2,143.32",15/12/2023
Delivery Units,Childrens Family Services,Other Services,1031973201,BLUE 9 SECURITY LIMITED,"2,689.26",15/12/2023
Delivery Units,Childrens Family Services,Other Services,1031973401,BLUE 9 SECURITY LIMITED,"2,287.20",15/12/2023
Delivery Units,Childrens Family Services,Other Services,1031973701,BLUE 9 SECURITY LIMITED,101.10,15/12/2023
Delivery Units,Childrens Family Services,Other Services,1031973901,BLUE 9 SECURITY LIMITED,"2,466.84",15/12/2023
Delivery Units,Childrens Family Services,Operational Leases - Equipment,1031975101,Canon (UK) limited,90.85,15/12/2023
Delivery Units,Childrens Family Services,Other Services,1031975201,Enigma CCTV Ltd,"5,124.90",15/12/2023
Delivery Units,Childrens Family Services,Other Services,1031976101,1ST CONTAINERS UK LIMITED,30.00,15/12/2023
Delivery Units,Childrens Family Services,Operational Leases - Equipment,1032133601,Canon (UK) limited,90.85,21/12/2023
Delivery Units,Childrens Family Services,Books-CDs-Audio-Video,0021007534,NewsTeam Group LTD,197.20,07/12/2023
Delivery Units,Childrens Family Services,Books-CDs-Audio-Video,0021007552,ASKEWS & HOLTS LIBRARY SERVICES LTD,226.29,12/12/2023
Delivery Units,Childrens Family Services,Books-CDs-Audio-Video,0021007560,Mill Hill Newsagents Ltd,131.90,12/12/2023
Delivery Units,Childrens Family Services,Books-CDs-Audio-Video,0021007587,ASKEWS & HOLTS LIBRARY SERVICES LTD,24.00,12/12/2023
Delivery Units,Childrens Family Services,Books-CDs-Audio-Video,0021007591,ASKEWS & HOLTS LIBRARY SERVICES LTD,25.34,12/12/2023
Delivery Units,Childrens Family Services,Books-CDs-Audio-Video,0021007614,ASKEWS & HOLTS LIBRARY SERVICES LTD,4.73,12/12/2023
Delivery Units,Childrens Family Services,Books-CDs-Audio-Video,0021007617,ASKEWS & HOLTS LIBRARY SERVICES LTD,5.46,12/12/2023
Delivery Units,Childrens Family Services,Books-CDs-Audio-Video,0021007625,Malhotra News Agent Ltd,291.20,22/12/2023
Delivery Units,Childrens Family Services,Books-CDs-Audio-Video,0021007631,Bolinda Uk Ltd,"6,428.80",27/12/2023
Delivery Units,Childrens Family Services,Books-CDs-Audio-Video,0021007555,D.D. Mini Mart Newsagents & Off-Licence,603.00,12/12/2023
Delivery Units,Childrens Family Services,Books-CDs-Audio-Video,0021007550,CONFAGS,265.30,12/12/2023
Delivery Units,Childrens Family Services,Cleaning and domestic material,1031949702,Norse Commercial Services Ltd,"2,338.11",14/12/2023
Delivery Units,Childrens Family Services,Other Services,1031949801,Norse Commercial Services Ltd,34.83,14/12/2023
Delivery Units,Childrens Family Services,Cleaning and domestic material,1031948901,Norse Commercial Services Ltd,"2,648.54",14/12/2023
Delivery Units,Childrens Family Services,Other Services,1032089301,Norse Commercial Services Ltd,67.33,20/12/2023
Delivery Units,Childrens Family Services,Other Services,1031948501,Norse Commercial Services Ltd,17.00,14/12/2023
Delivery Units,Childrens Family Services,Cleaning and domestic material,1031949401,Norse Commercial Services Ltd,528.42,14/12/2023
Delivery Units,Childrens Family Services,Other Services,1031948701,Norse Commercial Services Ltd,29.58,14/12/2023
Delivery Units,Childrens Family Services,Cleaning and domestic material,1031950001,Norse Commercial Services Ltd,"1,165.84",14/12/2023
Delivery Units,Childrens Family Services,Other Services,1031949201,Norse Commercial Services Ltd,17.00,14/12/2023
Delivery Units,Childrens Family Services,Cleaning and domestic material,1031949501,Norse Commercial Services Ltd,527.87,14/12/2023
Delivery Units,Childrens Family Services,Other Services,1031946301,Norse Commercial Services Ltd,30.42,14/12/2023
Delivery Units,Childrens Family Services,Cleaning and domestic material,1031949601,Norse Commercial Services Ltd,705.28,14/12/2023
Delivery Units,Childrens Family Services,Other Services,1031946701,Norse Commercial Services Ltd,21.25,14/12/2023
Delivery Units,Childrens Family Services,Cleaning and domestic material,1031949001,Norse Commercial Services Ltd,528.42,14/12/2023
Delivery Units,Childrens Family Services,Other Services,1031946401,Norse Commercial Services Ltd,25.92,14/12/2023
Delivery Units,Childrens Family Services,Cleaning and domestic material,1031947001,Norse Commercial Services Ltd,703.90,14/12/2023
Delivery Units,Childrens Family Services,Gas,1032132201,KENT COUNTY COUNCIL (KCS),732.63,21/12/2023
Delivery Units,Childrens Family Services,Books-CDs-Audio-Video,1031854201,ASKEWS & HOLTS LIBRARY SERVICES LTD,152.68,15/12/2023
Delivery Units,Childrens Family Services,Books-CDs-Audio-Video,1031855301,ASKEWS & HOLTS LIBRARY SERVICES LTD,5.28,15/12/2023
Delivery Units,Childrens Family Services,Books-CDs-Audio-Video,1031855501,ASKEWS & HOLTS LIBRARY SERVICES LTD,386.62,15/12/2023
Delivery Units,Childrens Family Services,Books-CDs-Audio-Video,1031878202,ASKEWS & HOLTS LIBRARY SERVICES LTD,127.24,15/12/2023
Delivery Units,Childrens Family Services,Books-CDs-Audio-Video,1031884001,ASKEWS & HOLTS LIBRARY SERVICES LTD,559.92,15/12/2023
Delivery Units,Childrens Family Services,Equipment and Materials Repair,1032300801,COVERGOLD LTD,425.00,28/12/2023
Delivery Units,Assurance,Professional Services,1031881702,Democracy Counts Limited,"3,350.00",12/12/2023
Delivery Units,Assurance,Professional Services,1031882401,Democracy Counts Limited,395.27,12/12/2023
Delivery Units,Assurance,Professional Services,1031882502,Democracy Counts Limited,447.21,12/12/2023
Delivery Units,Assurance,Software Licences & Support,1031882901,Democracy Counts Limited,"24,400.40",12/12/2023
Delivery Units,Assurance,Professional Services,1031883102,Democracy Counts Limited,320.00,12/12/2023
Delivery Units,Assurance,Software Licences & Support,1031883201,Democracy Counts Limited,"2,599.81",12/12/2023
Delivery Units,Assurance,Professional Services,1031916801,Civica Election Services Limit,167.59,13/12/2023
Delivery Units,Assurance,Professional Services,1031917001,Civica Election Services Limit,151.28,13/12/2023
Delivery Units,Assurance,Professional Services,1031917101,Civica Election Services Limit,"13,478.09",13/12/2023
Delivery Units,Assurance,Professional Services,1031917502,Civica Election Services Limit,149.44,13/12/2023
Delivery Units,Assurance,Postage,1032010201,ROYAL MAIL GROUP LIMITED,59.50,19/12/2023
Delivery Units,Assurance,Postage,1032010401,ROYAL MAIL GROUP LIMITED,62.86,19/12/2023
Delivery Units,Assurance,Postage,1032011101,ROYAL MAIL GROUP LIMITED,99.90,18/12/2023
Delivery Units,Assurance,Postage,1032011401,ROYAL MAIL GROUP LIMITED,60.50,18/12/2023
Delivery Units,Assurance,Postage,1032011601,ROYAL MAIL GROUP LIMITED,140.70,18/12/2023
Delivery Units,Assurance,Subscriptions,1031607901,Association of Democratic Services Offic,55.00,04/12/2023
Delivery Units,Assurance,Publications,1032187201,Association of Democratic Services Offic,480.00,22/12/2023
Delivery Units,Assurance,Miscellaneous Expenses,0080072329,TS Broadsword,789.00,07/12/2023
Delivery Units,Assurance,Equipment and Materials Purcha,1031880501,ISS Mediclean,60.00,12/12/2023
Delivery Units,Assurance,Training,1032052701,Mosaic Publicity Ltd,800.00,19/12/2023
Delivery Units,Assurance,Training,1032253201,CENTRE FOR GOVERNANCE AND SCRU,"2,200.00",27/12/2023
Delivery Units,Customer and Place,Equipment and Materials Purcha,1032045401,SSI SCHAEFER LTD,867.00,19/12/2023
Delivery Units,Customer and Place,Equipment and Materials Purcha,1032046502,SSI SCHAEFER LTD,"2,366.40",19/12/2023
Delivery Units,Customer and Place,Equipment and Materials Purcha,1032047201,SSI SCHAEFER LTD,"2,970.00",19/12/2023
Delivery Units,Customer and Place,Equipment and Materials Purcha,1032047302,SSI SCHAEFER LTD,510.40,20/12/2023
Delivery Units,Customer and Place,Equipment and Materials Purcha,1032133901,STORM ENVIRONMENTAL LTD,"7,344.00",21/12/2023
Delivery Units,Customer and Place,Clothing - Protective Clothing,1031808701,SMI INT Group Ltd,"8,266.92",08/12/2023
Delivery Units,Customer and Place,Clothing - Protective Clothing,1032136601,SMI INT Group Ltd,"4,685.43",22/12/2023
Delivery Units,Customer and Place,Advertising,1032292502,GOOD IMPRESSIONS (LONDON) LIMITED,60.00,28/12/2023
Delivery Units,Adults and Health,Other Agencies - Third Party P,1031854002,THE BARNETGROUP LIMITED,306.12,12/12/2023
Delivery Units,Adults and Health,Software Licences & Support,1032052501,Quicksilva Limited,"4,604.32",19/12/2023
Delivery Units,Adults and Health,Ttl IT & Comms,1014930602,Access UK Ltd,"9,067.50",01/12/2023
Delivery Units,Adults and Health,Ttl IT & Comms,1031676501,Access UK Ltd,"9,067.50",04/12/2023
Delivery Units,Adults and Health,Software Licences & Support,1031676701,Access UK Ltd,"1,389.75",04/12/2023
Delivery Units,Adults and Health,Professional Services,1031847502,Favore Didio Ltd,960.00,12/12/2023
Delivery Units,Adults and Health,Consultants Fees,1032050401,PPL (Private Public Ltd),"9,186.08",19/12/2023
Delivery Units,Adults and Health,Consultants Fees,1032052101,PPL (Private Public Ltd),"33,251.89",19/12/2023
Delivery Units,Public Health,Health authorities - Third Par,1032047602,Central & North West London NHS FT,"1,474.40",19/12/2023
Delivery Units,Public Health,Health authorities - Third Par,1032340202,Central & North West London NHS FT,"1,884.05",29/12/2023
Delivery Units,Public Health,Health authorities - Third Par,1032014602,LEEDS CITY COUNCIL,105.00,18/12/2023
Delivery Units,Public Health,Health authorities - Third Par,1032014502,Epsom & St Helier NHS Trust,270.46,18/12/2023
Delivery Units,Public Health,Health authorities - Third Par,1023432701,Lewisham and Greenwich NHS Trust,-176.74,15/12/2023
Delivery Units,Public Health,Health authorities - Third Par,1023996502,Lewisham and Greenwich NHS Trust,7.30,15/12/2023
Delivery Units,Public Health,Health authorities - Third Par,1031580002,CENTRAL LONDONCOMMUNITY HEALTHCARE,"2,742.00",18/12/2023
Delivery Units,Public Health,Health authorities - Third Par,1031851102,Chelsea & Westminster Hospital,"19,707.78",12/12/2023
Delivery Units,Public Health,Health authorities - Third Par,1031883502,Chelsea & Westminster Hospital,"39,866.70",12/12/2023
Delivery Units,Public Health,Health authorities - Third Par,1031884502,Chelsea & Westminster Hospital,215.04,12/12/2023
Delivery Units,Public Health,Health authorities - Third Par,1031885402,Lewisham and Greenwich NHS Trust,746.30,15/12/2023
Delivery Units,Public Health,Health authorities - Third Par,1031919102,Kingston Hospital NHS Foundation Trust,186.75,18/12/2023
Delivery Units,Public Health,Health authorities - Third Par,1032014102,East Sussex Healthcare NHS Trust,103.00,18/12/2023
Delivery Units,Public Health,Health authorities - Third Par,1032048902,Barts Health NHS Trust,"2,691.00",19/12/2023
Delivery Units,Public Health,Health authorities - Third Par,1032049002,Central & North West London NHS FT,117.16,19/12/2023
Delivery Units,Public Health,Health authorities - Third Par,1032049502,Barts Health NHS Trust,"2,691.00",19/12/2023
Delivery Units,Public Health,Health authorities - Third Par,1032049802,Homerton University Hospital,105.32,19/12/2023
Delivery Units,Public Health,Health authorities - Third Par,1032051802,Nottingham University Hospitals Trust,113.18,19/12/2023
Delivery Units,Public Health,Health authorities - Third Par,1032092102,University Hospitals Birmingham,117.00,20/12/2023
Delivery Units,Public Health,Health authorities - Third Par,1032141902,Homerton University Hospital,"2,376.66",21/12/2023
Delivery Units,Public Health,Health authorities - Third Par,1032142802,Royal Devon University Healthcare NHSFT,86.18,21/12/2023
Delivery Units,Public Health,Health authorities - Third Par,1032183602,London North West Healthcare NHS Trust,"6,991.77",22/12/2023
Delivery Units,Public Health,Health authorities - Third Par,1032290302,CENTRAL LONDONCOMMUNITY HEALTHCARE,48.54,28/12/2023
Delivery Units,Public Health,Health authorities - Third Par,1032291402,Sheffield Teaching Hospitals NHS Trust,123.00,28/12/2023
Delivery Units,Public Health,Health authorities - Third Par,1032291802,CENTRAL LONDONCOMMUNITY HEALTHCARE,119.25,28/12/2023
Delivery Units,Public Health,Health authorities - Third Par,1032291902,Sheffield Teaching Hospitals NHS Trust,97.00,28/12/2023
Delivery Units,Public Health,Health authorities - Third Par,1032294902,University Hosp Sussex NHS FT,119.87,28/12/2023
Delivery Units,Public Health,Health authorities - Third Par,1031715001,Change Grow Live Services Ltd,"87,000.00",05/12/2023
Delivery Units,Adults and Health,Professional Services,1030791602,Recruitment Team Nine Limited,885.00,01/12/2023
Delivery Units,Adults and Health,Professional Services,1030793802,Recruitment Team Nine Limited,590.00,01/12/2023
Delivery Units,Adults and Health,Professional Services,1031030802,Recruitment Team Nine Limited,590.00,08/12/2023
Delivery Units,Adults and Health,Professional Services,1031247202,Recruitment Team Nine Limited,"1,770.00",18/12/2023
Delivery Units,Adults and Health,Professional Services,1031412602,Recruitment Team Nine Limited,295.00,07/12/2023
Delivery Units,Adults and Health,Professional Services,1031607002,Recruitment Team Nine Limited,"2,065.00",01/12/2023
Delivery Units,Adults and Health,Translation Exp / Interpret,1031648001,Thebigword Group Ltd,56.70,01/12/2023
Delivery Units,Adults and Health,Professional Services,1031673202,Action First Assessment Ltd,"3,517.50",21/12/2023
Delivery Units,Adults and Health,Professional Services,1031674303,Action First Assessment Ltd,"3,182.00",21/12/2023
Delivery Units,Adults and Health,Translation Exp / Interpret,1031811702,Thebigword Group Ltd,127.57,20/12/2023
Delivery Units,Adults and Health,Professional Services,1031812901,Recruitment Team Nine Limited,295.00,08/12/2023
Delivery Units,Adults and Health,Professional Services,1031847601,Kabe Limited,875.00,12/12/2023
Delivery Units,Adults and Health,Professional Services,1031849202,Aisa Medical Ltd,"5,250.00",12/12/2023
Delivery Units,Adults and Health,Professional Services,1031849901,Kabe Limited,"1,400.00",13/12/2023
Delivery Units,Adults and Health,Professional Services,1031911302,Peaceable Habitation Ltd,"1,280.00",13/12/2023
Delivery Units,Adults and Health,Professional Services,1032014901,Recruitment Team Nine Limited,295.00,18/12/2023
Delivery Units,Adults and Health,Translation Exp / Interpret,1032086201,D.A. Languages Ltd,72.00,20/12/2023
Delivery Units,Adults and Health,Professional Services,1032250301,Recruitment Team Nine Limited,"1,180.00",27/12/2023
Delivery Units,Adults and Health,Professional Services,1032257002,KMCA Consultancy Services Ltd,"3,000.00",27/12/2023
Delivery Units,Adults and Health,Professional Services,1032257701,Eduhez Ltd,"1,750.00",27/12/2023
Delivery Units,Adults and Health,Professional Services,1032292801,Kabe Limited,"4,725.00",28/12/2023
Delivery Units,Adults and Health,Professional Services,1032294401,Kabe Limited,"1,225.00",28/12/2023
Delivery Units,Adults and Health,Professional Services,1032336702,AMIN ENTERPRISE LTD,175.00,29/12/2023
Delivery Units,Adults and Health,Professional Services,1032337002,AMIN ENTERPRISE LTD,190.00,29/12/2023
Delivery Units,Adults and Health,Other Services,1032141001,Thebigword Group Ltd,148.34,22/12/2023
Delivery Units,Adults and Health,Ttl IT & Comms,1032085801,MEDEQUIP ASSISTIVE TECHNOLOGY,"199,344.26",22/12/2023
Delivery Units,Adults and Health,Ttl IT & Comms,1032086401,MEDEQUIP ASSISTIVE TECHNOLOGY,"-11,067.66",22/12/2023
Delivery Units,Adults and Health,Other Agencies - Third Party P,0090664111,AUTUMN GARDENS,"4,800.00",07/12/2023
Delivery Units,Adults and Health,Other Agencies - Third Party P,0090664115,AUTUMN GARDENS,"3,656.00",07/12/2023
Delivery Units,Adults and Health,Other Agencies - Third Party P,0090666320,CARLTON COURT (TLC GROUP),"4,363.24",13/12/2023
Delivery Units,Adults and Health,Other Agencies - Third Party P,0090666332,CARLTON COURT (TLC GROUP),"-7,500.00",13/12/2023
Delivery Units,Adults and Health,Other Agencies - Third Party P,0090666333,CARLTON COURT (TLC GROUP),"7,000.00",13/12/2023
Delivery Units,Adults and Health,Other Agencies - Third Party P,0090666598,CARLTON COURT (TLC GROUP),"4,363.24",13/12/2023
Delivery Units,Adults and Health,Other Agencies - Third Party P,0090666618,CARLTON COURT (TLC GROUP),"6,600.00",13/12/2023
Delivery Units,Adults and Health,Other Agencies - Third Party P,0090666626,CARLTON COURT (TLC GROUP),"6,000.00",13/12/2023
Delivery Units,Adults and Health,Other Agencies - Third Party P,0090666638,CARLTON COURT (TLC GROUP),"42,021.43",13/12/2023
Delivery Units,Adults and Health,Other Agencies - Third Party P,0090666867,BENSLOW MANAGEMENT COMPANY LIMITED,"4,262.06",14/12/2023
Delivery Units,Adults and Health,Other Agencies - Third Party P,0090667610,ASPEN VILLAGES LTD,"3,800.00",15/12/2023
Delivery Units,Adults and Health,Other Agencies - Third Party P,0090667613,ASPEN VILLAGES LTD,"24,328.57",15/12/2023
Delivery Units,Adults and Health,Other Agencies - Third Party P,0090662900,AGUDAS ISRAEL HOUSING ASSCTN LTD,"2,648.57",06/12/2023
Delivery Units,Adults and Health,Other Agencies - Third Party P,0090642491,Lukka Care Homes (2010) Ltd,"4,200.00",19/12/2023
Delivery Units,Adults and Health,Other Agencies - Third Party P,0090642501,Lukka Care Homes (2010) Ltd,"-2,829.39",19/12/2023
Delivery Units,Adults and Health,Other Agencies - Third Party P,0090642531,Lukka Care Homes (2010) Ltd,"4,168.00",19/12/2023
Delivery Units,Adults and Health,Other Agencies - Third Party P,0090642532,Lukka Care Homes (2010) Ltd,"4,764.00",19/12/2023
Delivery Units,Adults and Health,Other Agencies - Third Party P,0090642558,Lukka Care Homes (2010) Ltd,"3,768.00",19/12/2023
Delivery Units,Adults and Health,Other Agencies - Third Party P,0090642560,Lukka Care Homes (2010) Ltd,"4,200.00",19/12/2023
Delivery Units,Adults and Health,Other Agencies - Third Party P,0090642593,Lukka Care Homes (2010) Ltd,"4,201.60",19/12/2023
Delivery Units,Adults and Health,Other Agencies - Third Party P,0090642619,Lukka Care Homes (2010) Ltd,"4,249.60",19/12/2023
Delivery Units,Adults and Health,Other Agencies - Third Party P,0090642630,Lukka Care Homes (2010) Ltd,"4,200.00",19/12/2023
Delivery Units,Adults and Health,Other Agencies - Third Party P,0090642666,Lukka Care Homes (2010) Ltd,"3,768.00",19/12/2023
Delivery Units,Adults and Health,Other Agencies - Third Party P,0090642688,Lukka Care Homes (2010) Ltd,"3,866.00",19/12/2023
Delivery Units,Adults and Health,Other Agencies - Third Party P,0090642777,Lukka Care Homes (2010) Ltd,"5,400.00",19/12/2023
Delivery Units,Adults and Health,Other Agencies - Third Party P,0090642788,Lukka Care Homes (2010) Ltd,"5,830.36",19/12/2023
Delivery Units,Adults and Health,Other Agencies - Third Party P,0090642823,Lukka Care Homes (2010) Ltd,"4,800.00",19/12/2023
Delivery Units,Adults and Health,Other Agencies - Third Party P,0090642827,Lukka Care Homes (2010) Ltd,"4,200.00",19/12/2023
Delivery Units,Adults and Health,Other Agencies - Third Party P,0090642913,Lukka Care Homes (2010) Ltd,"3,790.76",19/12/2023
Delivery Units,Adults and Health,Other Agencies - Third Party P,0090642956,Lukka Care Homes (2010) Ltd,"4,201.60",19/12/2023
Delivery Units,Adults and Health,Other Agencies - Third Party P,0090643014,Lukka Care Homes (2010) Ltd,"4,800.00",19/12/2023
Delivery Units,Adults and Health,Other Agencies - Third Party P,0090655022,Lukka Care Homes (2010) Ltd,"4,200.00",19/12/2023
Delivery Units,Adults and Health,Other Agencies - Third Party P,0090655059,Lukka Care Homes (2010) Ltd,"4,168.00",19/12/2023
Delivery Units,Adults and Health,Other Agencies - Third Party P,0090655060,Lukka Care Homes (2010) Ltd,"4,764.00",19/12/2023
Delivery Units,Adults and Health,Other Agencies - Third Party P,0090655085,Lukka Care Homes (2010) Ltd,"4,249.60",19/12/2023
Delivery Units,Adults and Health,Other Agencies - Third Party P,0090655096,Lukka Care Homes (2010) Ltd,"4,200.00",19/12/2023
Delivery Units,Adults and Health,Other Agencies - Third Party P,0090655121,Lukka Care Homes (2010) Ltd,"5,400.00",19/12/2023
Delivery Units,Adults and Health,Other Agencies - Third Party P,0090655128,Lukka Care Homes (2010) Ltd,704.12,19/12/2023
Delivery Units,Adults and Health,Other Agencies - Third Party P,0090655154,Lukka Care Homes (2010) Ltd,"3,768.00",19/12/2023
Delivery Units,Adults and Health,Other Agencies - Third Party P,0090655156,Lukka Care Homes (2010) Ltd,"4,200.00",19/12/2023
Delivery Units,Adults and Health,Other Agencies - Third Party P,0090655186,Lukka Care Homes (2010) Ltd,"4,201.60",19/12/2023
Delivery Units,Adults and Health,Other Agencies - Third Party P,0090655200,Lukka Care Homes (2010) Ltd,"3,768.00",19/12/2023
Delivery Units,Adults and Health,Other Agencies - Third Party P,0090655221,Lukka Care Homes (2010) Ltd,"3,866.00",19/12/2023
Delivery Units,Adults and Health,Other Agencies - Third Party P,0090655271,Lukka Care Homes (2010) Ltd,"4,800.00",19/12/2023
Delivery Units,Adults and Health,Other Agencies - Third Party P,0090655274,Lukka Care Homes (2010) Ltd,"4,200.00",19/12/2023
Delivery Units,Adults and Health,Other Agencies - Third Party P,0090655423,Lukka Care Homes (2010) Ltd,"3,790.76",19/12/2023
Delivery Units,Adults and Health,Other Agencies - Third Party P,0090655463,Lukka Care Homes (2010) Ltd,"4,201.60",19/12/2023
Delivery Units,Adults and Health,Other Agencies - Third Party P,0090655514,Lukka Care Homes (2010) Ltd,"4,800.00",19/12/2023
Delivery Units,Adults and Health,Other Agencies - Third Party P,0090661163,The Orders of St John Care Trust,"4,388.57",04/12/2023
Delivery Units,Adults and Health,Other Agencies - Third Party P,0090661164,The Orders of St John Care Trust,"4,534.86",04/12/2023
Delivery Units,Adults and Health,Other Agencies - Third Party P,0090661165,The Orders of St John Care Trust,"4,388.57",04/12/2023
Delivery Units,Adults and Health,Other Agencies - Third Party P,0090661166,The Orders of St John Care Trust,"4,402.00",04/12/2023
Delivery Units,Adults and Health,Other Agencies - Third Party P,0090661167,The Orders of St John Care Trust,"4,260.00",04/12/2023
Delivery Units,Adults and Health,Other Agencies - Third Party P,0090661168,The Orders of St John Care Trust,-132.86,04/12/2023
Delivery Units,Adults and Health,Other Agencies - Third Party P,0090661169,The Orders of St John Care Trust,-128.57,04/12/2023
Delivery Units,Adults and Health,Other Agencies - Third Party P,0090661170,The Orders of St John Care Trust,-132.86,04/12/2023
Delivery Units,Adults and Health,Other Agencies - Third Party P,0090661171,The Orders of St John Care Trust,-132.86,04/12/2023
Delivery Units,Adults and Health,Other Agencies - Third Party P,0090661172,The Orders of St John Care Trust,-128.57,04/12/2023
Delivery Units,Adults and Health,Other Agencies - Third Party P,0090661173,The Orders of St John Care Trust,-128.57,04/12/2023
Delivery Units,Adults and Health,Other Agencies - Third Party P,0090661175,WILSMERE HOUSE CARE CENTRE,"4,979.35",04/12/2023
Delivery Units,Adults and Health,Other Agencies - Third Party P,0090662874,TORRINGTON HOMES,"4,071.43",06/12/2023
Delivery Units,Adults and Health,Other Agencies - Third Party P,0090662875,TORRINGTON HOMES,"4,207.14",06/12/2023
Delivery Units,Adults and Health,Other Agencies - Third Party P,0090662876,TORRINGTON HOMES,"4,071.43",06/12/2023
Delivery Units,Adults and Health,Other Agencies - Third Party P,0090662877,TORRINGTON HOMES,"4,207.14",06/12/2023
Delivery Units,Adults and Health,Other Agencies - Third Party P,0090664145,Stamford Nursing Centre,"6,060.85",07/12/2023
Delivery Units,Adults and Health,Other Agencies - Third Party P,0090665967,Westbourne Care Home,"1,964.29",12/12/2023
Delivery Units,Adults and Health,Other Agencies - Third Party P,0090665973,Hamberley Care 1 Ltd,"4,415.53",12/12/2023
Delivery Units,Adults and Health,Other Agencies - Third Party P,0090665974,Hamberley Care 1 Ltd,"4,562.71",12/12/2023
Delivery Units,Adults and Health,Other Agencies - Third Party P,0090665975,Hamberley Care 1 Ltd,"4,415.53",12/12/2023
Delivery Units,Adults and Health,Other Agencies - Third Party P,0090665976,Hamberley Care 1 Ltd,"3,198.86",12/12/2023
Delivery Units,Adults and Health,Other Agencies - Third Party P,0090665977,Hamberley Care 1 Ltd,"3,305.49",12/12/2023
Delivery Units,Adults and Health,Other Agencies - Third Party P,0090665978,Hamberley Care 1 Ltd,"3,198.86",12/12/2023
Delivery Units,Adults and Health,Other Agencies - Third Party P,0090666090,LIFESTYLE CARE PLC,"3,055.32",13/12/2023
Delivery Units,Adults and Health,Other Agencies - Third Party P,0090666093,FOUR SEASONS HEALTH CARE,"2,944.96",13/12/2023
Delivery Units,Adults and Health,Other Agencies - Third Party P,0090666094,JEWISH CARE,"3,212.00",13/12/2023
Delivery Units,Adults and Health,Other Agencies - Third Party P,0090666096,SONESTA NURSING HOME LTD.,"2,784.60",13/12/2023
Delivery Units,Adults and Health,Other Agencies - Third Party P,0090666098,SAGE NURSING HOME,"4,400.00",13/12/2023
Delivery Units,Adults and Health,Other Agencies - Third Party P,0090666100,Lukka Care Homes (2010) Ltd,"4,200.00",19/12/2023
Delivery Units,Adults and Health,Other Agencies - Third Party P,0090666102,ELEANOR PALMER TRUST NO 2 A/C.,"4,400.00",13/12/2023
Delivery Units,Adults and Health,Other Agencies - Third Party P,0090666104,ABBEY RAVENSCROFT PARK NURSING HOME,"3,968.00",13/12/2023
Delivery Units,Adults and Health,Other Agencies - Third Party P,0090666107,JEWISH CARE,"9,938.48",13/12/2023
Delivery Units,Adults and Health,Other Agencies - Third Party P,0090666110,CEDARS NURSING HOME,"3,756.00",13/12/2023
Delivery Units,Adults and Health,Other Agencies - Third Party P,0090666112,BUPA NURSING HOMES LTD - ARKLEY,"2,643.35",13/12/2023
Delivery Units,Adults and Health,Other Agencies - Third Party P,0090666113,APPLE TREE COURT CARE HOME,"13,227.34",13/12/2023
Delivery Units,Adults and Health,Other Agencies - Third Party P,0090666114,APPLE TREE COURT CARE HOME,0.04,13/12/2023
Delivery Units,Adults and Health,Other Agencies - Third Party P,0090666115,FOUR SEASONS HEALTH CARE,"12,827.30",13/12/2023
Delivery Units,Adults and Health,Other Agencies - Third Party P,0090666116,BUPA CARE HOMES,"3,098.28",13/12/2023
Delivery Units,Adults and Health,Other Agencies - Third Party P,0090666121,SONESTA NURSING HOME LTD.,"2,784.60",13/12/2023
Delivery Units,Adults and Health,Other Agencies - Third Party P,0090666122,JEWISH CARE,"2,911.32",13/12/2023
Delivery Units,Adults and Health,Other Agencies - Third Party P,0090666126,APPLE TREE COURT CARE HOME,"4,097.76",13/12/2023
Delivery Units,Adults and Health,Other Agencies - Third Party P,0090666131,FOUR SEASONS HEALTH CARE,"2,944.96",13/12/2023
Delivery Units,Adults and Health,Other Agencies - Third Party P,0090666132,LIFESTYLE CARE PLC,"3,055.32",13/12/2023
Delivery Units,Adults and Health,Other Agencies - Third Party P,0090666133,JEWISH CARE,"3,140.00",13/12/2023
Delivery Units,Adults and Health,Other Agencies - Third Party P,0090666134,LIFESTYLE CARE PLC,"3,055.32",13/12/2023
Delivery Units,Adults and Health,Other Agencies - Third Party P,0090666135,Lukka Care Homes (2010) Ltd,"4,168.00",19/12/2023
Delivery Units,Adults and Health,Other Agencies - Third Party P,0090666136,Lukka Care Homes (2010) Ltd,"-3,402.86",19/12/2023
Delivery Units,Adults and Health,Other Agencies - Third Party P,0090666138,APPLE TREE COURT CARE HOME,"4,200.00",13/12/2023
Delivery Units,Adults and Health,Other Agencies - Third Party P,0090666142,JEWISH CARE,"3,212.00",13/12/2023
Delivery Units,Adults and Health,Other Agencies - Third Party P,0090666146,BUPA CARE HOMES,"3,098.28",13/12/2023
Delivery Units,Adults and Health,Other Agencies - Third Party P,0090666149,SONESTA NURSING HOME LTD.,"2,784.60",13/12/2023
Delivery Units,Adults and Health,Other Agencies - Third Party P,0090666150,APPLE TREE COURT CARE HOME,"4,701.72",13/12/2023
Delivery Units,Adults and Health,Other Agencies - Third Party P,0090666151,Aarandale Manor Care Home,"4,200.00",13/12/2023
Delivery Units,Adults and Health,Other Agencies - Third Party P,0090666154,JEWISH CARE,"2,467.15",13/12/2023
Delivery Units,Adults and Health,Other Agencies - Third Party P,0090666159,APPLE TREE COURT CARE HOME,"4,400.00",13/12/2023
Delivery Units,Adults and Health,Other Agencies - Third Party P,0090666160,BUPA CARE HOMES,"-6,196.56",13/12/2023
Delivery Units,Adults and Health,Other Agencies - Third Party P,0090666161,BUPA NURSING HOMES LTD - ARKLEY,"4,016.00",13/12/2023
Delivery Units,Adults and Health,Other Agencies - Third Party P,0090666162,Lukka Care Homes (2010) Ltd,"4,249.60",19/12/2023
Delivery Units,Adults and Health,Other Agencies - Third Party P,0090666168,SONESTA NURSING HOME LTD.,"2,784.60",13/12/2023
Delivery Units,Adults and Health,Other Agencies - Third Party P,0090666170,APPLE TREE COURT CARE HOME,"5,400.00",13/12/2023
Delivery Units,Adults and Health,Other Agencies - Third Party P,0090666171,New Century Care (Finchley),"5,208.00",13/12/2023
Delivery Units,Adults and Health,Other Agencies - Third Party P,0090666172,CEDARS NURSING HOME,"5,200.00",13/12/2023
Delivery Units,Adults and Health,Other Agencies - Third Party P,0090666173,Lukka Care Homes (2010) Ltd,"4,200.00",19/12/2023
Delivery Units,Adults and Health,Other Agencies - Third Party P,0090666175,FOUR SEASONS HEALTH CARE,"3,684.00",13/12/2023
Delivery Units,Adults and Health,Other Agencies - Third Party P,0090666176,FOUR SEASONS HEALTH CARE,"2,944.96",13/12/2023
Delivery Units,Adults and Health,Other Agencies - Third Party P,0090666177,BUPA CARE HOMES,"-25,007.55",13/12/2023
Delivery Units,Adults and Health,Other Agencies - Third Party P,0090666178,APPLE TREE COURT CARE HOME,"4,097.76",13/12/2023
Delivery Units,Adults and Health,Other Agencies - Third Party P,0090666182,ABBEY RAVENSCROFT PARK NURSING HOME,"4,200.00",13/12/2023
Delivery Units,Adults and Health,Other Agencies - Third Party P,0090666184,New Century Care (Finchley),"5,208.00",13/12/2023
Delivery Units,Adults and Health,Other Agencies - Third Party P,0090666185,CEDARS NURSING HOME,"5,200.00",13/12/2023
Delivery Units,Adults and Health,Other Agencies - Third Party P,0090666186,CARE UK COMMUNITY PARTNERSHIPS,"4,363.24",13/12/2023
Delivery Units,Adults and Health,Other Agencies - Third Party P,0090666187,APPLE TREE COURT CARE HOME,"3,969.20",13/12/2023
Delivery Units,Adults and Health,Other Agencies - Third Party P,0090666188,ABBEY RAVENSCROFT PARK NURSING HOME,"4,800.00",13/12/2023
Delivery Units,Adults and Health,Other Agencies - Third Party P,0090666189,Aarandale Manor Care Home,"5,854.52",13/12/2023
Delivery Units,Adults and Health,Other Agencies - Third Party P,0090666190,ABBEY RAVENSCROFT PARK NURSING HOME,"4,800.00",13/12/2023
Delivery Units,Adults and Health,Other Agencies - Third Party P,0090666191,APPLE TREE COURT CARE HOME,"1,000.00",13/12/2023
Delivery Units,Adults and Health,Other Agencies - Third Party P,0090666195,JEWISH CARE,"3,212.00",13/12/2023
Delivery Units,Adults and Health,Other Agencies - Third Party P,0090666198,Lukka Care Homes (2010) Ltd,"5,400.00",19/12/2023
Delivery Units,Adults and Health,Other Agencies - Third Party P,0090666201,SONESTA NURSING HOME LTD.,364.29,13/12/2023
Delivery Units,Adults and Health,Other Agencies - Third Party P,0090666204,ABBEY RAVENSCROFT PARK NURSING HOME,"5,100.00",13/12/2023
Delivery Units,Adults and Health,Other Agencies - Third Party P,0090666205,BUPA NURSING HOMES LTD - ARKLEY,"3,400.00",13/12/2023
Delivery Units,Adults and Health,Other Agencies - Third Party P,0090666207,HENRY NIHILL HOUSE,"1,885.71",13/12/2023
Delivery Units,Adults and Health,Other Agencies - Third Party P,0090666209,CARE UK COMMUNITY PARTNERSHIPS,"4,363.24",13/12/2023
Delivery Units,Adults and Health,Other Agencies - Third Party P,0090666210,APPLE TREE COURT CARE HOME,"11,533.24",13/12/2023
Delivery Units,Adults and Health,Other Agencies - Third Party P,0090666211,BUPA CARE HOMES,"4,600.00",13/12/2023
Delivery Units,Adults and Health,Other Agencies - Third Party P,0090666219,CEDARS NURSING HOME,"4,016.00",13/12/2023
Delivery Units,Adults and Health,Other Agencies - Third Party P,0090666236,Lukka Care Homes (2010) Ltd,"3,768.00",19/12/2023
Delivery Units,Adults and Health,Other Agencies - Third Party P,0090666238,Lukka Care Homes (2010) Ltd,"4,200.00",19/12/2023
Delivery Units,Adults and Health,Other Agencies - Third Party P,0090666239,ABBEY RAVENSCROFT PARK NURSING HOME,"3,752.00",13/12/2023
Delivery Units,Adults and Health,Other Agencies - Third Party P,0090666240,JEWISH CARE,"3,140.00",13/12/2023
Delivery Units,Adults and Health,Other Agencies - Third Party P,0090666242,BUPA CARE HOMES,"9,784.57",13/12/2023
Delivery Units,Adults and Health,Other Agencies - Third Party P,0090666243,LIFESTYLE CARE PLC,"24,308.75",13/12/2023
Delivery Units,Adults and Health,Other Agencies - Third Party P,0090666245,FOUR SEASONS HEALTH CARE,"2,944.96",13/12/2023
Delivery Units,Adults and Health,Other Agencies - Third Party P,0090666250,LIFESTYLE CARE PLC,"-4,473.86",13/12/2023
Delivery Units,Adults and Health,Other Agencies - Third Party P,0090666253,SONESTA NURSING HOME LTD.,"2,784.60",13/12/2023
Delivery Units,Adults and Health,Other Agencies - Third Party P,0090666263,ABBEY RAVENSCROFT PARK NURSING HOME,"3,968.00",13/12/2023
Delivery Units,Adults and Health,Other Agencies - Third Party P,0090666264,LIFESTYLE CARE PLC,"3,055.32",13/12/2023
Delivery Units,Adults and Health,Other Agencies - Third Party P,0090666268,Lukka Care Homes (2010) Ltd,"4,201.60",19/12/2023
Delivery Units,Adults and Health,Other Agencies - Third Party P,0090666269,APPLE TREE COURT CARE HOME,"4,016.00",13/12/2023
Delivery Units,Adults and Health,Other Agencies - Third Party P,0090666276,JEWISH CARE,"3,140.00",13/12/2023
Delivery Units,Adults and Health,Other Agencies - Third Party P,0090666278,Aarandale Manor Care Home,"4,200.00",13/12/2023
Delivery Units,Adults and Health,Other Agencies - Third Party P,0090666282,Lukka Care Homes (2010) Ltd,"3,768.00",19/12/2023
Delivery Units,Adults and Health,Other Agencies - Third Party P,0090666285,CEDARS NURSING HOME,"4,800.00",13/12/2023
Delivery Units,Adults and Health,Other Agencies - Third Party P,0090666288,Lancam Care Services Limited,"4,116.00",13/12/2023
Delivery Units,Adults and Health,Other Agencies - Third Party P,0090666290,SAGE NURSING HOME,"5,482.57",13/12/2023
Delivery Units,Adults and Health,Other Agencies - Third Party P,0090666292,ELEANOR PALMER TRUST NO 2 A/C.,"4,400.00",13/12/2023
Delivery Units,Adults and Health,Other Agencies - Third Party P,0090666294,JEWISH CARE,"3,212.00",13/12/2023
Delivery Units,Adults and Health,Other Agencies - Third Party P,0090666295,CEDARS NURSING HOME,"4,800.00",13/12/2023
Delivery Units,Adults and Health,Other Agencies - Third Party P,0090666301,LIFESTYLE CARE PLC,"3,055.32",13/12/2023
Delivery Units,Adults and Health,Other Agencies - Third Party P,0090666302,SONESTA NURSING HOME LTD.,"2,784.60",13/12/2023
Delivery Units,Adults and Health,Other Agencies - Third Party P,0090666303,Lukka Care Homes (2010) Ltd,"-1,656.86",19/12/2023
Delivery Units,Adults and Health,Other Agencies - Third Party P,0090666304,ABBEY RAVENSCROFT PARK NURSING HOME,"4,200.00",13/12/2023
Delivery Units,Adults and Health,Other Agencies - Third Party P,0090666307,FOUR SEASONS HEALTH CARE,"2,944.96",13/12/2023
Delivery Units,Adults and Health,Other Agencies - Third Party P,0090666308,ABBEY RAVENSCROFT PARK NURSING HOME,"4,800.00",13/12/2023
Delivery Units,Adults and Health,Other Agencies - Third Party P,0090666309,ELEANOR PALMER TRUST NO 2 A/C.,"4,400.00",13/12/2023
Delivery Units,Adults and Health,Other Agencies - Third Party P,0090666314,New Century Care (Finchley),"5,425.00",13/12/2023
Delivery Units,Adults and Health,Other Agencies - Third Party P,0090666322,CARE UK COMMUNITY PARTNERSHIPS,"4,363.24",13/12/2023
Delivery Units,Adults and Health,Other Agencies - Third Party P,0090666326,BUPA NURSING HOMES LTD - ARKLEY,"4,116.00",13/12/2023
Delivery Units,Adults and Health,Other Agencies - Third Party P,0090666327,New Century Care (Finchley),"10,528.84",13/12/2023
Delivery Units,Adults and Health,Other Agencies - Third Party P,0090666328,JEWISH CARE,"3,140.00",13/12/2023
Delivery Units,Adults and Health,Other Agencies - Third Party P,0090666329,JEWISH CARE,"3,212.00",13/12/2023
Delivery Units,Adults and Health,Other Agencies - Third Party P,0090666330,SONESTA NURSING HOME LTD.,"3,216.00",13/12/2023
Delivery Units,Adults and Health,Other Agencies - Third Party P,0090666331,FOUR SEASONS HEALTH CARE,"4,400.00",13/12/2023
Delivery Units,Adults and Health,Other Agencies - Third Party P,0090666334,LIFESTYLE CARE PLC,"5,521.16",13/12/2023
Delivery Units,Adults and Health,Other Agencies - Third Party P,0090666336,ABBEY RAVENSCROFT PARK NURSING HOME,"4,400.00",13/12/2023
Delivery Units,Adults and Health,Other Agencies - Third Party P,0090666348,FOUR SEASONS HEALTH CARE,"3,800.00",13/12/2023
Delivery Units,Adults and Health,Other Agencies - Third Party P,0090666352,BUPA CARE HOMES,"3,098.28",13/12/2023
Delivery Units,Adults and Health,Other Agencies - Third Party P,0090666354,Lukka Care Homes (2010) Ltd,"-15,428.57",19/12/2023
Delivery Units,Adults and Health,Other Agencies - Third Party P,0090666355,HENRY NIHILL HOUSE,"3,900.00",13/12/2023
Delivery Units,Adults and Health,Other Agencies - Third Party P,0090666357,Lukka Care Homes (2010) Ltd,"4,200.00",19/12/2023
Delivery Units,Adults and Health,Other Agencies - Third Party P,0090666358,SONESTA NURSING HOME LTD.,"3,400.00",13/12/2023
Delivery Units,Adults and Health,Other Agencies - Third Party P,0090666359,JEWISH CARE,"3,140.00",13/12/2023
Delivery Units,Adults and Health,Other Agencies - Third Party P,0090666360,ELEANOR PALMER TRUST NO 2 A/C.,"4,400.00",13/12/2023
Delivery Units,Adults and Health,Other Agencies - Third Party P,0090666361,CARE UK COMMUNITY PARTNERSHIPS,"4,321.16",13/12/2023
Delivery Units,Adults and Health,Other Agencies - Third Party P,0090666362,SONESTA NURSING HOME LTD.,"12,864.60",13/12/2023
Delivery Units,Adults and Health,Other Agencies - Third Party P,0090666363,ABBEY RAVENSCROFT PARK NURSING HOME,942.86,13/12/2023
Delivery Units,Adults and Health,Other Agencies - Third Party P,0090666364,BUPA CARE HOMES,"3,098.28",13/12/2023
Delivery Units,Adults and Health,Other Agencies - Third Party P,0090666365,LIFESTYLE CARE PLC,"3,055.32",13/12/2023
Delivery Units,Adults and Health,Other Agencies - Third Party P,0090666367,BUPA NURSING HOMES LTD - ARKLEY,"8,378.57",13/12/2023
Delivery Units,Adults and Health,Other Agencies - Third Party P,0090666368,BUPA NURSING HOMES LTD - ARKLEY,"3,900.00",13/12/2023
Delivery Units,Adults and Health,Other Agencies - Third Party P,0090666371,BUPA CARE HOMES,"3,098.28",13/12/2023
Delivery Units,Adults and Health,Other Agencies - Third Party P,0090666372,BUPA NURSING HOMES LTD - ARKLEY,"3,900.00",13/12/2023
Delivery Units,Adults and Health,Other Agencies - Third Party P,0090666373,ABBEY RAVENSCROFT PARK NURSING HOME,"5,200.00",13/12/2023
Delivery Units,Adults and Health,Other Agencies - Third Party P,0090666374,Lukka Care Homes (2010) Ltd,"30,800.00",19/12/2023
Delivery Units,Adults and Health,Other Agencies - Third Party P,0090666375,JEWISH CARE,"7,227.00",13/12/2023
Delivery Units,Adults and Health,Other Agencies - Third Party P,0090666377,BUPA NURSING HOMES LTD - ARKLEY,"3,600.00",13/12/2023
Delivery Units,Adults and Health,Other Agencies - Third Party P,0090666378,JEWISH CARE,"3,700.71",13/12/2023
Delivery Units,Adults and Health,Other Agencies - Third Party P,0090666380,Lukka Care Homes (2010) Ltd,"34,800.00",19/12/2023
Delivery Units,Adults and Health,Other Agencies - Third Party P,0090666390,JEWISH CARE,"3,140.00",13/12/2023
Delivery Units,Adults and Health,Other Agencies - Third Party P,0090666391,CEDARS NURSING HOME,"4,000.00",13/12/2023
Delivery Units,Adults and Health,Other Agencies - Third Party P,0090666398,SONESTA NURSING HOME LTD.,"-10,414.55",13/12/2023
Delivery Units,Adults and Health,Other Agencies - Third Party P,0090666401,JEWISH CARE,"3,140.00",13/12/2023
Delivery Units,Adults and Health,Other Agencies - Third Party P,0090666402,SONESTA NURSING HOME LTD.,"2,784.60",13/12/2023
Delivery Units,Adults and Health,Other Agencies - Third Party P,0090666405,APPLE TREE COURT CARE HOME,"3,588.12",13/12/2023
Delivery Units,Adults and Health,Other Agencies - Third Party P,0090666408,CEDARS NURSING HOME,"4,800.00",13/12/2023
Delivery Units,Adults and Health,Other Agencies - Third Party P,0090666418,JEWISH CARE,"3,140.00",13/12/2023
Delivery Units,Adults and Health,Other Agencies - Third Party P,0090666419,JEWISH CARE,"3,212.00",13/12/2023
Delivery Units,Adults and Health,Other Agencies - Third Party P,0090666424,FOUR SEASONS HEALTH CARE,"2,944.96",13/12/2023
Delivery Units,Adults and Health,Other Agencies - Third Party P,0090666426,Aarandale Manor Care Home,"-2,514.29",13/12/2023
Delivery Units,Adults and Health,Other Agencies - Third Party P,0090666431,LIFESTYLE CARE PLC,"3,055.32",13/12/2023
Delivery Units,Adults and Health,Other Agencies - Third Party P,0090666432,ABBEY RAVENSCROFT PARK NURSING HOME,"3,968.00",13/12/2023
Delivery Units,Adults and Health,Other Agencies - Third Party P,0090666436,ELEANOR PALMER TRUST NO 2 A/C.,"4,400.00",13/12/2023
Delivery Units,Adults and Health,Other Agencies - Third Party P,0090666437,LIFESTYLE CARE PLC,"3,055.32",13/12/2023
Delivery Units,Adults and Health,Other Agencies - Third Party P,0090666449,APPLE TREE COURT CARE HOME,"2,709.08",13/12/2023
Delivery Units,Adults and Health,Other Agencies - Third Party P,0090666454,ELEANOR PALMER TRUST NO 2 A/C.,"4,400.00",13/12/2023
Delivery Units,Adults and Health,Other Agencies - Third Party P,0090666458,Lukka Care Homes (2010) Ltd,"3,790.76",19/12/2023
Delivery Units,Adults and Health,Other Agencies - Third Party P,0090666460,ELEANOR PALMER TRUST NO 2 A/C.,"4,400.00",13/12/2023
Delivery Units,Adults and Health,Other Agencies - Third Party P,0090666465,APPLE TREE COURT CARE HOME,"3,980.00",13/12/2023
Delivery Units,Adults and Health,Other Agencies - Third Party P,0090666468,APPLE TREE COURT CARE HOME,"3,588.12",13/12/2023
Delivery Units,Adults and Health,Other Agencies - Third Party P,0090666469,APPLE TREE COURT CARE HOME,"3,588.12",13/12/2023
Delivery Units,Adults and Health,Other Agencies - Third Party P,0090666478,LIFESTYLE CARE PLC,"3,055.32",13/12/2023
Delivery Units,Adults and Health,Other Agencies - Third Party P,0090666480,FOUR SEASONS HEALTH CARE,"-21,140.61",13/12/2023
Delivery Units,Adults and Health,Other Agencies - Third Party P,0090666488,APPLE TREE COURT CARE HOME,"3,588.12",13/12/2023
Delivery Units,Adults and Health,Other Agencies - Third Party P,0090666489,ABBEY RAVENSCROFT PARK NURSING HOME,"3,968.00",13/12/2023
Delivery Units,Adults and Health,Other Agencies - Third Party P,0090666490,JEWISH CARE,"3,212.00",13/12/2023
Delivery Units,Adults and Health,Other Agencies - Third Party P,0090666494,ABBEY RAVENSCROFT PARK NURSING HOME,"3,968.00",13/12/2023
Delivery Units,Adults and Health,Other Agencies - Third Party P,0090666497,Aarandale Manor Care Home,"4,907.14",13/12/2023
Delivery Units,Adults and Health,Other Agencies - Third Party P,0090666501,SAGE NURSING HOME,"4,400.00",13/12/2023
Delivery Units,Adults and Health,Other Agencies - Third Party P,0090666509,New Century Care (Finchley),"5,208.00",13/12/2023
Delivery Units,Adults and Health,Other Agencies - Third Party P,0090666510,LIFESTYLE CARE PLC,"3,055.32",13/12/2023
Delivery Units,Adults and Health,Other Agencies - Third Party P,0090666514,ABBEY RAVENSCROFT PARK NURSING HOME,"4,800.00",13/12/2023
Delivery Units,Adults and Health,Other Agencies - Third Party P,0090666516,JEWISH CARE,"3,212.00",13/12/2023
Delivery Units,Adults and Health,Other Agencies - Third Party P,0090666518,ELEANOR PALMER TRUST NO 2 A/C.,"4,400.00",13/12/2023
Delivery Units,Adults and Health,Other Agencies - Third Party P,0090666520,HENRY NIHILL HOUSE,"3,816.00",13/12/2023
Delivery Units,Adults and Health,Other Agencies - Third Party P,0090666521,SONESTA NURSING HOME LTD.,"3,216.00",13/12/2023
Delivery Units,Adults and Health,Other Agencies - Third Party P,0090666522,HENRY NIHILL HOUSE,"3,816.00",13/12/2023
Delivery Units,Adults and Health,Other Agencies - Third Party P,0090666523,HENRY NIHILL HOUSE,"3,816.00",13/12/2023
Delivery Units,Adults and Health,Other Agencies - Third Party P,0090666527,Aarandale Manor Care Home,"5,514.28",13/12/2023
Delivery Units,Adults and Health,Other Agencies - Third Party P,0090666528,BUPA NURSING HOMES LTD - ARKLEY,"3,800.00",13/12/2023
Delivery Units,Adults and Health,Other Agencies - Third Party P,0090666529,ABBEY RAVENSCROFT PARK NURSING HOME,"4,800.00",13/12/2023
Delivery Units,Adults and Health,Other Agencies - Third Party P,0090666533,New Century Care (Finchley),"5,200.00",13/12/2023
Delivery Units,Adults and Health,Other Agencies - Third Party P,0090666537,APPLE TREE COURT CARE HOME,"3,588.12",13/12/2023
Delivery Units,Adults and Health,Other Agencies - Third Party P,0090666538,BUPA CARE HOMES,"3,098.28",13/12/2023
Delivery Units,Adults and Health,Other Agencies - Third Party P,0090666539,BUPA NURSING HOMES LTD - ARKLEY,"3,098.28",13/12/2023
Delivery Units,Adults and Health,Other Agencies - Third Party P,0090666540,LIFESTYLE CARE PLC,"3,055.32",13/12/2023
Delivery Units,Adults and Health,Other Agencies - Third Party P,0090666541,ABBEY RAVENSCROFT PARK NURSING HOME,"4,800.00",13/12/2023
Delivery Units,Adults and Health,Other Agencies - Third Party P,0090666544,APPLE TREE COURT CARE HOME,"16,947.53",13/12/2023
Delivery Units,Adults and Health,Other Agencies - Third Party P,0090666545,ABBEY RAVENSCROFT PARK NURSING HOME,"4,800.00",13/12/2023
Delivery Units,Adults and Health,Other Agencies - Third Party P,0090666549,SONESTA NURSING HOME LTD.,"2,716.68",13/12/2023
Delivery Units,Adults and Health,Other Agencies - Third Party P,0090666554,ABBEY RAVENSCROFT PARK NURSING HOME,"7,200.00",13/12/2023
Delivery Units,Adults and Health,Other Agencies - Third Party P,0090666556,New Century Care (Finchley),"5,311.14",13/12/2023
Delivery Units,Adults and Health,Other Agencies - Third Party P,0090666557,FOUR SEASONS HEALTH CARE,"2,734.61",13/12/2023
Delivery Units,Adults and Health,Other Agencies - Third Party P,0090666560,BUPA NURSING HOMES LTD - ARKLEY,"3,098.28",13/12/2023
Delivery Units,Adults and Health,Other Agencies - Third Party P,0090666561,Lukka Care Homes (2010) Ltd,"4,201.60",19/12/2023
Delivery Units,Adults and Health,Other Agencies - Third Party P,0090666562,ELEANOR PALMER TRUST NO 2 A/C.,"4,400.00",13/12/2023
Delivery Units,Adults and Health,Other Agencies - Third Party P,0090666567,Aarandale Manor Care Home,"-1,200.00",13/12/2023
Delivery Units,Adults and Health,Other Agencies - Third Party P,0090666568,LIFESTYLE CARE PLC,"3,055.32",13/12/2023
Delivery Units,Adults and Health,Other Agencies - Third Party P,0090666570,JEWISH CARE,"3,212.00",13/12/2023
Delivery Units,Adults and Health,Other Agencies - Third Party P,0090666571,ELEANOR PALMER TRUST NO 2 A/C.,"4,400.00",13/12/2023
Delivery Units,Adults and Health,Other Agencies - Third Party P,0090666572,Lancam Care Services Limited,"3,916.00",13/12/2023
Delivery Units,Adults and Health,Other Agencies - Third Party P,0090666575,LIFESTYLE CARE PLC,"3,055.32",13/12/2023
Delivery Units,Adults and Health,Other Agencies - Third Party P,0090666578,SAGE NURSING HOME,"3,256.00",13/12/2023
Delivery Units,Adults and Health,Other Agencies - Third Party P,0090666579,JEWISH CARE,"8,479.92",13/12/2023
Delivery Units,Adults and Health,Other Agencies - Third Party P,0090666580,Lancam Care Services Limited,"4,196.00",13/12/2023
Delivery Units,Adults and Health,Other Agencies - Third Party P,0090666582,FOUR SEASONS HEALTH CARE,"2,944.96",13/12/2023
Delivery Units,Adults and Health,Other Agencies - Third Party P,0090666583,Lancam Care Services Limited,"4,196.00",13/12/2023
Delivery Units,Adults and Health,Other Agencies - Third Party P,0090666586,JEWISH CARE,"4,892.00",13/12/2023
Delivery Units,Adults and Health,Other Agencies - Third Party P,0090666587,JEWISH CARE,-448.57,13/12/2023
Delivery Units,Adults and Health,Other Agencies - Third Party P,0090666588,APPLE TREE COURT CARE HOME,"4,763.24",13/12/2023
Delivery Units,Adults and Health,Other Agencies - Third Party P,0090666590,New Century Care (Finchley),"5,009.86",13/12/2023
Delivery Units,Adults and Health,Other Agencies - Third Party P,0090666591,ABBEY RAVENSCROFT PARK NURSING HOME,"4,400.00",13/12/2023
Delivery Units,Adults and Health,Other Agencies - Third Party P,0090666592,FOUR SEASONS HEALTH CARE,"2,944.96",13/12/2023
Delivery Units,Adults and Health,Other Agencies - Third Party P,0090666593,LIFESTYLE CARE PLC,"3,055.32",13/12/2023
Delivery Units,Adults and Health,Other Agencies - Third Party P,0090666594,ABBEY RAVENSCROFT PARK NURSING HOME,"4,800.00",13/12/2023
Delivery Units,Adults and Health,Other Agencies - Third Party P,0090666595,BUPA NURSING HOMES LTD - ARKLEY,"3,616.00",13/12/2023
Delivery Units,Adults and Health,Other Agencies - Third Party P,0090666599,APPLE TREE COURT CARE HOME,"4,763.24",13/12/2023
Delivery Units,Adults and Health,Other Agencies - Third Party P,0090666601,BUPA NURSING HOMES LTD - ARKLEY,"4,116.00",13/12/2023
Delivery Units,Adults and Health,Other Agencies - Third Party P,0090666602,SAGE NURSING HOME,"4,400.00",13/12/2023
Delivery Units,Adults and Health,Other Agencies - Third Party P,0090666605,ABBEY RAVENSCROFT PARK NURSING HOME,"4,800.00",13/12/2023
Delivery Units,Adults and Health,Other Agencies - Third Party P,0090666606,FOUR SEASONS HEALTH CARE,"2,944.96",13/12/2023
Delivery Units,Adults and Health,Other Agencies - Third Party P,0090666607,CEDARS NURSING HOME,"5,600.00",13/12/2023
Delivery Units,Adults and Health,Other Agencies - Third Party P,0090666609,APPLE TREE COURT CARE HOME,"4,097.76",13/12/2023
Delivery Units,Adults and Health,Other Agencies - Third Party P,0090666611,Lukka Care Homes (2010) Ltd,"4,800.00",19/12/2023
Delivery Units,Adults and Health,Other Agencies - Third Party P,0090666615,BUPA NURSING HOMES LTD - ARKLEY,"3,098.28",13/12/2023
Delivery Units,Adults and Health,Other Agencies - Third Party P,0090666616,CEDARS NURSING HOME,"5,600.00",13/12/2023
Delivery Units,Adults and Health,Other Agencies - Third Party P,0090666617,ABBEY RAVENSCROFT PARK NURSING HOME,"5,200.00",13/12/2023
Delivery Units,Adults and Health,Other Agencies - Third Party P,0090666621,Aarandale Manor Care Home,"6,000.00",13/12/2023
Delivery Units,Adults and Health,Other Agencies - Third Party P,0090666622,JEWISH CARE,"3,140.00",13/12/2023
Delivery Units,Adults and Health,Other Agencies - Third Party P,0090666624,ABBEY RAVENSCROFT PARK NURSING HOME,"4,400.00",13/12/2023
Delivery Units,Adults and Health,Other Agencies - Third Party P,0090666625,FOUR SEASONS HEALTH CARE,"9,429.58",13/12/2023
Delivery Units,Adults and Health,Other Agencies - Third Party P,0090666627,ABBEY RAVENSCROFT PARK NURSING HOME,"-5,485.72",13/12/2023
Delivery Units,Adults and Health,Other Agencies - Third Party P,0090666629,LIFESTYLE CARE PLC,"4,563.24",13/12/2023
Delivery Units,Adults and Health,Other Agencies - Third Party P,0090666630,Aarandale Manor Care Home,"9,600.00",13/12/2023
Delivery Units,Adults and Health,Other Agencies - Third Party P,0090666631,Aarandale Manor Care Home,"45,000.00",13/12/2023
Delivery Units,Adults and Health,Other Agencies - Third Party P,0090666639,ABBEY RAVENSCROFT PARK NURSING HOME,"12,071.43",13/12/2023
Delivery Units,Adults and Health,Other Agencies - Third Party P,0090666641,ABBEY RAVENSCROFT PARK NURSING HOME,"4,800.00",13/12/2023
Delivery Units,Adults and Health,Other Agencies - Third Party P,0090666642,ABBEY RAVENSCROFT PARK NURSING HOME,"1,257.14",13/12/2023
Delivery Units,Adults and Health,Other Agencies - Third Party P,0090666644,BUPA NURSING HOMES LTD - ARKLEY,"2,571.43",13/12/2023
Delivery Units,Adults and Health,Other Agencies - Third Party P,0090666645,BUPA NURSING HOMES LTD - ARKLEY,"2,314.29",13/12/2023
Delivery Units,Adults and Health,Other Agencies - Third Party P,0090666646,ELEANOR PALMER TRUST NO 2 A/C.,"35,000.00",13/12/2023
Delivery Units,Adults and Health,Other Agencies - Third Party P,0090666648,JEWISH CARE,"3,925.00",13/12/2023
Delivery Units,Adults and Health,Other Agencies - Third Party P,0090666650,JEWISH CARE,"2,130.71",13/12/2023
Delivery Units,Adults and Health,Other Agencies - Third Party P,0090666651,JEWISH CARE,"2,242.86",13/12/2023
Delivery Units,Adults and Health,Other Agencies - Third Party P,0090666823,Candlewood House Care Home,"8,595.02",14/12/2023
Delivery Units,Adults and Health,Other Agencies - Third Party P,0090666826,COOPERSCROFT CARE HOME,"6,642.86",14/12/2023
Delivery Units,Adults and Health,Other Agencies - Third Party P,0090666830,Oakland Primecare Ltd t/a Elsyng House,"7,865.14",14/12/2023
Delivery Units,Adults and Health,Other Agencies - Third Party P,0090666834,TORRINGTON HOMES,"4,207.14",14/12/2023
Delivery Units,Adults and Health,Other Agencies - Third Party P,0090667095,Topcare Ltd,"5,314.29",14/12/2023
Delivery Units,Adults and Health,Other Agencies - Third Party P,0090667103,Karuna Manor,"2,612.81",14/12/2023
Delivery Units,Adults and Health,Other Agencies - Third Party P,0090667138,Barchester Healthcare,"7,085.71",14/12/2023
Delivery Units,Adults and Health,Other Agencies - Third Party P,0090667144,WILSMERE HOUSE CARE CENTRE,"4,979.35",14/12/2023
Delivery Units,Adults and Health,Other Agencies - Third Party P,0090667145,Victoria Care Centre,"2,940.64",14/12/2023
Delivery Units,Adults and Health,Other Agencies - Third Party P,0090667152,GCH (HATFIELD) Limited,"2,324.76",14/12/2023
Delivery Units,Adults and Health,Other Agencies - Third Party P,0090667167,FERNBANK NURSING HOME.,"5,314.02",14/12/2023
Delivery Units,Adults and Health,Other Agencies - Third Party P,0090667168,FERNBANK NURSING HOME.,"17,051.55",14/12/2023
Delivery Units,Adults and Health,Other Agencies - Third Party P,0090667171,FERNBANK NURSING HOME.,"5,978.35",14/12/2023
Delivery Units,Adults and Health,Other Agencies - Third Party P,0090667172,FERNBANK NURSING HOME.,"5,092.68",14/12/2023
Delivery Units,Adults and Health,Other Agencies - Third Party P,0090667215,WESTMINSTER HEALTH CARE LTD,"5,273.59",14/12/2023
Delivery Units,Adults and Health,Other Agencies - Third Party P,0090667216,WESTMINSTER HEALTH CARE LTD,"2,878.57",14/12/2023
Delivery Units,Adults and Health,Other Agencies - Third Party P,0090667217,WESTMINSTER HEALTH CARE LTD,"2,435.01",14/12/2023
Delivery Units,Adults and Health,Other Agencies - Third Party P,0090667218,WESTMINSTER HEALTH CARE LTD,"8,857.14",14/12/2023
Delivery Units,Adults and Health,Other Agencies - Third Party P,0090667219,WESTMINSTER HEALTH CARE LTD,"4,865.45",14/12/2023
Delivery Units,Adults and Health,Other Agencies - Third Party P,0090667220,WESTMINSTER HEALTH CARE LTD,"7,392.22",14/12/2023
Delivery Units,Adults and Health,Other Agencies - Third Party P,0090667231,St Matthews Limited,"4,082.83",14/12/2023
Delivery Units,Adults and Health,Other Agencies - Third Party P,0090667232,St Matthews Limited,"7,347.72",14/12/2023
Delivery Units,Adults and Health,Other Agencies - Third Party P,0090667233,St Matthews Limited,"1,882.29",14/12/2023
Delivery Units,Adults and Health,Other Agencies - Third Party P,0090662913,FINBOND LIMITED,"3,660.00",06/12/2023
Delivery Units,Adults and Health,Other Agencies - Third Party P,0090663066,Achieve Together Limited,"11,881.44",07/12/2023
Delivery Units,Adults and Health,Other Agencies - Third Party P,0090663067,Achieve Together Limited,"3,419.96",07/12/2023
Delivery Units,Adults and Health,Other Agencies - Third Party P,0090664142,FINBOND LIMITED,728.57,07/12/2023
Delivery Units,Adults and Health,Other Agencies - Third Party P,0090665078,GCH (North London) t/a The Tudors,"2,346.00",11/12/2023
Delivery Units,Adults and Health,Other Agencies - Third Party P,0090665086,FINBOND LIMITED,"4,350.00",11/12/2023
Delivery Units,Adults and Health,Other Agencies - Third Party P,0090665087,FINBOND LIMITED,"2,914.29",11/12/2023
Delivery Units,Adults and Health,Other Agencies - Third Party P,0090666143,CATHERINE LODGE,"3,200.00",13/12/2023
Delivery Units,Adults and Health,Other Agencies - Third Party P,0090666155,ROSEACRES CARE HOME LIMITED,"1,704.00",13/12/2023
Delivery Units,Adults and Health,Other Agencies - Third Party P,0090666164,CATHERINE LODGE,"3,800.00",13/12/2023
Delivery Units,Adults and Health,Other Agencies - Third Party P,0090666179,CARLTON COURT (TLC GROUP),"-1,300.00",13/12/2023
Delivery Units,Adults and Health,Other Agencies - Third Party P,0090666202,ROSEACRES CARE HOME LIMITED,"3,800.00",13/12/2023
Delivery Units,Adults and Health,Other Agencies - Third Party P,0090666203,ROSEACRES CARE HOME LIMITED,"4,400.00",13/12/2023
Delivery Units,Adults and Health,Other Agencies - Third Party P,0090666230,ROSEACRES CARE HOME LIMITED,"3,336.00",13/12/2023
Delivery Units,Adults and Health,Other Agencies - Third Party P,0090666249,CATHERINE LODGE,"3,580.00",13/12/2023
Delivery Units,Adults and Health,Other Agencies - Third Party P,0090666251,CARLTON COURT (TLC GROUP),"5,800.00",13/12/2023
Delivery Units,Adults and Health,Other Agencies - Third Party P,0090666257,CARLTON COURT (TLC GROUP),"5,400.00",13/12/2023
Delivery Units,Adults and Health,Other Agencies - Third Party P,0090666262,ROSEACRES CARE HOME LIMITED,"3,416.00",13/12/2023
Delivery Units,Adults and Health,Other Agencies - Third Party P,0090666274,CATHERINE LODGE,"3,800.00",13/12/2023
Delivery Units,Adults and Health,Other Agencies - Third Party P,0090666280,ROSEACRES CARE HOME LIMITED,"3,074.00",13/12/2023
Delivery Units,Adults and Health,Other Agencies - Third Party P,0090666297,ROSEACRES CARE HOME LIMITED,"3,616.00",13/12/2023
Delivery Units,Adults and Health,Other Agencies - Third Party P,0090666305,CATHERINE LODGE,"3,800.00",13/12/2023
Delivery Units,Adults and Health,Other Agencies - Third Party P,0090666339,CATHERINE LODGE,"3,800.00",13/12/2023
Delivery Units,Adults and Health,Other Agencies - Third Party P,0090666349,CATHERINE LODGE,"3,800.00",13/12/2023
Delivery Units,Adults and Health,Other Agencies - Third Party P,0090666356,ROSEACRES CARE HOME LIMITED,"3,800.00",13/12/2023
Delivery Units,Adults and Health,Other Agencies - Third Party P,0090666376,ROSEACRES CARE HOME LIMITED,"5,200.00",13/12/2023
Delivery Units,Adults and Health,Other Agencies - Third Party P,0090666388,CATHERINE LODGE,"3,000.00",13/12/2023
Delivery Units,Adults and Health,Other Agencies - Third Party P,0090666392,CARLTON COURT (TLC GROUP),"6,376.16",13/12/2023
Delivery Units,Adults and Health,Other Agencies - Third Party P,0090666395,ROSEACRES CARE HOME LIMITED,"3,336.00",13/12/2023
Delivery Units,Adults and Health,Other Agencies - Third Party P,0090666421,ROSEACRES CARE HOME LIMITED,"-5,294.86",13/12/2023
Delivery Units,Adults and Health,Other Agencies - Third Party P,0090666427,CATHERINE LODGE,"3,200.00",13/12/2023
Delivery Units,Adults and Health,Other Agencies - Third Party P,0090666435,ROSEACRES CARE HOME LIMITED,"3,074.00",13/12/2023
Delivery Units,Adults and Health,Other Agencies - Third Party P,0090666467,ROSEACRES CARE HOME LIMITED,"3,616.00",13/12/2023
Delivery Units,Adults and Health,Other Agencies - Third Party P,0090666500,ROSEACRES CARE HOME LIMITED,"3,574.00",13/12/2023
Delivery Units,Adults and Health,Other Agencies - Third Party P,0090666508,ROSEACRES CARE HOME LIMITED,"3,620.00",13/12/2023
Delivery Units,Adults and Health,Other Agencies - Third Party P,0090666511,ROSEACRES CARE HOME LIMITED,"3,974.00",13/12/2023
Delivery Units,Adults and Health,Other Agencies - Third Party P,0090666512,ROSEACRES CARE HOME LIMITED,"3,800.00",13/12/2023
Delivery Units,Adults and Health,Other Agencies - Third Party P,0090666536,CATHERINE LODGE,"3,800.00",13/12/2023
Delivery Units,Adults and Health,Other Agencies - Third Party P,0090666563,ROSEACRES CARE HOME LIMITED,"3,416.00",13/12/2023
Delivery Units,Adults and Health,Other Agencies - Third Party P,0090666623,ROSEACRES CARE HOME LIMITED,"3,800.00",13/12/2023
Delivery Units,Adults and Health,Other Agencies - Third Party P,0090666652,CATHERINE LODGE,"5,428.57",13/12/2023
Delivery Units,Adults and Health,Other Agencies - Third Party P,0090667088,AUTUMN GARDENS,"8,928.57",14/12/2023
Delivery Units,Adults and Health,Other Agencies - Third Party P,0090667089,AUTUMN GARDENS,"5,000.00",14/12/2023
Delivery Units,Adults and Health,Other Agencies - Third Party P,0090669364,TBG Mosaic,"2,540.00",21/12/2023
Delivery Units,Adults and Health,Other Agencies - Third Party P,0090669365,TBG Mosaic,"13,863.20",21/12/2023
Delivery Units,Adults and Health,Other Agencies - Third Party P,0090669366,TBG Mosaic,"4,612.00",21/12/2023
Delivery Units,Adults and Health,Other Agencies - Third Party P,0090669367,TBG Mosaic,"9,922.88",21/12/2023
Delivery Units,Adults and Health,Other Agencies - Third Party P,0090669368,TBG Mosaic,"9,673.20",21/12/2023
Delivery Units,Adults and Health,Other Agencies - Third Party P,0090669369,TBG Mosaic,"2,676.00",21/12/2023
Delivery Units,Adults and Health,Other Agencies - Third Party P,0090669370,TBG Mosaic,"2,540.00",21/12/2023
Delivery Units,Adults and Health,Other Agencies - Third Party P,0090669371,TBG Mosaic,"2,540.00",21/12/2023
Delivery Units,Adults and Health,Other Agencies - Third Party P,0090669372,TBG Mosaic,"2,540.00",21/12/2023
Delivery Units,Adults and Health,Other Agencies - Third Party P,0090669373,TBG Mosaic,"2,676.00",21/12/2023
Delivery Units,Adults and Health,Other Agencies - Third Party P,0090669374,TBG Mosaic,"2,676.00",21/12/2023
Delivery Units,Adults and Health,Other Agencies - Third Party P,0090669375,TBG Mosaic,"2,540.00",21/12/2023
Delivery Units,Adults and Health,Other Agencies - Third Party P,0090669376,TBG Mosaic,"2,676.00",21/12/2023
Delivery Units,Adults and Health,Other Agencies - Third Party P,0090669377,TBG Mosaic,"2,676.00",21/12/2023
Delivery Units,Adults and Health,Other Agencies - Third Party P,0090669378,TBG Mosaic,"2,540.00",21/12/2023
Delivery Units,Adults and Health,Other Agencies - Third Party P,0090669379,TBG Mosaic,"2,676.00",21/12/2023
Delivery Units,Adults and Health,Other Agencies - Third Party P,0090669380,TBG Mosaic,"2,540.00",21/12/2023
Delivery Units,Adults and Health,Other Agencies - Third Party P,0090669381,TBG Mosaic,"2,676.00",21/12/2023
Delivery Units,Adults and Health,Other Agencies - Third Party P,0090669382,TBG Mosaic,"2,676.00",21/12/2023
Delivery Units,Adults and Health,Other Agencies - Third Party P,0090669384,TBG Mosaic,"2,540.00",21/12/2023
Delivery Units,Adults and Health,Other Agencies - Third Party P,0090669386,TBG Mosaic,"2,540.00",21/12/2023
Delivery Units,Adults and Health,Other Agencies - Third Party P,0090669387,TBG Mosaic,"2,540.00",21/12/2023
Delivery Units,Adults and Health,Other Agencies - Third Party P,0090669388,TBG Mosaic,"2,540.00",21/12/2023
Delivery Units,Adults and Health,Other Agencies - Third Party P,0090669389,TBG Mosaic,"-4,109.57",21/12/2023
Delivery Units,Adults and Health,Other Agencies - Third Party P,0090669390,TBG Mosaic,"2,540.00",21/12/2023
Delivery Units,Adults and Health,Other Agencies - Third Party P,0090669392,TBG Mosaic,"2,540.00",21/12/2023
Delivery Units,Adults and Health,Other Agencies - Third Party P,0090669393,TBG Mosaic,"2,676.00",21/12/2023
Delivery Units,Adults and Health,Other Agencies - Third Party P,0090669394,TBG Mosaic,"2,540.00",21/12/2023
Delivery Units,Adults and Health,Other Agencies - Third Party P,0090669395,TBG Mosaic,"2,676.00",21/12/2023
Delivery Units,Adults and Health,Other Agencies - Third Party P,0090669396,TBG Mosaic,"2,540.00",21/12/2023
Delivery Units,Adults and Health,Other Agencies - Third Party P,0090669397,TBG Mosaic,"2,676.00",21/12/2023
Delivery Units,Adults and Health,Other Agencies - Third Party P,0090669398,TBG Mosaic,"2,857.92",21/12/2023
Delivery Units,Adults and Health,Other Agencies - Third Party P,0090669399,TBG Mosaic,"2,540.00",21/12/2023
Delivery Units,Adults and Health,Other Agencies - Third Party P,0090669400,TBG Mosaic,"13,596.00",21/12/2023
Delivery Units,Adults and Health,Other Agencies - Third Party P,0090669401,TBG Mosaic,"2,540.00",21/12/2023
Delivery Units,Adults and Health,Other Agencies - Third Party P,0090669402,TBG Mosaic,"2,676.00",21/12/2023
Delivery Units,Adults and Health,Other Agencies - Third Party P,0090669403,TBG Mosaic,"2,676.00",21/12/2023
Delivery Units,Adults and Health,Other Agencies - Third Party P,0090669404,TBG Mosaic,"2,676.00",21/12/2023
Delivery Units,Adults and Health,Other Agencies - Third Party P,0090669405,TBG Mosaic,"2,540.00",21/12/2023
Delivery Units,Adults and Health,Other Agencies - Third Party P,0090669406,TBG Mosaic,"2,540.00",21/12/2023
Delivery Units,Adults and Health,Other Agencies - Third Party P,0090669407,TBG Mosaic,"2,540.00",21/12/2023
Delivery Units,Adults and Health,Other Agencies - Third Party P,0090669409,TBG Mosaic,"2,676.00",21/12/2023
Delivery Units,Adults and Health,Other Agencies - Third Party P,0090669410,TBG Mosaic,"2,676.00",21/12/2023
Delivery Units,Adults and Health,Other Agencies - Third Party P,0090669411,TBG Mosaic,"2,540.00",21/12/2023
Delivery Units,Adults and Health,Other Agencies - Third Party P,0090669412,TBG Mosaic,"2,540.00",21/12/2023
Delivery Units,Adults and Health,Other Agencies - Third Party P,0090669414,TBG Mosaic,"2,540.00",21/12/2023
Delivery Units,Adults and Health,Other Agencies - Third Party P,0090669416,TBG Mosaic,"10,608.43",21/12/2023
Delivery Units,Adults and Health,Other Agencies - Third Party P,0090671935,Optimum Support Ltd,"5,314.00",29/12/2023
Delivery Units,Adults and Health,Other Agencies - Third Party P,0090664132,LIVABILITY,"3,740.44",07/12/2023
Delivery Units,Adults and Health,Other Agencies - Third Party P,0090664135,LIVABILITY,"4,720.12",07/12/2023
Delivery Units,Adults and Health,Other Agencies - Third Party P,0090666584,WOODFIELD HOUSE,"14,081.60",13/12/2023
Delivery Units,Adults and Health,Other Agencies - Third Party P,0090662902,AGUDAS ISRAEL HOUSING ASSCTN LTD,"4,285.71",06/12/2023
Delivery Units,Adults and Health,Other Agencies - Third Party P,0090662903,AGUDAS ISRAEL HOUSING ASSCTN LTD,"12,090.00",06/12/2023
Delivery Units,Adults and Health,Other Agencies - Third Party P,0090662737,Friends of The Elderly (Retired Nurses,"5,185.50",04/12/2023
Delivery Units,Adults and Health,Other Agencies - Third Party P,0090662871,Green Trees Care Home,"3,874.29",06/12/2023
Delivery Units,Adults and Health,Other Agencies - Third Party P,0090662878,TORRINGTON HOMES,"2,369.79",06/12/2023
Delivery Units,Adults and Health,Other Agencies - Third Party P,0090662879,TORRINGTON HOMES,"2,448.78",06/12/2023
Delivery Units,Adults and Health,Other Agencies - Third Party P,0090662880,TORRINGTON HOMES,"2,369.79",06/12/2023
Delivery Units,Adults and Health,Other Agencies - Third Party P,0090662881,TORRINGTON HOMES,"2,448.78",06/12/2023
Delivery Units,Adults and Health,Other Agencies - Third Party P,0090662883,TORRINGTON HOMES,"8,840.00",06/12/2023
Delivery Units,Adults and Health,Other Agencies - Third Party P,0090662884,TORRINGTON HOMES,"3,528.57",06/12/2023
Delivery Units,Adults and Health,Other Agencies - Third Party P,0090662885,TORRINGTON HOMES,"4,342.86",06/12/2023
Delivery Units,Adults and Health,Other Agencies - Third Party P,0090662886,TORRINGTON HOMES,"4,071.43",06/12/2023
Delivery Units,Adults and Health,Other Agencies - Third Party P,0090662887,TORRINGTON HOMES,"4,207.14",06/12/2023
Delivery Units,Adults and Health,Other Agencies - Third Party P,0090664084,Enviro Medical Limited - Coniston House,"3,750.00",07/12/2023
Delivery Units,Adults and Health,Other Agencies - Third Party P,0090664085,METHODIST HOMES FOR THE AGED,"4,402.76",07/12/2023
Delivery Units,Adults and Health,Other Agencies - Third Party P,0090664086,Enviro Medical Limited - Coniston House,"-3,000.00",07/12/2023
Delivery Units,Adults and Health,Other Agencies - Third Party P,0090664114,ANASTASIA LODGE,"3,620.00",07/12/2023
Delivery Units,Adults and Health,Other Agencies - Third Party P,0090664116,THE WOODSIDE HOME,"3,200.00",07/12/2023
Delivery Units,Adults and Health,Other Agencies - Third Party P,0090664117,THE WOODSIDE HOME,"3,200.00",07/12/2023
Delivery Units,Adults and Health,Other Agencies - Third Party P,0090664118,THE WOODSIDE HOME,"2,676.00",07/12/2023
Delivery Units,Adults and Health,Other Agencies - Third Party P,0090664119,THE WOODSIDE HOME,"2,540.00",07/12/2023
Delivery Units,Adults and Health,Other Agencies - Third Party P,0090664120,THE WOODSIDE HOME,"2,800.00",07/12/2023
Delivery Units,Adults and Health,Other Agencies - Third Party P,0090664122,EASTSIDE HOUSE CARE HOME,"3,800.00",07/12/2023
Delivery Units,Adults and Health,Other Agencies - Third Party P,0090664123,EASTSIDE HOUSE CARE HOME,"3,920.00",07/12/2023
Delivery Units,Adults and Health,Other Agencies - Third Party P,0090664124,EASTSIDE HOUSE CARE HOME,"3,720.00",07/12/2023
Delivery Units,Adults and Health,Other Agencies - Third Party P,0090664129,Allied Care (MH) Ltd,"5,168.00",07/12/2023
Delivery Units,Adults and Health,Other Agencies - Third Party P,0090664143,Ferrolake Ltd,"2,442.86",07/12/2023
Delivery Units,Adults and Health,Other Agencies - Third Party P,0090664159,Brownlow Enterprises Ltd,"3,462.86",07/12/2023
Delivery Units,Adults and Health,Other Agencies - Third Party P,0090664161,Brownlow Enterprises Ltd,"3,441.43",07/12/2023
Delivery Units,Adults and Health,Other Agencies - Third Party P,0090664162,Brownlow Enterprises Ltd,"3,707.14",07/12/2023
Delivery Units,Adults and Health,Other Agencies - Third Party P,0090664164,Brownlow Enterprises Ltd,"2,985.71",07/12/2023
Delivery Units,Adults and Health,Other Agencies - Third Party P,0090664166,Brownlow Enterprises Ltd,"3,707.14",07/12/2023
Delivery Units,Adults and Health,Other Agencies - Third Party P,0090664167,Brownlow Enterprises Ltd,"3,227.14",07/12/2023
Delivery Units,Adults and Health,Other Agencies - Third Party P,0090664168,Brownlow Enterprises Ltd,"4,071.43",07/12/2023
Delivery Units,Adults and Health,Other Agencies - Third Party P,0090664169,Brownlow Enterprises Ltd,"3,441.43",07/12/2023
Delivery Units,Adults and Health,Other Agencies - Third Party P,0090664170,Brownlow Enterprises Ltd,"3,462.86",07/12/2023
Delivery Units,Adults and Health,Other Agencies - Third Party P,0090664171,Brownlow Enterprises Ltd,"2,850.00",07/12/2023
Delivery Units,Adults and Health,Other Agencies - Third Party P,0090664172,Brownlow Enterprises Ltd,"2,442.86",07/12/2023
Delivery Units,Adults and Health,Other Agencies - Third Party P,0090664173,Brownlow Enterprises Ltd,"3,441.43",07/12/2023
Delivery Units,Adults and Health,Other Agencies - Third Party P,0090664174,Brownlow Enterprises Ltd,"3,935.71",07/12/2023
Delivery Units,Adults and Health,Other Agencies - Third Party P,0090664175,Brownlow Enterprises Ltd,"3,707.14",07/12/2023
Delivery Units,Adults and Health,Other Agencies - Third Party P,0090665576,METHODIST HOMES FOR THE AGED,"4,402.76",12/12/2023
Delivery Units,Adults and Health,Other Agencies - Third Party P,0090665968,THE WOODSIDE HOME,"3,400.00",12/12/2023
Delivery Units,Adults and Health,Other Agencies - Third Party P,0090665972,QUANTUM CARE LIMITED,"4,071.43",12/12/2023
Delivery Units,Adults and Health,Other Agencies - Third Party P,0090666097,NAZARETH HOUSE,"2,740.00",13/12/2023
Delivery Units,Adults and Health,Other Agencies - Third Party P,0090666099,ELM PARK LODGE,"3,384.92",13/12/2023
Delivery Units,Adults and Health,Other Agencies - Third Party P,0090666101,JEWISH CARE,"3,056.00",13/12/2023
Delivery Units,Adults and Health,Other Agencies - Third Party P,0090666111,THE LIMES RESIDENTIAL HOME,"3,376.00",13/12/2023
Delivery Units,Adults and Health,Other Agencies - Third Party P,0090666118,JEWISH CARE,"3,056.00",13/12/2023
Delivery Units,Adults and Health,Other Agencies - Third Party P,0090666119,JEWISH CARE,"3,056.00",13/12/2023
Delivery Units,Adults and Health,Other Agencies - Third Party P,0090666120,JEWISH CARE,"3,056.00",13/12/2023
Delivery Units,Adults and Health,Other Agencies - Third Party P,0090666123,THE LIMES RESIDENTIAL HOME,"3,336.00",13/12/2023
Delivery Units,Adults and Health,Other Agencies - Third Party P,0090666124,JEWISH CARE,"2,896.00",13/12/2023
Delivery Units,Adults and Health,Other Agencies - Third Party P,0090666128,JEWISH CARE,"2,896.00",13/12/2023
Delivery Units,Adults and Health,Other Agencies - Third Party P,0090666129,ELEANOR PALMER TRUST NO 2 A/C.,"4,400.00",13/12/2023
Delivery Units,Adults and Health,Other Agencies - Third Party P,0090666130,ELEANOR PALMER TRUST NO 2 A/C.,"4,400.00",13/12/2023
Delivery Units,Adults and Health,Other Agencies - Third Party P,0090666137,Aarandale Manor Care Home,"5,000.00",13/12/2023
Delivery Units,Adults and Health,Other Agencies - Third Party P,0090666139,JEWISH CARE,"3,720.36",13/12/2023
Delivery Units,Adults and Health,Other Agencies - Third Party P,0090666140,JEWISH CARE,"3,056.00",13/12/2023
Delivery Units,Adults and Health,Other Agencies - Third Party P,0090666141,NAZARETH HOUSE,"2,890.08",13/12/2023
Delivery Units,Adults and Health,Other Agencies - Third Party P,0090666145,BUPA NURSING HOMES LTD - ARKLEY,"3,166.36",13/12/2023
Delivery Units,Adults and Health,Other Agencies - Third Party P,0090666152,NAZARETH HOUSE,"2,740.00",13/12/2023
Delivery Units,Adults and Health,Other Agencies - Third Party P,0090666153,JEWISH CARE,"7,874.40",13/12/2023
Delivery Units,Adults and Health,Other Agencies - Third Party P,0090666156,ELMHURST RESIDENTIAL HOME,"4,000.00",13/12/2023
Delivery Units,Adults and Health,Other Agencies - Third Party P,0090666157,APPLE TREE COURT CARE HOME,"3,604.00",13/12/2023
Delivery Units,Adults and Health,Other Agencies - Third Party P,0090666167,NAZARETH HOUSE,"4,828.88",13/12/2023
Delivery Units,Adults and Health,Other Agencies - Third Party P,0090666174,JEWISH CARE,"3,056.00",13/12/2023
Delivery Units,Adults and Health,Other Agencies - Third Party P,0090666181,CEDARS NURSING HOME,"5,200.00",13/12/2023
Delivery Units,Adults and Health,Other Agencies - Third Party P,0090666183,CARE UK COMMUNITY PARTNERSHIPS,"-2,889.00",13/12/2023
Delivery Units,Adults and Health,Other Agencies - Third Party P,0090666193,CARE UK COMMUNITY PARTNERSHIPS,"4,127.14",13/12/2023
Delivery Units,Adults and Health,Other Agencies - Third Party P,0090666194,SAGE NURSING HOME,"3,256.00",13/12/2023
Delivery Units,Adults and Health,Other Agencies - Third Party P,0090666197,JEWISH CARE,"3,052.00",13/12/2023
Delivery Units,Adults and Health,Other Agencies - Third Party P,0090666200,NAZARETH HOUSE,"4,400.00",13/12/2023
Delivery Units,Adults and Health,Other Agencies - Third Party P,0090666208,NAZARETH HOUSE,"3,140.00",13/12/2023
Delivery Units,Adults and Health,Other Agencies - Third Party P,0090666215,BUPA CARE HOMES,"2,732.00",13/12/2023
Delivery Units,Adults and Health,Other Agencies - Third Party P,0090666221,ELEANOR PALMER TRUST NO 2 A/C.,"-1,428.57",13/12/2023
Delivery Units,Adults and Health,Other Agencies - Third Party P,0090666224,JEWISH CARE,"4,481.48",13/12/2023
Delivery Units,Adults and Health,Other Agencies - Third Party P,0090666227,JEWISH CARE,"3,056.00",13/12/2023
Delivery Units,Adults and Health,Other Agencies - Third Party P,0090666229,JEWISH CARE,"3,056.00",13/12/2023
Delivery Units,Adults and Health,Other Agencies - Third Party P,0090666241,JEWISH CARE,"3,056.00",13/12/2023
Delivery Units,Adults and Health,Other Agencies - Third Party P,0090666252,JEWISH CARE,"3,056.00",13/12/2023
Delivery Units,Adults and Health,Other Agencies - Third Party P,0090666256,JEWISH CARE,"5,286.40",13/12/2023
Delivery Units,Adults and Health,Other Agencies - Third Party P,0090666259,LIFESTYLE CARE PLC,"3,200.00",13/12/2023
Delivery Units,Adults and Health,Other Agencies - Third Party P,0090666260,ELMHURST RESIDENTIAL HOME,"3,800.00",13/12/2023
Delivery Units,Adults and Health,Other Agencies - Third Party P,0090666261,JEWISH CARE,"3,056.00",13/12/2023
Delivery Units,Adults and Health,Other Agencies - Third Party P,0090666266,NAZARETH HOUSE,"2,890.08",13/12/2023
Delivery Units,Adults and Health,Other Agencies - Third Party P,0090666267,JEWISH CARE,"2,896.00",13/12/2023
Delivery Units,Adults and Health,Other Agencies - Third Party P,0090666273,CEDARS NURSING HOME,"4,800.00",13/12/2023
Delivery Units,Adults and Health,Other Agencies - Third Party P,0090666275,JEWISH CARE,"3,056.00",13/12/2023
Delivery Units,Adults and Health,Other Agencies - Third Party P,0090666279,BUPA CARE HOMES,"3,577.92",13/12/2023
Delivery Units,Adults and Health,Other Agencies - Third Party P,0090666281,SAGE NURSING HOME,"3,620.00",13/12/2023
Delivery Units,Adults and Health,Other Agencies - Third Party P,0090666283,ELEANOR PALMER TRUST NO 2 A/C.,"4,400.00",13/12/2023
Delivery Units,Adults and Health,Other Agencies - Third Party P,0090666284,JEWISH CARE,"3,056.00",13/12/2023
Delivery Units,Adults and Health,Other Agencies - Third Party P,0090666286,NAZARETH HOUSE,"2,890.08",13/12/2023
Delivery Units,Adults and Health,Other Agencies - Third Party P,0090666291,ELMHURST RESIDENTIAL HOME,"3,600.00",13/12/2023
Delivery Units,Adults and Health,Other Agencies - Third Party P,0090666293,NAZARETH HOUSE,"2,740.00",13/12/2023
Delivery Units,Adults and Health,Other Agencies - Third Party P,0090666299,APPLE TREE COURT CARE HOME,"3,604.00",13/12/2023
Delivery Units,Adults and Health,Other Agencies - Third Party P,0090666300,APPLE TREE COURT CARE HOME,"3,604.00",13/12/2023
Delivery Units,Adults and Health,Other Agencies - Third Party P,0090666311,THE LIMES RESIDENTIAL HOME,"3,620.00",13/12/2023
Delivery Units,Adults and Health,Other Agencies - Third Party P,0090666315,JEWISH CARE,"2,896.00",13/12/2023
Delivery Units,Adults and Health,Other Agencies - Third Party P,0090666317,APPLE TREE COURT CARE HOME,"4,556.00",13/12/2023
Delivery Units,Adults and Health,Other Agencies - Third Party P,0090666321,LIFESTYLE CARE PLC,"3,604.00",13/12/2023
Delivery Units,Adults and Health,Other Agencies - Third Party P,0090666323,Aarandale Manor Care Home,"5,200.00",13/12/2023
Delivery Units,Adults and Health,Other Agencies - Third Party P,0090666335,NAZARETH HOUSE,"3,019.68",13/12/2023
Delivery Units,Adults and Health,Other Agencies - Third Party P,0090666337,CARE UK COMMUNITY PARTNERSHIPS,"3,852.00",13/12/2023
Delivery Units,Adults and Health,Other Agencies - Third Party P,0090666338,APPLE TREE COURT CARE HOME,"5,124.00",13/12/2023
Delivery Units,Adults and Health,Other Agencies - Third Party P,0090666340,NAZARETH HOUSE,"-21,784.83",13/12/2023
Delivery Units,Adults and Health,Other Agencies - Third Party P,0090666341,NAZARETH HOUSE,"3,019.68",13/12/2023
Delivery Units,Adults and Health,Other Agencies - Third Party P,0090666342,NAZARETH HOUSE,"3,140.00",13/12/2023
Delivery Units,Adults and Health,Other Agencies - Third Party P,0090666343,Aarandale Manor Care Home,"5,000.00",13/12/2023
Delivery Units,Adults and Health,Other Agencies - Third Party P,0090666345,THE LIMES RESIDENTIAL HOME,"3,400.00",13/12/2023
Delivery Units,Adults and Health,Other Agencies - Third Party P,0090666347,NAZARETH HOUSE,"2,890.08",13/12/2023
Delivery Units,Adults and Health,Other Agencies - Third Party P,0090666350,BUPA CARE HOMES,-113.08,13/12/2023
Delivery Units,Adults and Health,Other Agencies - Third Party P,0090666351,CEDARS NURSING HOME,"5,200.00",13/12/2023
Delivery Units,Adults and Health,Other Agencies - Third Party P,0090666366,NAZARETH HOUSE,"3,140.00",13/12/2023
Delivery Units,Adults and Health,Other Agencies - Third Party P,0090666369,ELMHURST RESIDENTIAL HOME,"3,800.00",13/12/2023
Delivery Units,Adults and Health,Other Agencies - Third Party P,0090666370,CARE UK COMMUNITY PARTNERSHIPS,"3,852.00",13/12/2023
Delivery Units,Adults and Health,Other Agencies - Third Party P,0090666379,ELM PARK LODGE,"3,500.00",13/12/2023
Delivery Units,Adults and Health,Other Agencies - Third Party P,0090666385,SAGE NURSING HOME,"2,856.00",13/12/2023
Delivery Units,Adults and Health,Other Agencies - Third Party P,0090666389,THE LIMES RESIDENTIAL HOME,"2,892.00",13/12/2023
Delivery Units,Adults and Health,Other Agencies - Third Party P,0090666394,THE LIMES RESIDENTIAL HOME,"2,892.00",13/12/2023
Delivery Units,Adults and Health,Other Agencies - Third Party P,0090666400,ELEANOR PALMER TRUST NO 2 A/C.,"4,400.00",13/12/2023
Delivery Units,Adults and Health,Other Agencies - Third Party P,0090666404,ELEANOR PALMER TRUST NO 2 A/C.,"4,000.00",13/12/2023
Delivery Units,Adults and Health,Other Agencies - Third Party P,0090666406,JEWISH CARE,"2,896.00",13/12/2023
Delivery Units,Adults and Health,Other Agencies - Third Party P,0090666407,JEWISH CARE,"3,056.00",13/12/2023
Delivery Units,Adults and Health,Other Agencies - Third Party P,0090666411,APPLE TREE COURT CARE HOME,"4,400.00",13/12/2023
Delivery Units,Adults and Health,Other Agencies - Third Party P,0090666412,JEWISH CARE,"3,056.00",13/12/2023
Delivery Units,Adults and Health,Other Agencies - Third Party P,0090666413,ABBEY RAVENSCROFT PARK NURSING HOME,"4,032.20",13/12/2023
Delivery Units,Adults and Health,Other Agencies - Third Party P,0090666414,JEWISH CARE,"2,896.00",13/12/2023
Delivery Units,Adults and Health,Other Agencies - Third Party P,0090666416,JEWISH CARE,"3,056.00",13/12/2023
Delivery Units,Adults and Health,Other Agencies - Third Party P,0090666417,JEWISH CARE,"3,056.00",13/12/2023
Delivery Units,Adults and Health,Other Agencies - Third Party P,0090666420,ELEANOR PALMER TRUST NO 2 A/C.,"4,400.00",13/12/2023
Delivery Units,Adults and Health,Other Agencies - Third Party P,0090666422,BUPA CARE HOMES,"2,976.00",13/12/2023
Delivery Units,Adults and Health,Other Agencies - Third Party P,0090666423,LIFESTYLE CARE PLC,"3,600.00",13/12/2023
Delivery Units,Adults and Health,Other Agencies - Third Party P,0090666425,NAZARETH HOUSE,"2,890.08",13/12/2023
Delivery Units,Adults and Health,Other Agencies - Third Party P,0090666428,BUPA CARE HOMES,"3,166.36",13/12/2023
Delivery Units,Adults and Health,Other Agencies - Third Party P,0090666429,JEWISH CARE,"2,896.00",13/12/2023
Delivery Units,Adults and Health,Other Agencies - Third Party P,0090666438,ELEANOR PALMER TRUST NO 2 A/C.,"4,000.00",13/12/2023
Delivery Units,Adults and Health,Other Agencies - Third Party P,0090666455,CEDARS NURSING HOME,"4,000.00",13/12/2023
Delivery Units,Adults and Health,Other Agencies - Third Party P,0090666466,JEWISH CARE,"3,056.00",13/12/2023
Delivery Units,Adults and Health,Other Agencies - Third Party P,0090666470,THE LIMES RESIDENTIAL HOME,"3,336.00",13/12/2023
Delivery Units,Adults and Health,Other Agencies - Third Party P,0090666472,NAZARETH HOUSE,"2,890.08",13/12/2023
Delivery Units,Adults and Health,Other Agencies - Third Party P,0090666475,NAZARETH HOUSE,"4,104.00",13/12/2023
Delivery Units,Adults and Health,Other Agencies - Third Party P,0090666476,JEWISH CARE,"3,056.00",13/12/2023
Delivery Units,Adults and Health,Other Agencies - Third Party P,0090666479,JEWISH CARE,"2,896.00",13/12/2023
Delivery Units,Adults and Health,Other Agencies - Third Party P,0090666481,NAZARETH HOUSE,"2,740.00",13/12/2023
Delivery Units,Adults and Health,Other Agencies - Third Party P,0090666483,THE LIMES RESIDENTIAL HOME,"3,336.00",13/12/2023
Delivery Units,Adults and Health,Other Agencies - Third Party P,0090666484,NAZARETH HOUSE,"2,890.08",13/12/2023
Delivery Units,Adults and Health,Other Agencies - Third Party P,0090666486,JEWISH CARE,"3,056.00",13/12/2023
Delivery Units,Adults and Health,Other Agencies - Third Party P,0090666491,NAZARETH HOUSE,"2,740.00",13/12/2023
Delivery Units,Adults and Health,Other Agencies - Third Party P,0090666492,NAZARETH HOUSE,"2,890.08",13/12/2023
Delivery Units,Adults and Health,Other Agencies - Third Party P,0090666498,APPLE TREE COURT CARE HOME,"3,800.00",13/12/2023
Delivery Units,Adults and Health,Other Agencies - Third Party P,0090666499,THE LIMES RESIDENTIAL HOME,"3,416.00",13/12/2023
Delivery Units,Adults and Health,Other Agencies - Third Party P,0090666505,ELEANOR PALMER TRUST NO 2 A/C.,"4,000.00",13/12/2023
Delivery Units,Adults and Health,Other Agencies - Third Party P,0090666513,JEWISH CARE,"3,056.00",13/12/2023
Delivery Units,Adults and Health,Other Agencies - Third Party P,0090666517,BUPA CARE HOMES,"4,000.00",13/12/2023
Delivery Units,Adults and Health,Other Agencies - Third Party P,0090666526,JEWISH CARE,"3,056.00",13/12/2023
Delivery Units,Adults and Health,Other Agencies - Third Party P,0090666530,JEWISH CARE,573.57,13/12/2023
Delivery Units,Adults and Health,Other Agencies - Third Party P,0090666531,JEWISH CARE,"3,056.00",13/12/2023
Delivery Units,Adults and Health,Other Agencies - Third Party P,0090666542,JEWISH CARE,"3,056.00",13/12/2023
Delivery Units,Adults and Health,Other Agencies - Third Party P,0090666543,NAZARETH HOUSE,"6,167.85",13/12/2023
Delivery Units,Adults and Health,Other Agencies - Third Party P,0090666552,NAZARETH HOUSE,"3,140.00",13/12/2023
Delivery Units,Adults and Health,Other Agencies - Third Party P,0090666553,NAZARETH HOUSE,"3,140.00",13/12/2023
Delivery Units,Adults and Health,Other Agencies - Third Party P,0090666555,NAZARETH HOUSE,"3,588.57",13/12/2023
Delivery Units,Adults and Health,Other Agencies - Third Party P,0090666558,THE LIMES RESIDENTIAL HOME,"17,371.43",13/12/2023
Delivery Units,Adults and Health,Other Agencies - Third Party P,0090666559,THE LIMES RESIDENTIAL HOME,"3,436.00",13/12/2023
Delivery Units,Adults and Health,Other Agencies - Third Party P,0090666565,NAZARETH HOUSE,"2,890.08",13/12/2023
Delivery Units,Adults and Health,Other Agencies - Third Party P,0090666566,JEWISH CARE,"3,056.00",13/12/2023
Delivery Units,Adults and Health,Other Agencies - Third Party P,0090666569,NAZARETH HOUSE,"2,890.08",13/12/2023
Delivery Units,Adults and Health,Other Agencies - Third Party P,0090666573,ELEANOR PALMER TRUST NO 2 A/C.,"4,400.00",13/12/2023
Delivery Units,Adults and Health,Other Agencies - Third Party P,0090666585,JEWISH CARE,"3,212.00",13/12/2023
Delivery Units,Adults and Health,Other Agencies - Third Party P,0090666589,APPLE TREE COURT CARE HOME,"5,124.00",13/12/2023
Delivery Units,Adults and Health,Other Agencies - Third Party P,0090666603,THE LIMES RESIDENTIAL HOME,"3,620.00",13/12/2023
Delivery Units,Adults and Health,Other Agencies - Third Party P,0090666610,CARE UK COMMUNITY PARTNERSHIPS,"3,852.00",13/12/2023
Delivery Units,Adults and Health,Other Agencies - Third Party P,0090666612,NAZARETH HOUSE,"3,140.00",13/12/2023
Delivery Units,Adults and Health,Other Agencies - Third Party P,0090666613,JEWISH CARE,"3,017.80",13/12/2023
Delivery Units,Adults and Health,Other Agencies - Third Party P,0090666619,JEWISH CARE,"1,962.00",13/12/2023
Delivery Units,Adults and Health,Other Agencies - Third Party P,0090666620,ELM PARK LODGE,"3,400.00",13/12/2023
Delivery Units,Adults and Health,Other Agencies - Third Party P,0090666628,NAZARETH HOUSE,"3,140.00",13/12/2023
Delivery Units,Adults and Health,Other Agencies - Third Party P,0090666632,JEWISH CARE,"5,886.00",13/12/2023
Delivery Units,Adults and Health,Other Agencies - Third Party P,0090666633,NAZARETH HOUSE,"5,943.57",13/12/2023
Delivery Units,Adults and Health,Other Agencies - Third Party P,0090666634,NAZARETH HOUSE,224.29,13/12/2023
Delivery Units,Adults and Health,Other Agencies - Third Party P,0090666637,CARE UK COMMUNITY PARTNERSHIPS,"3,576.86",13/12/2023
Delivery Units,Adults and Health,Other Agencies - Third Party P,0090666640,NAZARETH HOUSE,"19,400.71",13/12/2023
Delivery Units,Adults and Health,Other Agencies - Third Party P,0090666643,CARE UK COMMUNITY PARTNERSHIPS,"2,889.00",13/12/2023
Delivery Units,Adults and Health,Other Agencies - Third Party P,0090666649,JEWISH CARE,"3,206.29",13/12/2023
Delivery Units,Adults and Health,Other Agencies - Third Party P,0090666828,EASTSIDE HOUSE CARE HOME,"3,800.00",14/12/2023
Delivery Units,Adults and Health,Other Agencies - Third Party P,0090666829,EASTSIDE HOUSE CARE HOME,"3,800.00",14/12/2023
Delivery Units,Adults and Health,Other Agencies - Third Party P,0090666832,TORRINGTON HOMES,"4,207.14",14/12/2023
Delivery Units,Adults and Health,Other Agencies - Third Party P,0090666835,TORRINGTON HOMES,"2,448.78",14/12/2023
Delivery Units,Adults and Health,Other Agencies - Third Party P,0090666838,TORRINGTON HOMES,"4,207.14",14/12/2023
Delivery Units,Adults and Health,Other Agencies - Third Party P,0090666856,Brownlow Enterprises Ltd,"3,985.67",14/12/2023
Delivery Units,Adults and Health,Other Agencies - Third Party P,0090666857,Brownlow Enterprises Ltd,"3,830.67",14/12/2023
Delivery Units,Adults and Health,Other Agencies - Third Party P,0090666858,Brownlow Enterprises Ltd,"3,578.33",14/12/2023
Delivery Units,Adults and Health,Other Agencies - Third Party P,0090666859,Brownlow Enterprises Ltd,"3,830.67",14/12/2023
Delivery Units,Adults and Health,Other Agencies - Third Party P,0090666860,Brownlow Enterprises Ltd,"3,556.01",14/12/2023
Delivery Units,Adults and Health,Other Agencies - Third Party P,0090666863,Brownlow Enterprises Ltd,"4,071.43",14/12/2023
Delivery Units,Adults and Health,Other Agencies - Third Party P,0090666864,Brownlow Enterprises Ltd,"3,334.67",14/12/2023
Delivery Units,Adults and Health,Other Agencies - Third Party P,0090666865,Brownlow Enterprises Ltd,"3,830.71",14/12/2023
Delivery Units,Adults and Health,Other Agencies - Third Party P,0090667102,Karuna Manor,"6,642.86",14/12/2023
Delivery Units,Adults and Health,Other Agencies - Third Party P,0090667104,Karuna Manor,"4,207.14",14/12/2023
Delivery Units,Adults and Health,Other Agencies - Third Party P,0090667106,METHODIST HOMES FOR THE AGED,"4,208.88",14/12/2023
Delivery Units,Adults and Health,Other Agencies - Third Party P,0090667107,Hillyfield Rest Home Limited,"4,871.34",14/12/2023
Delivery Units,Adults and Health,Other Agencies - Third Party P,0090667108,Hillyfield Rest Home Limited,"4,871.34",14/12/2023
Delivery Units,Adults and Health,Other Agencies - Third Party P,0090667123,THE CHRISTIAN CARE TRUST,"4,317.85",14/12/2023
Delivery Units,Adults and Health,Other Agencies - Third Party P,0090667139,Green Trees Care Home,"4,003.40",14/12/2023
Delivery Units,Adults and Health,Other Agencies - Third Party P,0090667148,Westbourne Care Home,"7,918.29",14/12/2023
Delivery Units,Adults and Health,Other Agencies - Third Party P,0090667162,Brownlow Enterprises Ltd,"4,207.14",14/12/2023
Delivery Units,Adults and Health,Other Agencies - Third Party P,0090667163,Brownlow Enterprises Ltd,"3,578.33",14/12/2023
Delivery Units,Adults and Health,Other Agencies - Third Party P,0090667164,Brownlow Enterprises Ltd,"3,556.01",14/12/2023
Delivery Units,Adults and Health,Other Agencies - Third Party P,0090667165,Brownlow Enterprises Ltd,"3,556.01",14/12/2023
Delivery Units,Adults and Health,Other Agencies - Third Party P,0090669322,B & M CARE,"4,207.14",20/12/2023
Delivery Units,Adults and Health,Other Agencies - Third Party P,0090669323,B & M CARE,"4,295.71",20/12/2023
Delivery Units,Adults and Health,Other Agencies - Third Party P,0090669325,B & M CARE,"5,314.29",20/12/2023
Delivery Units,Adults and Health,Other Agencies - Third Party P,0090669326,B & M CARE,"3,764.29",20/12/2023
Delivery Units,Adults and Health,Other Agencies - Third Party P,0090670225,Bupa Care Homes (AKW) Limited,"3,400.00",27/12/2023
Delivery Units,Adults and Health,Other Agencies - Third Party P,0090670226,Bupa Care Homes (AKW) Limited,"3,400.00",27/12/2023
Delivery Units,Adults and Health,Other Agencies - Third Party P,0090670227,Bupa Care Homes (AKW) Limited,"1,578.57",27/12/2023
Delivery Units,Adults and Health,Other Agencies - Third Party P,0090671940,Green Trees Care Home,"4,384.33",29/12/2023
Delivery Units,Adults and Health,Other Agencies - Third Party P,0090656175,Thames Homecare Services Ltd,"-7,214.98",07/12/2023
Delivery Units,Adults and Health,Other Agencies - Third Party P,0090660825,Bliss Care and Training Ltd,630.00,04/12/2023
Delivery Units,Adults and Health,Other Agencies - Third Party P,0090660826,Bliss Care and Training Ltd,351.00,04/12/2023
Delivery Units,Adults and Health,Other Agencies - Third Party P,0090660827,Bliss Care and Training Ltd,256.50,04/12/2023
Delivery Units,Adults and Health,Other Agencies - Third Party P,0090660828,Bliss Care and Training Ltd,36.00,04/12/2023
Delivery Units,Adults and Health,Other Agencies - Third Party P,0090660831,Bliss Care and Training Ltd,81.00,04/12/2023
Delivery Units,Adults and Health,Other Agencies - Third Party P,0090660834,Bliss Care and Training Ltd,63.00,04/12/2023
Delivery Units,Adults and Health,Other Agencies - Third Party P,0090660841,Bliss Care and Training Ltd,157.50,04/12/2023
Delivery Units,Adults and Health,Other Agencies - Third Party P,0090660842,Bliss Care and Training Ltd,189.00,04/12/2023
Delivery Units,Adults and Health,Other Agencies - Third Party P,0090660843,Bliss Care and Training Ltd,495.00,04/12/2023
Delivery Units,Adults and Health,Other Agencies - Third Party P,0090660844,Bliss Care and Training Ltd,162.00,04/12/2023
Delivery Units,Adults and Health,Other Agencies - Third Party P,0090660845,Bliss Care and Training Ltd,220.50,04/12/2023
Delivery Units,Adults and Health,Other Agencies - Third Party P,0090660846,Bliss Care and Training Ltd,18.00,04/12/2023
Delivery Units,Adults and Health,Other Agencies - Third Party P,0090660848,Bliss Care and Training Ltd,333.00,04/12/2023
Delivery Units,Adults and Health,Other Agencies - Third Party P,0090660850,Bliss Care and Training Ltd,252.00,04/12/2023
Delivery Units,Adults and Health,Other Agencies - Third Party P,0090660851,Bliss Care and Training Ltd,94.50,04/12/2023
Delivery Units,Adults and Health,Other Agencies - Third Party P,0090660853,Bliss Care and Training Ltd,126.00,04/12/2023
Delivery Units,Adults and Health,Other Agencies - Third Party P,0090660855,Bliss Care and Training Ltd,63.00,04/12/2023
Delivery Units,Adults and Health,Other Agencies - Third Party P,0090660856,Bliss Care and Training Ltd,126.00,04/12/2023
Delivery Units,Adults and Health,Other Agencies - Third Party P,0090660857,Bliss Care and Training Ltd,504.00,04/12/2023
Delivery Units,Adults and Health,Other Agencies - Third Party P,0090660858,Bliss Care and Training Ltd,63.00,04/12/2023
Delivery Units,Adults and Health,Other Agencies - Third Party P,0090660859,Bliss Care and Training Ltd,157.50,04/12/2023
Delivery Units,Adults and Health,Other Agencies - Third Party P,0090660860,Bliss Care and Training Ltd,153.00,04/12/2023
Delivery Units,Adults and Health,Other Agencies - Third Party P,0090660861,Bliss Care and Training Ltd,94.50,04/12/2023
Delivery Units,Adults and Health,Other Agencies - Third Party P,0090660862,Bliss Care and Training Ltd,139.50,04/12/2023
Delivery Units,Adults and Health,Other Agencies - Third Party P,0090660863,Bliss Care and Training Ltd,283.50,04/12/2023
Delivery Units,Adults and Health,Other Agencies - Third Party P,0090660864,Bliss Care and Training Ltd,684.00,04/12/2023
Delivery Units,Adults and Health,Other Agencies - Third Party P,0090660865,Bliss Care and Training Ltd,220.50,04/12/2023
Delivery Units,Adults and Health,Other Agencies - Third Party P,0090660866,Bliss Care and Training Ltd,207.00,04/12/2023
Delivery Units,Adults and Health,Other Agencies - Third Party P,0090660867,Bliss Care and Training Ltd,441.00,04/12/2023
Delivery Units,Adults and Health,Other Agencies - Third Party P,0090660868,Bliss Care and Training Ltd,283.50,04/12/2023
Delivery Units,Adults and Health,Other Agencies - Third Party P,0090660869,Bliss Care and Training Ltd,378.00,04/12/2023
Delivery Units,Adults and Health,Other Agencies - Third Party P,0090660872,Bliss Care and Training Ltd,220.50,04/12/2023
Delivery Units,Adults and Health,Other Agencies - Third Party P,0090660875,Bliss Care and Training Ltd,252.00,04/12/2023
Delivery Units,Adults and Health,Other Agencies - Third Party P,0090660876,Bliss Care and Training Ltd,157.50,04/12/2023
Delivery Units,Adults and Health,Other Agencies - Third Party P,0090660877,Bliss Care and Training Ltd,189.00,04/12/2023
Delivery Units,Adults and Health,Other Agencies - Third Party P,0090660878,Bliss Care and Training Ltd,346.50,04/12/2023
Delivery Units,Adults and Health,Other Agencies - Third Party P,0090660879,Bliss Care and Training Ltd,315.00,04/12/2023
Delivery Units,Adults and Health,Other Agencies - Third Party P,0090660880,Bliss Care and Training Ltd,157.50,04/12/2023
Delivery Units,Adults and Health,Other Agencies - Third Party P,0090660881,Bliss Care and Training Ltd,940.50,04/12/2023
Delivery Units,Adults and Health,Other Agencies - Third Party P,0090660882,Bliss Care and Training Ltd,724.50,04/12/2023
Delivery Units,Adults and Health,Other Agencies - Third Party P,0090660884,Bliss Care and Training Ltd,306.00,04/12/2023
Delivery Units,Adults and Health,Other Agencies - Third Party P,0090660885,Bliss Care and Training Ltd,108.00,04/12/2023
Delivery Units,Adults and Health,Other Agencies - Third Party P,0090660887,Bliss Care and Training Ltd,90.00,04/12/2023
Delivery Units,Adults and Health,Other Agencies - Third Party P,0090660888,Bliss Care and Training Ltd,162.00,04/12/2023
Delivery Units,Adults and Health,Other Agencies - Third Party P,0090660889,Bliss Care and Training Ltd,238.50,04/12/2023
Delivery Units,Adults and Health,Other Agencies - Third Party P,0090660890,Bliss Care and Training Ltd,364.50,04/12/2023
Delivery Units,Adults and Health,Other Agencies - Third Party P,0090660891,Bliss Care and Training Ltd,157.50,04/12/2023
Delivery Units,Adults and Health,Other Agencies - Third Party P,0090660892,Bliss Care and Training Ltd,378.00,04/12/2023
Delivery Units,Adults and Health,Other Agencies - Third Party P,0090660893,Bliss Care and Training Ltd,126.00,04/12/2023
Delivery Units,Adults and Health,Other Agencies - Third Party P,0090660894,Bliss Care and Training Ltd,189.00,04/12/2023
Delivery Units,Adults and Health,Other Agencies - Third Party P,0090660895,Bliss Care and Training Ltd,441.00,04/12/2023
Delivery Units,Adults and Health,Other Agencies - Third Party P,0090660896,Bliss Care and Training Ltd,315.00,04/12/2023
Delivery Units,Adults and Health,Other Agencies - Third Party P,0090660897,Bliss Care and Training Ltd,22.50,04/12/2023
Delivery Units,Adults and Health,Other Agencies - Third Party P,0090660899,Bliss Care and Training Ltd,94.50,04/12/2023
Delivery Units,Adults and Health,Other Agencies - Third Party P,0090660903,Bliss Care and Training Ltd,63.00,04/12/2023
Delivery Units,Adults and Health,Other Agencies - Third Party P,0090660906,Bliss Care and Training Ltd,256.50,04/12/2023
Delivery Units,Adults and Health,Other Agencies - Third Party P,0090660907,Bliss Care and Training Ltd,148.50,04/12/2023
Delivery Units,Adults and Health,Other Agencies - Third Party P,0090660908,Bliss Care and Training Ltd,252.00,04/12/2023
Delivery Units,Adults and Health,Other Agencies - Third Party P,0090660909,Bliss Care and Training Ltd,378.00,04/12/2023
Delivery Units,Adults and Health,Other Agencies - Third Party P,0090660915,Bliss Care and Training Ltd,220.50,04/12/2023
Delivery Units,Adults and Health,Other Agencies - Third Party P,0090660920,Bliss Care and Training Ltd,693.00,04/12/2023
Delivery Units,Adults and Health,Other Agencies - Third Party P,0090660922,Bliss Care and Training Ltd,90.00,04/12/2023
Delivery Units,Adults and Health,Other Agencies - Third Party P,0090660934,Bliss Care and Training Ltd,126.00,04/12/2023
Delivery Units,Adults and Health,Other Agencies - Third Party P,0090660935,Bliss Care and Training Ltd,504.00,04/12/2023
Delivery Units,Adults and Health,Other Agencies - Third Party P,0090660936,Bliss Care and Training Ltd,252.00,04/12/2023
Delivery Units,Adults and Health,Other Agencies - Third Party P,0090660955,Bliss Care and Training Ltd,94.50,04/12/2023
Delivery Units,Adults and Health,Other Agencies - Third Party P,0090660958,Bliss Care and Training Ltd,126.00,04/12/2023
Delivery Units,Adults and Health,Other Agencies - Third Party P,0090660959,Bliss Care and Training Ltd,22.50,04/12/2023
Delivery Units,Adults and Health,Other Agencies - Third Party P,0090660965,Bliss Care and Training Ltd,135.00,04/12/2023
Delivery Units,Adults and Health,Other Agencies - Third Party P,0090660969,Bliss Care and Training Ltd,202.50,04/12/2023
Delivery Units,Adults and Health,Other Agencies - Third Party P,0090660976,Bliss Care and Training Ltd,126.00,04/12/2023
Delivery Units,Adults and Health,Other Agencies - Third Party P,0090660978,Bliss Care and Training Ltd,378.00,04/12/2023
Delivery Units,Adults and Health,Other Agencies - Third Party P,0090660979,Bliss Care and Training Ltd,157.50,04/12/2023
Delivery Units,Adults and Health,Other Agencies - Third Party P,0090660981,Bliss Care and Training Ltd,315.00,04/12/2023
Delivery Units,Adults and Health,Other Agencies - Third Party P,0090660982,Bliss Care and Training Ltd,378.00,04/12/2023
Delivery Units,Adults and Health,Other Agencies - Third Party P,0090660983,Bliss Care and Training Ltd,261.00,04/12/2023
Delivery Units,Adults and Health,Other Agencies - Third Party P,0090660984,Bliss Care and Training Ltd,630.00,04/12/2023
Delivery Units,Adults and Health,Other Agencies - Third Party P,0090660985,Bliss Care and Training Ltd,351.00,04/12/2023
Delivery Units,Adults and Health,Other Agencies - Third Party P,0090660986,Bliss Care and Training Ltd,256.50,04/12/2023
Delivery Units,Adults and Health,Other Agencies - Third Party P,0090660987,Bliss Care and Training Ltd,36.00,04/12/2023
Delivery Units,Adults and Health,Other Agencies - Third Party P,0090660990,Bliss Care and Training Ltd,81.00,04/12/2023
Delivery Units,Adults and Health,Other Agencies - Third Party P,0090660993,Bliss Care and Training Ltd,63.00,04/12/2023
Delivery Units,Adults and Health,Other Agencies - Third Party P,0090661000,Bliss Care and Training Ltd,157.50,04/12/2023
Delivery Units,Adults and Health,Other Agencies - Third Party P,0090661001,Bliss Care and Training Ltd,189.00,04/12/2023
Delivery Units,Adults and Health,Other Agencies - Third Party P,0090661002,Bliss Care and Training Ltd,495.00,04/12/2023
Delivery Units,Adults and Health,Other Agencies - Third Party P,0090661003,Bliss Care and Training Ltd,162.00,04/12/2023
Delivery Units,Adults and Health,Other Agencies - Third Party P,0090661004,Bliss Care and Training Ltd,220.50,04/12/2023
Delivery Units,Adults and Health,Other Agencies - Third Party P,0090661005,Bliss Care and Training Ltd,18.00,04/12/2023
Delivery Units,Adults and Health,Other Agencies - Third Party P,0090661007,Bliss Care and Training Ltd,333.00,04/12/2023
Delivery Units,Adults and Health,Other Agencies - Third Party P,0090661009,Bliss Care and Training Ltd,252.00,04/12/2023
Delivery Units,Adults and Health,Other Agencies - Third Party P,0090661010,Bliss Care and Training Ltd,94.50,04/12/2023
Delivery Units,Adults and Health,Other Agencies - Third Party P,0090661012,Bliss Care and Training Ltd,126.00,04/12/2023
Delivery Units,Adults and Health,Other Agencies - Third Party P,0090661014,Bliss Care and Training Ltd,63.00,04/12/2023
Delivery Units,Adults and Health,Other Agencies - Third Party P,0090661015,Bliss Care and Training Ltd,126.00,04/12/2023
Delivery Units,Adults and Health,Other Agencies - Third Party P,0090661016,Bliss Care and Training Ltd,504.00,04/12/2023
Delivery Units,Adults and Health,Other Agencies - Third Party P,0090661017,Bliss Care and Training Ltd,72.00,04/12/2023
Delivery Units,Adults and Health,Other Agencies - Third Party P,0090661018,Bliss Care and Training Ltd,63.00,04/12/2023
Delivery Units,Adults and Health,Other Agencies - Third Party P,0090661019,Bliss Care and Training Ltd,157.50,04/12/2023
Delivery Units,Adults and Health,Other Agencies - Third Party P,0090661020,Bliss Care and Training Ltd,153.00,04/12/2023
Delivery Units,Adults and Health,Other Agencies - Third Party P,0090661021,Bliss Care and Training Ltd,94.50,04/12/2023
Delivery Units,Adults and Health,Other Agencies - Third Party P,0090661022,Bliss Care and Training Ltd,139.50,04/12/2023
Delivery Units,Adults and Health,Other Agencies - Third Party P,0090661023,Bliss Care and Training Ltd,283.50,04/12/2023
Delivery Units,Adults and Health,Other Agencies - Third Party P,0090661024,Bliss Care and Training Ltd,684.00,04/12/2023
Delivery Units,Adults and Health,Other Agencies - Third Party P,0090661025,Bliss Care and Training Ltd,220.50,04/12/2023
Delivery Units,Adults and Health,Other Agencies - Third Party P,0090661026,Bliss Care and Training Ltd,441.00,04/12/2023
Delivery Units,Adults and Health,Other Agencies - Third Party P,0090661027,Bliss Care and Training Ltd,283.50,04/12/2023
Delivery Units,Adults and Health,Other Agencies - Third Party P,0090661028,Bliss Care and Training Ltd,378.00,04/12/2023
Delivery Units,Adults and Health,Other Agencies - Third Party P,0090661031,Bliss Care and Training Ltd,220.50,04/12/2023
Delivery Units,Adults and Health,Other Agencies - Third Party P,0090661034,Bliss Care and Training Ltd,252.00,04/12/2023
Delivery Units,Adults and Health,Other Agencies - Third Party P,0090661035,Bliss Care and Training Ltd,157.50,04/12/2023
Delivery Units,Adults and Health,Other Agencies - Third Party P,0090661036,Bliss Care and Training Ltd,189.00,04/12/2023
Delivery Units,Adults and Health,Other Agencies - Third Party P,0090661037,Bliss Care and Training Ltd,346.50,04/12/2023
Delivery Units,Adults and Health,Other Agencies - Third Party P,0090661038,Bliss Care and Training Ltd,315.00,04/12/2023
Delivery Units,Adults and Health,Other Agencies - Third Party P,0090661039,Bliss Care and Training Ltd,157.50,04/12/2023
Delivery Units,Adults and Health,Other Agencies - Third Party P,0090661040,Bliss Care and Training Ltd,580.50,04/12/2023
Delivery Units,Adults and Health,Other Agencies - Third Party P,0090661041,Bliss Care and Training Ltd,724.50,04/12/2023
Delivery Units,Adults and Health,Other Agencies - Third Party P,0090661043,Bliss Care and Training Ltd,306.00,04/12/2023
Delivery Units,Adults and Health,Other Agencies - Third Party P,0090661044,Bliss Care and Training Ltd,67.50,04/12/2023
Delivery Units,Adults and Health,Other Agencies - Third Party P,0090661046,Bliss Care and Training Ltd,90.00,04/12/2023
Delivery Units,Adults and Health,Other Agencies - Third Party P,0090661047,Bliss Care and Training Ltd,162.00,04/12/2023
Delivery Units,Adults and Health,Other Agencies - Third Party P,0090661048,Bliss Care and Training Ltd,238.50,04/12/2023
Delivery Units,Adults and Health,Other Agencies - Third Party P,0090661049,Bliss Care and Training Ltd,405.00,04/12/2023
Delivery Units,Adults and Health,Other Agencies - Third Party P,0090661050,Bliss Care and Training Ltd,157.50,04/12/2023
Delivery Units,Adults and Health,Other Agencies - Third Party P,0090661051,Bliss Care and Training Ltd,378.00,04/12/2023
Delivery Units,Adults and Health,Other Agencies - Third Party P,0090661052,Bliss Care and Training Ltd,126.00,04/12/2023
Delivery Units,Adults and Health,Other Agencies - Third Party P,0090661053,Bliss Care and Training Ltd,189.00,04/12/2023
Delivery Units,Adults and Health,Other Agencies - Third Party P,0090661054,Bliss Care and Training Ltd,441.00,04/12/2023
Delivery Units,Adults and Health,Other Agencies - Third Party P,0090661055,Bliss Care and Training Ltd,315.00,04/12/2023
Delivery Units,Adults and Health,Other Agencies - Third Party P,0090661056,Bliss Care and Training Ltd,22.50,04/12/2023
Delivery Units,Adults and Health,Other Agencies - Third Party P,0090661058,Bliss Care and Training Ltd,94.50,04/12/2023
Delivery Units,Adults and Health,Other Agencies - Third Party P,0090661061,Bliss Care and Training Ltd,63.00,04/12/2023
Delivery Units,Adults and Health,Other Agencies - Third Party P,0090661064,Bliss Care and Training Ltd,256.50,04/12/2023
Delivery Units,Adults and Health,Other Agencies - Third Party P,0090661065,Bliss Care and Training Ltd,310.50,04/12/2023
Delivery Units,Adults and Health,Other Agencies - Third Party P,0090661066,Bliss Care and Training Ltd,252.00,04/12/2023
Delivery Units,Adults and Health,Other Agencies - Third Party P,0090661067,Bliss Care and Training Ltd,378.00,04/12/2023
Delivery Units,Adults and Health,Other Agencies - Third Party P,0090661072,Bliss Care and Training Ltd,13.50,04/12/2023
Delivery Units,Adults and Health,Other Agencies - Third Party P,0090661076,Bliss Care and Training Ltd,207.00,04/12/2023
Delivery Units,Adults and Health,Other Agencies - Third Party P,0090661078,Bliss Care and Training Ltd,90.00,04/12/2023
Delivery Units,Adults and Health,Other Agencies - Third Party P,0090661090,Bliss Care and Training Ltd,126.00,04/12/2023
Delivery Units,Adults and Health,Other Agencies - Third Party P,0090661091,Bliss Care and Training Ltd,504.00,04/12/2023
Delivery Units,Adults and Health,Other Agencies - Third Party P,0090661092,Bliss Care and Training Ltd,252.00,04/12/2023
Delivery Units,Adults and Health,Other Agencies - Third Party P,0090661099,Bliss Care and Training Ltd,252.00,04/12/2023
Delivery Units,Adults and Health,Other Agencies - Third Party P,0090661110,Bliss Care and Training Ltd,94.50,04/12/2023
Delivery Units,Adults and Health,Other Agencies - Third Party P,0090661113,Bliss Care and Training Ltd,126.00,04/12/2023
Delivery Units,Adults and Health,Other Agencies - Third Party P,0090661139,Bliss Care and Training Ltd,126.00,04/12/2023
Delivery Units,Adults and Health,Other Agencies - Third Party P,0090661144,Bliss Care and Training Ltd,378.00,04/12/2023
Delivery Units,Adults and Health,Other Agencies - Third Party P,0090661145,Bliss Care and Training Ltd,157.50,04/12/2023
Delivery Units,Adults and Health,Other Agencies - Third Party P,0090661147,Bliss Care and Training Ltd,315.00,04/12/2023
Delivery Units,Adults and Health,Other Agencies - Third Party P,0090661148,Bliss Care and Training Ltd,378.00,04/12/2023
Delivery Units,Adults and Health,Other Agencies - Third Party P,0090661149,Bliss Care and Training Ltd,72.00,04/12/2023
Delivery Units,Adults and Health,Other Agencies - Third Party P,0090661153,Homecare Alliance Ltd,"3,448.52",04/12/2023
Delivery Units,Adults and Health,Other Agencies - Third Party P,0090661154,Homecare Alliance Ltd,"3,149.04",04/12/2023
Delivery Units,Adults and Health,Other Agencies - Third Party P,0090661204,Servesoul Limited,267.26,04/12/2023
Delivery Units,Adults and Health,Other Agencies - Third Party P,0090661205,Servesoul Limited,534.52,04/12/2023
Delivery Units,Adults and Health,Other Agencies - Third Party P,0090661207,Servesoul Limited,133.63,04/12/2023
Delivery Units,Adults and Health,Other Agencies - Third Party P,0090661209,Servesoul Limited,501.11,04/12/2023
Delivery Units,Adults and Health,Other Agencies - Third Party P,0090661210,Servesoul Limited,133.63,04/12/2023
Delivery Units,Adults and Health,Other Agencies - Third Party P,0090661211,Servesoul Limited,319.76,04/12/2023
Delivery Units,Adults and Health,Other Agencies - Third Party P,0090661212,Servesoul Limited,672.92,04/12/2023
Delivery Units,Adults and Health,Other Agencies - Third Party P,0090661213,Servesoul Limited,"2,099.71",04/12/2023
Delivery Units,Adults and Health,Other Agencies - Third Party P,0090661214,Servesoul Limited,133.63,04/12/2023
Delivery Units,Adults and Health,Other Agencies - Third Party P,0090661215,Servesoul Limited,47.73,04/12/2023
Delivery Units,Adults and Health,Other Agencies - Third Party P,0090661218,Servesoul Limited,171.81,04/12/2023
Delivery Units,Adults and Health,Other Agencies - Third Party P,0090661219,Servesoul Limited,33.41,04/12/2023
Delivery Units,Adults and Health,Other Agencies - Third Party P,0090661221,Servesoul Limited,200.45,04/12/2023
Delivery Units,Adults and Health,Other Agencies - Third Party P,0090661222,Servesoul Limited,801.78,04/12/2023
Delivery Units,Adults and Health,Other Agencies - Third Party P,0090661225,Servesoul Limited,300.67,04/12/2023
Delivery Units,Adults and Health,Other Agencies - Third Party P,0090661226,Servesoul Limited,200.45,04/12/2023
Delivery Units,Adults and Health,Other Agencies - Third Party P,0090661228,Servesoul Limited,233.85,04/12/2023
Delivery Units,Adults and Health,Other Agencies - Third Party P,0090661229,Servesoul Limited,167.04,04/12/2023
Delivery Units,Adults and Health,Other Agencies - Third Party P,0090661230,Servesoul Limited,"1,135.86",04/12/2023
Delivery Units,Adults and Health,Other Agencies - Third Party P,0090661231,Servesoul Limited,252.94,04/12/2023
Delivery Units,Adults and Health,Other Agencies - Third Party P,0090661232,Servesoul Limited,233.85,04/12/2023
Delivery Units,Adults and Health,Other Agencies - Third Party P,0090661233,Servesoul Limited,57.27,04/12/2023
Delivery Units,Adults and Health,Other Agencies - Third Party P,0090661235,Servesoul Limited,601.34,04/12/2023
Delivery Units,Adults and Health,Other Agencies - Third Party P,0090661236,Servesoul Limited,606.11,04/12/2023
Delivery Units,Adults and Health,Other Agencies - Third Party P,0090661237,Servesoul Limited,233.85,04/12/2023
Delivery Units,Adults and Health,Other Agencies - Third Party P,0090661240,Servesoul Limited,66.82,04/12/2023
Delivery Units,Adults and Health,Other Agencies - Third Party P,0090661243,Servesoul Limited,286.35,04/12/2023
Delivery Units,Adults and Health,Other Agencies - Third Party P,0090661245,Servesoul Limited,262.49,04/12/2023
Delivery Units,Adults and Health,Other Agencies - Third Party P,0090661246,Servesoul Limited,300.67,04/12/2023
Delivery Units,Adults and Health,Other Agencies - Third Party P,0090661247,Servesoul Limited,100.22,04/12/2023
Delivery Units,Adults and Health,Other Agencies - Third Party P,0090661249,Servesoul Limited,143.18,04/12/2023
Delivery Units,Adults and Health,Other Agencies - Third Party P,0090661250,Servesoul Limited,534.52,04/12/2023
Delivery Units,Adults and Health,Other Agencies - Third Party P,0090661251,Servesoul Limited,100.22,04/12/2023
Delivery Units,Adults and Health,Other Agencies - Third Party P,0090661252,Servesoul Limited,152.72,04/12/2023
Delivery Units,Adults and Health,Other Agencies - Third Party P,0090661253,Servesoul Limited,209.99,04/12/2023
Delivery Units,Adults and Health,Other Agencies - Third Party P,0090661255,Servesoul Limited,334.08,04/12/2023
Delivery Units,Adults and Health,Other Agencies - Third Party P,0090661256,Servesoul Limited,601.34,04/12/2023
Delivery Units,Adults and Health,Other Agencies - Third Party P,0090661257,Servesoul Limited,95.45,04/12/2023
Delivery Units,Adults and Health,Other Agencies - Third Party P,0090661258,Servesoul Limited,267.26,04/12/2023
Delivery Units,Adults and Health,Other Agencies - Third Party P,0090661259,Servesoul Limited,534.52,04/12/2023
Delivery Units,Adults and Health,Other Agencies - Third Party P,0090661261,Servesoul Limited,133.63,04/12/2023
Delivery Units,Adults and Health,Other Agencies - Third Party P,0090661263,Servesoul Limited,501.11,04/12/2023
Delivery Units,Adults and Health,Other Agencies - Third Party P,0090661264,Servesoul Limited,133.63,04/12/2023
Delivery Units,Adults and Health,Other Agencies - Third Party P,0090661265,Servesoul Limited,319.76,04/12/2023
Delivery Units,Adults and Health,Other Agencies - Third Party P,0090661266,Servesoul Limited,672.92,04/12/2023
Delivery Units,Adults and Health,Other Agencies - Third Party P,0090661267,Servesoul Limited,"2,099.71",04/12/2023
Delivery Units,Adults and Health,Other Agencies - Third Party P,0090661268,Servesoul Limited,133.63,04/12/2023
Delivery Units,Adults and Health,Other Agencies - Third Party P,0090661269,Servesoul Limited,66.82,04/12/2023
Delivery Units,Adults and Health,Other Agencies - Third Party P,0090661272,Servesoul Limited,171.81,04/12/2023
Delivery Units,Adults and Health,Other Agencies - Third Party P,0090661274,Servesoul Limited,200.45,04/12/2023
Delivery Units,Adults and Health,Other Agencies - Third Party P,0090661275,Servesoul Limited,801.78,04/12/2023
Delivery Units,Adults and Health,Other Agencies - Third Party P,0090661278,Servesoul Limited,300.67,04/12/2023
Delivery Units,Adults and Health,Other Agencies - Third Party P,0090661279,Servesoul Limited,200.45,04/12/2023
Delivery Units,Adults and Health,Other Agencies - Third Party P,0090661281,Servesoul Limited,233.85,04/12/2023
Delivery Units,Adults and Health,Other Agencies - Third Party P,0090661282,Servesoul Limited,167.04,04/12/2023
Delivery Units,Adults and Health,Other Agencies - Third Party P,0090661283,Servesoul Limited,"1,135.86",04/12/2023
Delivery Units,Adults and Health,Other Agencies - Third Party P,0090661284,Servesoul Limited,252.94,04/12/2023
Delivery Units,Adults and Health,Other Agencies - Third Party P,0090661285,Servesoul Limited,233.85,04/12/2023
Delivery Units,Adults and Health,Other Agencies - Third Party P,0090661286,Servesoul Limited,57.27,04/12/2023
Delivery Units,Adults and Health,Other Agencies - Third Party P,0090661288,Servesoul Limited,601.34,04/12/2023
Delivery Units,Adults and Health,Other Agencies - Third Party P,0090661289,Servesoul Limited,606.11,04/12/2023
Delivery Units,Adults and Health,Other Agencies - Third Party P,0090661290,Servesoul Limited,233.85,04/12/2023
Delivery Units,Adults and Health,Other Agencies - Third Party P,0090661293,Servesoul Limited,66.82,04/12/2023
Delivery Units,Adults and Health,Other Agencies - Third Party P,0090661296,Servesoul Limited,286.35,04/12/2023
Delivery Units,Adults and Health,Other Agencies - Third Party P,0090661298,Servesoul Limited,262.49,04/12/2023
Delivery Units,Adults and Health,Other Agencies - Third Party P,0090661299,Servesoul Limited,300.67,04/12/2023
Delivery Units,Adults and Health,Other Agencies - Third Party P,0090661300,Servesoul Limited,100.22,04/12/2023
Delivery Units,Adults and Health,Other Agencies - Third Party P,0090661302,Servesoul Limited,143.18,04/12/2023
Delivery Units,Adults and Health,Other Agencies - Third Party P,0090661303,Servesoul Limited,534.52,04/12/2023
Delivery Units,Adults and Health,Other Agencies - Third Party P,0090661304,Servesoul Limited,100.22,04/12/2023
Delivery Units,Adults and Health,Other Agencies - Third Party P,0090661305,Servesoul Limited,114.54,04/12/2023
Delivery Units,Adults and Health,Other Agencies - Third Party P,0090661306,Servesoul Limited,209.99,04/12/2023
Delivery Units,Adults and Health,Other Agencies - Third Party P,0090661308,Servesoul Limited,334.08,04/12/2023
Delivery Units,Adults and Health,Other Agencies - Third Party P,0090661309,Servesoul Limited,601.34,04/12/2023
Delivery Units,Adults and Health,Other Agencies - Third Party P,0090661310,Servesoul Limited,95.45,04/12/2023
Delivery Units,Adults and Health,Other Agencies - Third Party P,0090661311,Bliss Care and Training Ltd,567.00,04/12/2023
Delivery Units,Adults and Health,Other Agencies - Third Party P,0090661312,Bliss Care and Training Ltd,630.00,04/12/2023
Delivery Units,Adults and Health,Other Agencies - Third Party P,0090661313,Bliss Care and Training Ltd,351.00,04/12/2023
Delivery Units,Adults and Health,Other Agencies - Third Party P,0090661314,Bliss Care and Training Ltd,256.50,04/12/2023
Delivery Units,Adults and Health,Other Agencies - Third Party P,0090661317,Bliss Care and Training Ltd,81.00,04/12/2023
Delivery Units,Adults and Health,Other Agencies - Third Party P,0090661320,Bliss Care and Training Ltd,63.00,04/12/2023
Delivery Units,Adults and Health,Other Agencies - Third Party P,0090661327,Bliss Care and Training Ltd,157.50,04/12/2023
Delivery Units,Adults and Health,Other Agencies - Third Party P,0090661328,Bliss Care and Training Ltd,189.00,04/12/2023
Delivery Units,Adults and Health,Other Agencies - Third Party P,0090661329,Bliss Care and Training Ltd,495.00,04/12/2023
Delivery Units,Adults and Health,Other Agencies - Third Party P,0090661330,Bliss Care and Training Ltd,162.00,04/12/2023
Delivery Units,Adults and Health,Other Agencies - Third Party P,0090661331,Bliss Care and Training Ltd,220.50,04/12/2023
Delivery Units,Adults and Health,Other Agencies - Third Party P,0090661332,Bliss Care and Training Ltd,18.00,04/12/2023
Delivery Units,Adults and Health,Other Agencies - Third Party P,0090661334,Bliss Care and Training Ltd,333.00,04/12/2023
Delivery Units,Adults and Health,Other Agencies - Third Party P,0090661336,Bliss Care and Training Ltd,252.00,04/12/2023
Delivery Units,Adults and Health,Other Agencies - Third Party P,0090661337,Bliss Care and Training Ltd,94.50,04/12/2023
Delivery Units,Adults and Health,Other Agencies - Third Party P,0090661339,Bliss Care and Training Ltd,126.00,04/12/2023
Delivery Units,Adults and Health,Other Agencies - Third Party P,0090661341,Bliss Care and Training Ltd,63.00,04/12/2023
Delivery Units,Adults and Health,Other Agencies - Third Party P,0090661342,Bliss Care and Training Ltd,126.00,04/12/2023
Delivery Units,Adults and Health,Other Agencies - Third Party P,0090661343,Bliss Care and Training Ltd,504.00,04/12/2023
Delivery Units,Adults and Health,Other Agencies - Third Party P,0090661344,Bliss Care and Training Ltd,63.00,04/12/2023
Delivery Units,Adults and Health,Other Agencies - Third Party P,0090661345,Bliss Care and Training Ltd,157.50,04/12/2023
Delivery Units,Adults and Health,Other Agencies - Third Party P,0090661346,Bliss Care and Training Ltd,153.00,04/12/2023
Delivery Units,Adults and Health,Other Agencies - Third Party P,0090661347,Bliss Care and Training Ltd,94.50,04/12/2023
Delivery Units,Adults and Health,Other Agencies - Third Party P,0090661348,Bliss Care and Training Ltd,139.50,04/12/2023
Delivery Units,Adults and Health,Other Agencies - Third Party P,0090661349,Bliss Care and Training Ltd,283.50,04/12/2023
Delivery Units,Adults and Health,Other Agencies - Third Party P,0090661350,Bliss Care and Training Ltd,684.00,04/12/2023
Delivery Units,Adults and Health,Other Agencies - Third Party P,0090661351,Bliss Care and Training Ltd,220.50,04/12/2023
Delivery Units,Adults and Health,Other Agencies - Third Party P,0090661352,Bliss Care and Training Ltd,207.00,04/12/2023
Delivery Units,Adults and Health,Other Agencies - Third Party P,0090661353,Bliss Care and Training Ltd,441.00,04/12/2023
Delivery Units,Adults and Health,Other Agencies - Third Party P,0090661354,Bliss Care and Training Ltd,283.50,04/12/2023
Delivery Units,Adults and Health,Other Agencies - Third Party P,0090661355,Bliss Care and Training Ltd,378.00,04/12/2023
Delivery Units,Adults and Health,Other Agencies - Third Party P,0090661358,Bliss Care and Training Ltd,220.50,04/12/2023
Delivery Units,Adults and Health,Other Agencies - Third Party P,0090661360,Bliss Care and Training Ltd,252.00,04/12/2023
Delivery Units,Adults and Health,Other Agencies - Third Party P,0090661361,Bliss Care and Training Ltd,157.50,04/12/2023
Delivery Units,Adults and Health,Other Agencies - Third Party P,0090661362,Bliss Care and Training Ltd,189.00,04/12/2023
Delivery Units,Adults and Health,Other Agencies - Third Party P,0090661363,Bliss Care and Training Ltd,346.50,04/12/2023
Delivery Units,Adults and Health,Other Agencies - Third Party P,0090661364,Bliss Care and Training Ltd,315.00,04/12/2023
Delivery Units,Adults and Health,Other Agencies - Third Party P,0090661365,Bliss Care and Training Ltd,157.50,04/12/2023
Delivery Units,Adults and Health,Other Agencies - Third Party P,0090661366,Bliss Care and Training Ltd,607.50,04/12/2023
Delivery Units,Adults and Health,Other Agencies - Third Party P,0090661367,Bliss Care and Training Ltd,742.50,04/12/2023
Delivery Units,Adults and Health,Other Agencies - Third Party P,0090661369,Bliss Care and Training Ltd,306.00,04/12/2023
Delivery Units,Adults and Health,Other Agencies - Third Party P,0090661370,Bliss Care and Training Ltd,67.50,04/12/2023
Delivery Units,Adults and Health,Other Agencies - Third Party P,0090661372,Bliss Care and Training Ltd,90.00,04/12/2023
Delivery Units,Adults and Health,Other Agencies - Third Party P,0090661373,Bliss Care and Training Ltd,162.00,04/12/2023
Delivery Units,Adults and Health,Other Agencies - Third Party P,0090661374,Bliss Care and Training Ltd,238.50,04/12/2023
Delivery Units,Adults and Health,Other Agencies - Third Party P,0090661375,Bliss Care and Training Ltd,405.00,04/12/2023
Delivery Units,Adults and Health,Other Agencies - Third Party P,0090661376,Bliss Care and Training Ltd,157.50,04/12/2023
Delivery Units,Adults and Health,Other Agencies - Third Party P,0090661377,Bliss Care and Training Ltd,378.00,04/12/2023
Delivery Units,Adults and Health,Other Agencies - Third Party P,0090661378,Bliss Care and Training Ltd,126.00,04/12/2023
Delivery Units,Adults and Health,Other Agencies - Third Party P,0090661379,Bliss Care and Training Ltd,189.00,04/12/2023
Delivery Units,Adults and Health,Other Agencies - Third Party P,0090661380,Bliss Care and Training Ltd,441.00,04/12/2023
Delivery Units,Adults and Health,Other Agencies - Third Party P,0090661381,Bliss Care and Training Ltd,315.00,04/12/2023
Delivery Units,Adults and Health,Other Agencies - Third Party P,0090661382,Bliss Care and Training Ltd,22.50,04/12/2023
Delivery Units,Adults and Health,Other Agencies - Third Party P,0090661383,Bliss Care and Training Ltd,94.50,04/12/2023
Delivery Units,Adults and Health,Other Agencies - Third Party P,0090661384,Bliss Care and Training Ltd,63.00,04/12/2023
Delivery Units,Adults and Health,Other Agencies - Third Party P,0090661385,Bliss Care and Training Ltd,256.50,04/12/2023
Delivery Units,Adults and Health,Other Agencies - Third Party P,0090661386,Bliss Care and Training Ltd,310.50,04/12/2023
Delivery Units,Adults and Health,Other Agencies - Third Party P,0090661387,Bliss Care and Training Ltd,252.00,04/12/2023
Delivery Units,Adults and Health,Other Agencies - Third Party P,0090661388,Bliss Care and Training Ltd,342.00,04/12/2023
Delivery Units,Adults and Health,Other Agencies - Third Party P,0090661394,Bliss Care and Training Ltd,90.00,04/12/2023
Delivery Units,Adults and Health,Other Agencies - Third Party P,0090661405,Bliss Care and Training Ltd,162.00,04/12/2023
Delivery Units,Adults and Health,Other Agencies - Third Party P,0090661406,Bliss Care and Training Ltd,432.00,04/12/2023
Delivery Units,Adults and Health,Other Agencies - Third Party P,0090661407,Bliss Care and Training Ltd,252.00,04/12/2023
Delivery Units,Adults and Health,Other Agencies - Third Party P,0090661413,Bliss Care and Training Ltd,252.00,04/12/2023
Delivery Units,Adults and Health,Other Agencies - Third Party P,0090661423,Bliss Care and Training Ltd,94.50,04/12/2023
Delivery Units,Adults and Health,Other Agencies - Third Party P,0090661425,Bliss Care and Training Ltd,126.00,04/12/2023
Delivery Units,Adults and Health,Other Agencies - Third Party P,0090661453,Bliss Care and Training Ltd,36.00,04/12/2023
Delivery Units,Adults and Health,Other Agencies - Third Party P,0090661458,Bliss Care and Training Ltd,378.00,04/12/2023
Delivery Units,Adults and Health,Other Agencies - Third Party P,0090661460,Bliss Care and Training Ltd,157.50,04/12/2023
Delivery Units,Adults and Health,Other Agencies - Third Party P,0090661463,Bliss Care and Training Ltd,315.00,04/12/2023
Delivery Units,Adults and Health,Other Agencies - Third Party P,0090661464,Bliss Care and Training Ltd,378.00,04/12/2023
Delivery Units,Adults and Health,Other Agencies - Third Party P,0090661465,Bliss Care and Training Ltd,567.00,04/12/2023
Delivery Units,Adults and Health,Other Agencies - Third Party P,0090661466,Bliss Care and Training Ltd,630.00,04/12/2023
Delivery Units,Adults and Health,Other Agencies - Third Party P,0090661467,Bliss Care and Training Ltd,351.00,04/12/2023
Delivery Units,Adults and Health,Other Agencies - Third Party P,0090661468,Bliss Care and Training Ltd,225.00,04/12/2023
Delivery Units,Adults and Health,Other Agencies - Third Party P,0090661471,Bliss Care and Training Ltd,81.00,04/12/2023
Delivery Units,Adults and Health,Other Agencies - Third Party P,0090661474,Bliss Care and Training Ltd,63.00,04/12/2023
Delivery Units,Adults and Health,Other Agencies - Third Party P,0090661481,Bliss Care and Training Ltd,157.50,04/12/2023
Delivery Units,Adults and Health,Other Agencies - Third Party P,0090661482,Bliss Care and Training Ltd,189.00,04/12/2023
Delivery Units,Adults and Health,Other Agencies - Third Party P,0090661483,Bliss Care and Training Ltd,495.00,04/12/2023
Delivery Units,Adults and Health,Other Agencies - Third Party P,0090661484,Bliss Care and Training Ltd,162.00,04/12/2023
Delivery Units,Adults and Health,Other Agencies - Third Party P,0090661485,Bliss Care and Training Ltd,220.50,04/12/2023
Delivery Units,Adults and Health,Other Agencies - Third Party P,0090661486,Bliss Care and Training Ltd,18.00,04/12/2023
Delivery Units,Adults and Health,Other Agencies - Third Party P,0090661488,Bliss Care and Training Ltd,333.00,04/12/2023
Delivery Units,Adults and Health,Other Agencies - Third Party P,0090661490,Bliss Care and Training Ltd,252.00,04/12/2023
Delivery Units,Adults and Health,Other Agencies - Third Party P,0090661491,Bliss Care and Training Ltd,94.50,04/12/2023
Delivery Units,Adults and Health,Other Agencies - Third Party P,0090661493,Bliss Care and Training Ltd,126.00,04/12/2023
Delivery Units,Adults and Health,Other Agencies - Third Party P,0090661495,Bliss Care and Training Ltd,63.00,04/12/2023
Delivery Units,Adults and Health,Other Agencies - Third Party P,0090661496,Bliss Care and Training Ltd,126.00,04/12/2023
Delivery Units,Adults and Health,Other Agencies - Third Party P,0090661497,Bliss Care and Training Ltd,504.00,04/12/2023
Delivery Units,Adults and Health,Other Agencies - Third Party P,0090661498,Bliss Care and Training Ltd,63.00,04/12/2023
Delivery Units,Adults and Health,Other Agencies - Third Party P,0090661499,Bliss Care and Training Ltd,157.50,04/12/2023
Delivery Units,Adults and Health,Other Agencies - Third Party P,0090661500,Bliss Care and Training Ltd,126.00,04/12/2023
Delivery Units,Adults and Health,Other Agencies - Third Party P,0090661501,Bliss Care and Training Ltd,94.50,04/12/2023
Delivery Units,Adults and Health,Other Agencies - Third Party P,0090661502,Bliss Care and Training Ltd,139.50,04/12/2023
Delivery Units,Adults and Health,Other Agencies - Third Party P,0090661503,Bliss Care and Training Ltd,283.50,04/12/2023
Delivery Units,Adults and Health,Other Agencies - Third Party P,0090661504,Bliss Care and Training Ltd,684.00,04/12/2023
Delivery Units,Adults and Health,Other Agencies - Third Party P,0090661505,Bliss Care and Training Ltd,220.50,04/12/2023
Delivery Units,Adults and Health,Other Agencies - Third Party P,0090661506,Bliss Care and Training Ltd,441.00,04/12/2023
Delivery Units,Adults and Health,Other Agencies - Third Party P,0090661507,Bliss Care and Training Ltd,283.50,04/12/2023
Delivery Units,Adults and Health,Other Agencies - Third Party P,0090661508,Bliss Care and Training Ltd,378.00,04/12/2023
Delivery Units,Adults and Health,Other Agencies - Third Party P,0090661511,Bliss Care and Training Ltd,220.50,04/12/2023
Delivery Units,Adults and Health,Other Agencies - Third Party P,0090661513,Bliss Care and Training Ltd,252.00,04/12/2023
Delivery Units,Adults and Health,Other Agencies - Third Party P,0090661514,Bliss Care and Training Ltd,157.50,04/12/2023
Delivery Units,Adults and Health,Other Agencies - Third Party P,0090661515,Bliss Care and Training Ltd,189.00,04/12/2023
Delivery Units,Adults and Health,Other Agencies - Third Party P,0090661516,Bliss Care and Training Ltd,346.50,04/12/2023
Delivery Units,Adults and Health,Other Agencies - Third Party P,0090661517,Bliss Care and Training Ltd,315.00,04/12/2023
Delivery Units,Adults and Health,Other Agencies - Third Party P,0090661518,Bliss Care and Training Ltd,157.50,04/12/2023
Delivery Units,Adults and Health,Other Agencies - Third Party P,0090661519,Bliss Care and Training Ltd,400.50,04/12/2023
Delivery Units,Adults and Health,Other Agencies - Third Party P,0090661520,Bliss Care and Training Ltd,724.50,04/12/2023
Delivery Units,Adults and Health,Other Agencies - Third Party P,0090661522,Bliss Care and Training Ltd,306.00,04/12/2023
Delivery Units,Adults and Health,Other Agencies - Third Party P,0090661523,Bliss Care and Training Ltd,67.50,04/12/2023
Delivery Units,Adults and Health,Other Agencies - Third Party P,0090661525,Bliss Care and Training Ltd,90.00,04/12/2023
Delivery Units,Adults and Health,Other Agencies - Third Party P,0090661526,Bliss Care and Training Ltd,162.00,04/12/2023
Delivery Units,Adults and Health,Other Agencies - Third Party P,0090661527,Bliss Care and Training Ltd,238.50,04/12/2023
Delivery Units,Adults and Health,Other Agencies - Third Party P,0090661528,Bliss Care and Training Ltd,405.00,04/12/2023
Delivery Units,Adults and Health,Other Agencies - Third Party P,0090661529,Bliss Care and Training Ltd,157.50,04/12/2023
Delivery Units,Adults and Health,Other Agencies - Third Party P,0090661530,Bliss Care and Training Ltd,378.00,04/12/2023
Delivery Units,Adults and Health,Other Agencies - Third Party P,0090661531,Bliss Care and Training Ltd,126.00,04/12/2023
Delivery Units,Adults and Health,Other Agencies - Third Party P,0090661532,Bliss Care and Training Ltd,441.00,04/12/2023
Delivery Units,Adults and Health,Other Agencies - Third Party P,0090661533,Bliss Care and Training Ltd,315.00,04/12/2023
Delivery Units,Adults and Health,Other Agencies - Third Party P,0090661534,Bliss Care and Training Ltd,22.50,04/12/2023
Delivery Units,Adults and Health,Other Agencies - Third Party P,0090661535,Bliss Care and Training Ltd,94.50,04/12/2023
Delivery Units,Adults and Health,Other Agencies - Third Party P,0090661536,Bliss Care and Training Ltd,63.00,04/12/2023
Delivery Units,Adults and Health,Other Agencies - Third Party P,0090661537,Bliss Care and Training Ltd,256.50,04/12/2023
Delivery Units,Adults and Health,Other Agencies - Third Party P,0090661538,Bliss Care and Training Ltd,310.50,04/12/2023
Delivery Units,Adults and Health,Other Agencies - Third Party P,0090661539,Bliss Care and Training Ltd,252.00,04/12/2023
Delivery Units,Adults and Health,Other Agencies - Third Party P,0090661540,Bliss Care and Training Ltd,225.00,04/12/2023
Delivery Units,Adults and Health,Other Agencies - Third Party P,0090661541,Bliss Care and Training Ltd,90.00,04/12/2023
Delivery Units,Adults and Health,Other Agencies - Third Party P,0090661549,Bliss Care and Training Ltd,189.00,04/12/2023
Delivery Units,Adults and Health,Other Agencies - Third Party P,0090661550,Bliss Care and Training Ltd,504.00,04/12/2023
Delivery Units,Adults and Health,Other Agencies - Third Party P,0090661551,Bliss Care and Training Ltd,252.00,04/12/2023
Delivery Units,Adults and Health,Other Agencies - Third Party P,0090661557,Bliss Care and Training Ltd,252.00,04/12/2023
Delivery Units,Adults and Health,Other Agencies - Third Party P,0090661567,Bliss Care and Training Ltd,94.50,04/12/2023
Delivery Units,Adults and Health,Other Agencies - Third Party P,0090661569,Bliss Care and Training Ltd,126.00,04/12/2023
Delivery Units,Adults and Health,Other Agencies - Third Party P,0090661598,Bliss Care and Training Ltd,153.00,04/12/2023
Delivery Units,Adults and Health,Other Agencies - Third Party P,0090661602,Bliss Care and Training Ltd,157.50,04/12/2023
Delivery Units,Adults and Health,Other Agencies - Third Party P,0090661604,Bliss Care and Training Ltd,162.00,04/12/2023
Delivery Units,Adults and Health,Other Agencies - Third Party P,0090661610,Bliss Care and Training Ltd,315.00,04/12/2023
Delivery Units,Adults and Health,Other Agencies - Third Party P,0090661611,Bliss Care and Training Ltd,378.00,04/12/2023
Delivery Units,Adults and Health,Other Agencies - Third Party P,0090661669,Social Care Consortium Limited,330.30,04/12/2023
Delivery Units,Adults and Health,Other Agencies - Third Party P,0090661670,Social Care Consortium Limited,330.30,04/12/2023
Delivery Units,Adults and Health,Other Agencies - Third Party P,0090661677,Social Care Consortium Limited,82.58,04/12/2023
Delivery Units,Adults and Health,Other Agencies - Third Party P,0090661678,Social Care Consortium Limited,82.58,04/12/2023
Delivery Units,Adults and Health,Other Agencies - Third Party P,0090661681,Social Care Consortium Limited,55.05,04/12/2023
Delivery Units,Adults and Health,Other Agencies - Third Party P,0090661688,Social Care Consortium Limited,154.14,04/12/2023
Delivery Units,Adults and Health,Other Agencies - Third Party P,0090661689,Social Care Consortium Limited,154.14,04/12/2023
Delivery Units,Adults and Health,Other Agencies - Third Party P,0090661692,Social Care Consortium Limited,154.14,04/12/2023
Delivery Units,Adults and Health,Other Agencies - Third Party P,0090661693,Social Care Consortium Limited,154.14,04/12/2023
Delivery Units,Adults and Health,Other Agencies - Third Party P,0090661696,Social Care Consortium Limited,561.51,04/12/2023
Delivery Units,Adults and Health,Other Agencies - Third Party P,0090661697,Social Care Consortium Limited,561.51,04/12/2023
Delivery Units,Adults and Health,Other Agencies - Third Party P,0090661698,Social Care Consortium Limited,423.89,04/12/2023
Delivery Units,Adults and Health,Other Agencies - Third Party P,0090661699,Social Care Consortium Limited,423.89,04/12/2023
Delivery Units,Adults and Health,Other Agencies - Third Party P,0090661700,Social Care Consortium Limited,82.58,04/12/2023
Delivery Units,Adults and Health,Other Agencies - Third Party P,0090661701,Social Care Consortium Limited,82.58,04/12/2023
Delivery Units,Adults and Health,Other Agencies - Third Party P,0090661704,Social Care Consortium Limited,231.21,04/12/2023
Delivery Units,Adults and Health,Other Agencies - Third Party P,0090661705,Social Care Consortium Limited,231.21,04/12/2023
Delivery Units,Adults and Health,Other Agencies - Third Party P,0090661710,Social Care Consortium Limited,847.77,04/12/2023
Delivery Units,Adults and Health,Other Agencies - Third Party P,0090661711,Social Care Consortium Limited,847.77,04/12/2023
Delivery Units,Adults and Health,Other Agencies - Third Party P,0090661712,Social Care Consortium Limited,655.09,04/12/2023
Delivery Units,Adults and Health,Other Agencies - Third Party P,0090661713,Social Care Consortium Limited,655.10,04/12/2023
Delivery Units,Adults and Health,Other Agencies - Third Party P,0090661714,Social Care Consortium Limited,198.18,04/12/2023
Delivery Units,Adults and Health,Other Agencies - Third Party P,0090661715,Social Care Consortium Limited,869.79,04/12/2023
Delivery Units,Adults and Health,Other Agencies - Third Party P,0090661716,Social Care Consortium Limited,792.72,04/12/2023
Delivery Units,Adults and Health,Other Agencies - Third Party P,0090661717,Social Care Consortium Limited,792.72,04/12/2023
Delivery Units,Adults and Health,Other Agencies - Third Party P,0090661718,Social Care Consortium Limited,385.35,04/12/2023
Delivery Units,Adults and Health,Other Agencies - Third Party P,0090661719,Social Care Consortium Limited,385.35,04/12/2023
Delivery Units,Adults and Health,Other Agencies - Third Party P,0090661722,Social Care Consortium Limited,82.58,04/12/2023
Delivery Units,Adults and Health,Other Agencies - Third Party P,0090661723,Social Care Consortium Limited,82.58,04/12/2023
Delivery Units,Adults and Health,Other Agencies - Third Party P,0090661724,Social Care Consortium Limited,924.84,04/12/2023
Delivery Units,Adults and Health,Other Agencies - Third Party P,0090661725,Social Care Consortium Limited,924.84,04/12/2023
Delivery Units,Adults and Health,Other Agencies - Third Party P,0090661726,Social Care Consortium Limited,330.30,04/12/2023
Delivery Units,Adults and Health,Other Agencies - Third Party P,0090661730,Social Care Consortium Limited,82.58,04/12/2023
Delivery Units,Adults and Health,Other Agencies - Third Party P,0090661732,Social Care Consortium Limited,231.21,04/12/2023
Delivery Units,Adults and Health,Other Agencies - Third Party P,0090661736,Social Care Consortium Limited,154.14,04/12/2023
Delivery Units,Adults and Health,Other Agencies - Third Party P,0090661737,Social Care Consortium Limited,154.14,04/12/2023
Delivery Units,Adults and Health,Other Agencies - Third Party P,0090661739,Social Care Consortium Limited,561.51,04/12/2023
Delivery Units,Adults and Health,Other Agencies - Third Party P,0090661740,Social Care Consortium Limited,423.88,04/12/2023
Delivery Units,Adults and Health,Other Agencies - Third Party P,0090661741,Social Care Consortium Limited,82.58,04/12/2023
Delivery Units,Adults and Health,Other Agencies - Third Party P,0090661742,Social Care Consortium Limited,473.43,04/12/2023
Delivery Units,Adults and Health,Other Agencies - Third Party P,0090661744,Social Care Consortium Limited,231.21,04/12/2023
Delivery Units,Adults and Health,Other Agencies - Third Party P,0090661747,Social Care Consortium Limited,847.77,04/12/2023
Delivery Units,Adults and Health,Other Agencies - Third Party P,0090661748,Social Care Consortium Limited,655.09,04/12/2023
Delivery Units,Adults and Health,Other Agencies - Third Party P,0090661749,Social Care Consortium Limited,869.79,04/12/2023
Delivery Units,Adults and Health,Other Agencies - Third Party P,0090661750,Social Care Consortium Limited,792.72,04/12/2023
Delivery Units,Adults and Health,Other Agencies - Third Party P,0090661751,Social Care Consortium Limited,517.47,04/12/2023
Delivery Units,Adults and Health,Other Agencies - Third Party P,0090661753,Social Care Consortium Limited,82.58,04/12/2023
Delivery Units,Adults and Health,Other Agencies - Third Party P,0090661754,Social Care Consortium Limited,924.84,04/12/2023
Delivery Units,Adults and Health,Other Agencies - Third Party P,0090662678,Carecroft Ltd,"1,054.20",04/12/2023
Delivery Units,Adults and Health,Other Agencies - Third Party P,0090662682,Circle Care Ltd,"1,156.68",04/12/2023
Delivery Units,Adults and Health,Other Agencies - Third Party P,0090662687,Concept Care Solutions Ltd,144.34,04/12/2023
Delivery Units,Adults and Health,Other Agencies - Third Party P,0090662688,Concept Care Solutions Ltd,469.00,04/12/2023
Delivery Units,Adults and Health,Other Agencies - Third Party P,0090662690,Concept Care Solutions Ltd,252.56,04/12/2023
Delivery Units,Adults and Health,Other Agencies - Third Party P,0090662691,Concept Care Solutions Ltd,304.11,04/12/2023
Delivery Units,Adults and Health,Other Agencies - Third Party P,0090662693,Concept Care Solutions Ltd,324.73,04/12/2023
Delivery Units,Adults and Health,Other Agencies - Third Party P,0090662700,ACE Homecare Services Ltd,"1,362.66",04/12/2023
Delivery Units,Adults and Health,Other Agencies - Third Party P,0090662701,ACE Homecare Services Ltd,"1,362.66",04/12/2023
Delivery Units,Adults and Health,Other Agencies - Third Party P,0090662706,ACE Homecare Services Ltd,"11,739.84",04/12/2023
Delivery Units,Adults and Health,Other Agencies - Third Party P,0090662707,ACE Homecare Services Ltd,480.42,04/12/2023
Delivery Units,Adults and Health,Other Agencies - Third Party P,0090662709,ACE Homecare Services Ltd,69.88,04/12/2023
Delivery Units,Adults and Health,Other Agencies - Third Party P,0090662711,ACE Homecare Services Ltd,"2,445.80",04/12/2023
Delivery Units,Adults and Health,Other Agencies - Third Party P,0090662712,ACE Homecare Services Ltd,"3,127.13",04/12/2023
Delivery Units,Adults and Health,Other Agencies - Third Party P,0090662713,Goldsmith Personnel Ltd,807.48,04/12/2023
Delivery Units,Adults and Health,Other Agencies - Third Party P,0090662787,Pristine Recruitment Limited,516.80,04/12/2023
Delivery Units,Adults and Health,Other Agencies - Third Party P,0090662788,Pristine Recruitment Limited,190.40,04/12/2023
Delivery Units,Adults and Health,Other Agencies - Third Party P,0090662789,Pristine Recruitment Limited,304.64,04/12/2023
Delivery Units,Adults and Health,Other Agencies - Third Party P,0090662790,Pristine Recruitment Limited,266.56,04/12/2023
Delivery Units,Adults and Health,Other Agencies - Third Party P,0090662792,Pristine Recruitment Limited,"1,218.56",04/12/2023
Delivery Units,Adults and Health,Other Agencies - Third Party P,0090662793,Pristine Recruitment Limited,"1,262.08",04/12/2023
Delivery Units,Adults and Health,Other Agencies - Third Party P,0090662794,Pristine Recruitment Limited,380.80,04/12/2023
Delivery Units,Adults and Health,Other Agencies - Third Party P,0090662795,Pristine Recruitment Limited,315.52,04/12/2023
Delivery Units,Adults and Health,Other Agencies - Third Party P,0090662796,Pristine Recruitment Limited,304.64,04/12/2023
Delivery Units,Adults and Health,Other Agencies - Third Party P,0090662798,Pristine Recruitment Limited,516.80,04/12/2023
Delivery Units,Adults and Health,Other Agencies - Third Party P,0090662799,Pristine Recruitment Limited,190.40,04/12/2023
Delivery Units,Adults and Health,Other Agencies - Third Party P,0090662800,Pristine Recruitment Limited,304.64,04/12/2023
Delivery Units,Adults and Health,Other Agencies - Third Party P,0090662801,Pristine Recruitment Limited,266.56,04/12/2023
Delivery Units,Adults and Health,Other Agencies - Third Party P,0090662803,Pristine Recruitment Limited,"1,218.56",04/12/2023
Delivery Units,Adults and Health,Other Agencies - Third Party P,0090662804,Pristine Recruitment Limited,"1,262.08",04/12/2023
Delivery Units,Adults and Health,Other Agencies - Third Party P,0090662805,Pristine Recruitment Limited,380.80,04/12/2023
Delivery Units,Adults and Health,Other Agencies - Third Party P,0090662806,Pristine Recruitment Limited,315.52,04/12/2023
Delivery Units,Adults and Health,Other Agencies - Third Party P,0090662807,Pristine Recruitment Limited,304.64,04/12/2023
Delivery Units,Adults and Health,Other Agencies - Third Party P,0090662809,Pristine Recruitment Limited,516.80,04/12/2023
Delivery Units,Adults and Health,Other Agencies - Third Party P,0090662810,Pristine Recruitment Limited,304.64,04/12/2023
Delivery Units,Adults and Health,Other Agencies - Third Party P,0090662811,Pristine Recruitment Limited,266.56,04/12/2023
Delivery Units,Adults and Health,Other Agencies - Third Party P,0090662813,Pristine Recruitment Limited,"1,218.56",04/12/2023
Delivery Units,Adults and Health,Other Agencies - Third Party P,0090662814,Pristine Recruitment Limited,"1,262.08",04/12/2023
Delivery Units,Adults and Health,Other Agencies - Third Party P,0090662815,Pristine Recruitment Limited,380.80,04/12/2023
Delivery Units,Adults and Health,Other Agencies - Third Party P,0090662816,Pristine Recruitment Limited,315.52,04/12/2023
Delivery Units,Adults and Health,Other Agencies - Third Party P,0090662817,Pristine Recruitment Limited,304.64,04/12/2023
Delivery Units,Adults and Health,Other Agencies - Third Party P,0090662819,Pristine Recruitment Limited,516.80,04/12/2023
Delivery Units,Adults and Health,Other Agencies - Third Party P,0090662820,Pristine Recruitment Limited,533.12,04/12/2023
Delivery Units,Adults and Health,Other Agencies - Third Party P,0090662821,Pristine Recruitment Limited,304.64,04/12/2023
Delivery Units,Adults and Health,Other Agencies - Third Party P,0090662822,Pristine Recruitment Limited,266.56,04/12/2023
Delivery Units,Adults and Health,Other Agencies - Third Party P,0090662824,Pristine Recruitment Limited,"1,218.56",04/12/2023
Delivery Units,Adults and Health,Other Agencies - Third Party P,0090662825,Pristine Recruitment Limited,"1,262.08",04/12/2023
Delivery Units,Adults and Health,Other Agencies - Third Party P,0090662826,Pristine Recruitment Limited,380.80,04/12/2023
Delivery Units,Adults and Health,Other Agencies - Third Party P,0090662827,Pristine Recruitment Limited,315.52,04/12/2023
Delivery Units,Adults and Health,Other Agencies - Third Party P,0090662828,Pristine Recruitment Limited,304.64,04/12/2023
Delivery Units,Adults and Health,Other Agencies - Third Party P,0090662837,Pringle's Care Services Ltd,405.91,04/12/2023
Delivery Units,Adults and Health,Other Agencies - Third Party P,0090662838,Pringle's Care Services Ltd,267.40,04/12/2023
Delivery Units,Adults and Health,Other Agencies - Third Party P,0090662839,Pringle's Care Services Ltd,601.65,04/12/2023
Delivery Units,Adults and Health,Other Agencies - Third Party P,0090662840,Pringle's Care Services Ltd,267.40,04/12/2023
Delivery Units,Adults and Health,Other Agencies - Third Party P,0090662841,Pringle's Care Services Ltd,601.65,04/12/2023
Delivery Units,Adults and Health,Other Agencies - Third Party P,0090662842,Pringle's Care Services Ltd,267.40,04/12/2023
Delivery Units,Adults and Health,Other Agencies - Third Party P,0090662843,Pringle's Care Services Ltd,601.65,04/12/2023
Delivery Units,Adults and Health,Other Agencies - Third Party P,0090662844,Pringle's Care Services Ltd,152.80,04/12/2023
Delivery Units,Adults and Health,Other Agencies - Third Party P,0090662845,Pringle's Care Services Ltd,601.65,04/12/2023
Delivery Units,Adults and Health,Other Agencies - Third Party P,0090662855,Swifthand Care Services Ltd,221.85,04/12/2023
Delivery Units,Adults and Health,Other Agencies - Third Party P,0090662856,Swifthand Care Services Ltd,73.95,04/12/2023
Delivery Units,Adults and Health,Other Agencies - Third Party P,0090662858,Swifthand Care Services Ltd,73.95,04/12/2023
Delivery Units,Adults and Health,Other Agencies - Third Party P,0090662859,Swifthand Care Services Ltd,73.95,04/12/2023
Delivery Units,Adults and Health,Other Agencies - Third Party P,0090662860,Swifthand Care Services Ltd,281.54,04/12/2023
Delivery Units,Adults and Health,Other Agencies - Third Party P,0090662861,Swifthand Care Services Ltd,73.95,04/12/2023
Delivery Units,Adults and Health,Other Agencies - Third Party P,0090662862,Swifthand Care Services Ltd,73.95,04/12/2023
Delivery Units,Adults and Health,Other Agencies - Third Party P,0090662863,Swifthand Care Services Ltd,73.95,04/12/2023
Delivery Units,Adults and Health,Other Agencies - Third Party P,0090662865,Swifthand Care Services Ltd,73.95,04/12/2023
Delivery Units,Adults and Health,Other Agencies - Third Party P,0090662866,Swifthand Care Services Ltd,631.04,04/12/2023
Delivery Units,Adults and Health,Other Agencies - Third Party P,0090662867,Swifthand Care Services Ltd,281.54,04/12/2023
Delivery Units,Adults and Health,Other Agencies - Third Party P,0090662868,Swifthand Care Services Ltd,73.95,04/12/2023
Delivery Units,Adults and Health,Other Agencies - Third Party P,0090662870,DYNAMIC PEOPLE LTD,209.00,06/12/2023
Delivery Units,Adults and Health,Other Agencies - Third Party P,0090662929,Eleanor Nursing & Social Care Ltd,466.73,06/12/2023
Delivery Units,Adults and Health,Other Agencies - Third Party P,0090662930,Eleanor Nursing & Social Care Ltd,466.73,06/12/2023
Delivery Units,Adults and Health,Other Agencies - Third Party P,0090662931,Eleanor Nursing & Social Care Ltd,466.73,06/12/2023
Delivery Units,Adults and Health,Other Agencies - Third Party P,0090662942,Eleanor Nursing & Social Care Ltd,666.75,06/12/2023
Delivery Units,Adults and Health,Other Agencies - Third Party P,0090662943,Eleanor Nursing & Social Care Ltd,666.75,06/12/2023
Delivery Units,Adults and Health,Other Agencies - Third Party P,0090662944,Eleanor Nursing & Social Care Ltd,666.75,06/12/2023
Delivery Units,Adults and Health,Other Agencies - Third Party P,0090662945,Eleanor Nursing & Social Care Ltd,666.75,06/12/2023
Delivery Units,Adults and Health,Other Agencies - Third Party P,0090662959,Eleanor Nursing & Social Care Ltd,133.35,06/12/2023
Delivery Units,Adults and Health,Other Agencies - Third Party P,0090662960,Eleanor Nursing & Social Care Ltd,133.35,06/12/2023
Delivery Units,Adults and Health,Other Agencies - Third Party P,0090662961,Eleanor Nursing & Social Care Ltd,133.35,06/12/2023
Delivery Units,Adults and Health,Other Agencies - Third Party P,0090662962,Eleanor Nursing & Social Care Ltd,133.35,06/12/2023
Delivery Units,Adults and Health,Other Agencies - Third Party P,0090662963,Eleanor Nursing & Social Care Ltd,133.35,06/12/2023
Delivery Units,Adults and Health,Other Agencies - Third Party P,0090662964,Eleanor Nursing & Social Care Ltd,133.35,06/12/2023
Delivery Units,Adults and Health,Other Agencies - Third Party P,0090662965,Eleanor Nursing & Social Care Ltd,133.35,06/12/2023
Delivery Units,Adults and Health,Other Agencies - Third Party P,0090662966,Eleanor Nursing & Social Care Ltd,133.35,06/12/2023
Delivery Units,Adults and Health,Other Agencies - Third Party P,0090662967,Eleanor Nursing & Social Care Ltd,133.35,06/12/2023
Delivery Units,Adults and Health,Other Agencies - Third Party P,0090662968,Eleanor Nursing & Social Care Ltd,133.35,06/12/2023
Delivery Units,Adults and Health,Other Agencies - Third Party P,0090662969,Eleanor Nursing & Social Care Ltd,133.35,06/12/2023
Delivery Units,Adults and Health,Other Agencies - Third Party P,0090662987,The Cedars Home Care,120.86,06/12/2023
Delivery Units,Adults and Health,Other Agencies - Third Party P,0090662988,The Cedars Home Care,365.69,06/12/2023
Delivery Units,Adults and Health,Other Agencies - Third Party P,0090662990,The Cedars Home Care,557.75,06/12/2023
Delivery Units,Adults and Health,Other Agencies - Third Party P,0090662992,The Cedars Home Care,373.45,06/12/2023
Delivery Units,Adults and Health,Other Agencies - Third Party P,0090662993,The Cedars Home Care,218.25,06/12/2023
Delivery Units,Adults and Health,Other Agencies - Third Party P,0090662994,The Cedars Home Care,67.90,06/12/2023
Delivery Units,Adults and Health,Other Agencies - Third Party P,0090662995,The Cedars Home Care,72.75,06/12/2023
Delivery Units,Adults and Health,Other Agencies - Third Party P,0090662996,The Cedars Home Care,133.86,06/12/2023
Delivery Units,Adults and Health,Other Agencies - Third Party P,0090662997,The Cedars Home Care,19.40,06/12/2023
Delivery Units,Adults and Health,Other Agencies - Third Party P,0090662998,The Cedars Home Care,"3,259.20",06/12/2023
Delivery Units,Adults and Health,Other Agencies - Third Party P,0090662999,The Cedars Home Care,271.60,06/12/2023
Delivery Units,Adults and Health,Other Agencies - Third Party P,0090663000,The Cedars Home Care,247.74,06/12/2023
Delivery Units,Adults and Health,Other Agencies - Third Party P,0090663002,The Cedars Home Care,324.95,06/12/2023
Delivery Units,Adults and Health,Other Agencies - Third Party P,0090663003,The Cedars Home Care,29.10,06/12/2023
Delivery Units,Adults and Health,Other Agencies - Third Party P,0090663005,The Cedars Home Care,11.64,06/12/2023
Delivery Units,Adults and Health,Other Agencies - Third Party P,0090663006,The Cedars Home Care,58.20,06/12/2023
Delivery Units,Adults and Health,Other Agencies - Third Party P,0090663007,The Cedars Home Care,"1,222.20",06/12/2023
Delivery Units,Adults and Health,Other Agencies - Third Party P,0090663009,The Cedars Home Care,"2,861.89",06/12/2023
Delivery Units,Adults and Health,Other Agencies - Third Party P,0090663010,The Cedars Home Care,746.90,06/12/2023
Delivery Units,Adults and Health,Other Agencies - Third Party P,0090663011,The Cedars Home Care,149.38,06/12/2023
Delivery Units,Adults and Health,Other Agencies - Third Party P,0090663012,The Cedars Home Care,237.65,06/12/2023
Delivery Units,Adults and Health,Other Agencies - Third Party P,0090663014,The Cedars Home Care,58.20,06/12/2023
Delivery Units,Adults and Health,Other Agencies - Third Party P,0090663016,The Cedars Home Care,261.90,06/12/2023
Delivery Units,Adults and Health,Other Agencies - Third Party P,0090663017,The Cedars Home Care,151.32,06/12/2023
Delivery Units,Adults and Health,Other Agencies - Third Party P,0090663018,The Cedars Home Care,97.97,06/12/2023
Delivery Units,Adults and Health,Other Agencies - Third Party P,0090663019,The Cedars Home Care,402.55,06/12/2023
Delivery Units,Adults and Health,Other Agencies - Third Party P,0090663020,The Cedars Home Care,92.15,06/12/2023
Delivery Units,Adults and Health,Other Agencies - Third Party P,0090663021,The Cedars Home Care,360.26,06/12/2023
Delivery Units,Adults and Health,Other Agencies - Third Party P,0090663022,The Cedars Home Care,"1,629.60",06/12/2023
Delivery Units,Adults and Health,Other Agencies - Third Party P,0090663023,The Cedars Home Care,190.12,06/12/2023
Delivery Units,Adults and Health,Other Agencies - Third Party P,0090663025,The Cedars Home Care,271.60,06/12/2023
Delivery Units,Adults and Health,Other Agencies - Third Party P,0090663026,The Cedars Home Care,85.36,06/12/2023
Delivery Units,Adults and Health,Other Agencies - Third Party P,0090663027,The Cedars Home Care,371.12,06/12/2023
Delivery Units,Adults and Health,Other Agencies - Third Party P,0090663028,The Cedars Home Care,19.40,06/12/2023
Delivery Units,Adults and Health,Other Agencies - Third Party P,0090663029,The Cedars Home Care,245.80,06/12/2023
Delivery Units,Adults and Health,Other Agencies - Third Party P,0090663030,The Cedars Home Care,203.70,06/12/2023
Delivery Units,Adults and Health,Other Agencies - Third Party P,0090663031,The Cedars Home Care,232.80,06/12/2023
Delivery Units,Adults and Health,Other Agencies - Third Party P,0090663032,The Cedars Home Care,237.65,06/12/2023
Delivery Units,Adults and Health,Other Agencies - Third Party P,0090663033,The Cedars Home Care,237.65,06/12/2023
Delivery Units,Adults and Health,Other Agencies - Third Party P,0090663034,The Cedars Home Care,"2,658.77",06/12/2023
Delivery Units,Adults and Health,Other Agencies - Third Party P,0090663035,The Cedars Home Care,77.60,06/12/2023
Delivery Units,Adults and Health,Other Agencies - Third Party P,0090663036,The Cedars Home Care,194.00,06/12/2023
Delivery Units,Adults and Health,Other Agencies - Third Party P,0090663037,The Cedars Home Care,14.55,06/12/2023
Delivery Units,Adults and Health,Other Agencies - Third Party P,0090663039,The Cedars Home Care,87.30,06/12/2023
Delivery Units,Adults and Health,Other Agencies - Third Party P,0090663040,The Cedars Home Care,72.75,06/12/2023
Delivery Units,Adults and Health,Other Agencies - Third Party P,0090663041,The Cedars Home Care,247.35,06/12/2023
Delivery Units,Adults and Health,Other Agencies - Third Party P,0090663042,The Cedars Home Care,121.25,06/12/2023
Delivery Units,Adults and Health,Other Agencies - Third Party P,0090663043,Kosh Care Ltd,274.54,06/12/2023
Delivery Units,Adults and Health,Other Agencies - Third Party P,0090663044,Kosh Care Ltd,274.54,06/12/2023
Delivery Units,Adults and Health,Other Agencies - Third Party P,0090663045,Kosh Care Ltd,274.54,06/12/2023
Delivery Units,Adults and Health,Other Agencies - Third Party P,0090663046,Kosh Care Ltd,274.54,06/12/2023
Delivery Units,Adults and Health,Other Agencies - Third Party P,0090663061,Mayfair Homecare Ltd,"1,017.60",06/12/2023
Delivery Units,Adults and Health,Other Agencies - Third Party P,0090663062,Mayfair Homecare Ltd,653.19,06/12/2023
Delivery Units,Adults and Health,Other Agencies - Third Party P,0090663063,Mayfair Homecare Ltd,987.06,06/12/2023
Delivery Units,Adults and Health,Other Agencies - Third Party P,0090663064,Mayfair Homecare Ltd,"1,075.90",06/12/2023
Delivery Units,Adults and Health,Other Agencies - Third Party P,0090663065,Mayfair Homecare Ltd,694.30,06/12/2023
Delivery Units,Adults and Health,Other Agencies - Third Party P,0090663097,Evergreen Homecare Service Ltd,743.82,07/12/2023
Delivery Units,Adults and Health,Other Agencies - Third Party P,0090663098,Evergreen Homecare Service Ltd,"1,062.60",07/12/2023
Delivery Units,Adults and Health,Other Agencies - Third Party P,0090663099,Evergreen Homecare Service Ltd,561.66,07/12/2023
Delivery Units,Adults and Health,Other Agencies - Third Party P,0090663101,Evergreen Homecare Service Ltd,141.68,07/12/2023
Delivery Units,Adults and Health,Other Agencies - Third Party P,0090663102,Evergreen Homecare Service Ltd,106.26,07/12/2023
Delivery Units,Adults and Health,Other Agencies - Third Party P,0090663103,Evergreen Homecare Service Ltd,70.84,07/12/2023
Delivery Units,Adults and Health,Other Agencies - Third Party P,0090663105,Evergreen Homecare Service Ltd,389.62,07/12/2023
Delivery Units,Adults and Health,Other Agencies - Third Party P,0090663106,Evergreen Homecare Service Ltd,465.52,07/12/2023
Delivery Units,Adults and Health,Other Agencies - Third Party P,0090663107,Evergreen Homecare Service Ltd,247.94,07/12/2023
Delivery Units,Adults and Health,Other Agencies - Third Party P,0090663108,Evergreen Homecare Service Ltd,"1,283.38",07/12/2023
Delivery Units,Adults and Health,Other Agencies - Third Party P,0090663110,Evergreen Homecare Service Ltd,"1,283.38",07/12/2023
Delivery Units,Adults and Health,Other Agencies - Third Party P,0090663113,Evergreen Homecare Service Ltd,"1,673.00",07/12/2023
Delivery Units,Adults and Health,Other Agencies - Third Party P,0090663114,Evergreen Homecare Service Ltd,"1,283.38",07/12/2023
Delivery Units,Adults and Health,Other Agencies - Third Party P,0090663115,Evergreen Homecare Service Ltd,500.94,07/12/2023
Delivery Units,Adults and Health,Other Agencies - Third Party P,0090663117,Evergreen Homecare Service Ltd,"1,283.38",07/12/2023
Delivery Units,Adults and Health,Other Agencies - Third Party P,0090663119,Evergreen Homecare Service Ltd,141.68,07/12/2023
Delivery Units,Adults and Health,Other Agencies - Third Party P,0090663120,Evergreen Homecare Service Ltd,743.82,07/12/2023
Delivery Units,Adults and Health,Other Agencies - Third Party P,0090663121,Evergreen Homecare Service Ltd,"1,062.60",07/12/2023
Delivery Units,Adults and Health,Other Agencies - Third Party P,0090663122,Evergreen Homecare Service Ltd,561.66,07/12/2023
Delivery Units,Adults and Health,Other Agencies - Third Party P,0090663124,Evergreen Homecare Service Ltd,141.68,07/12/2023
Delivery Units,Adults and Health,Other Agencies - Third Party P,0090663125,Evergreen Homecare Service Ltd,106.26,07/12/2023
Delivery Units,Adults and Health,Other Agencies - Third Party P,0090663126,Evergreen Homecare Service Ltd,70.84,07/12/2023
Delivery Units,Adults and Health,Other Agencies - Third Party P,0090663128,Evergreen Homecare Service Ltd,389.62,07/12/2023
Delivery Units,Adults and Health,Other Agencies - Third Party P,0090663129,Evergreen Homecare Service Ltd,465.52,07/12/2023
Delivery Units,Adults and Health,Other Agencies - Third Party P,0090663130,Evergreen Homecare Service Ltd,247.94,07/12/2023
Delivery Units,Adults and Health,Other Agencies - Third Party P,0090663131,Evergreen Homecare Service Ltd,"1,283.38",07/12/2023
Delivery Units,Adults and Health,Other Agencies - Third Party P,0090663133,Evergreen Homecare Service Ltd,"1,283.38",07/12/2023
Delivery Units,Adults and Health,Other Agencies - Third Party P,0090663135,Evergreen Homecare Service Ltd,"1,673.00",07/12/2023
Delivery Units,Adults and Health,Other Agencies - Third Party P,0090663136,Evergreen Homecare Service Ltd,"1,283.38",07/12/2023
Delivery Units,Adults and Health,Other Agencies - Third Party P,0090663137,Evergreen Homecare Service Ltd,500.94,07/12/2023
Delivery Units,Adults and Health,Other Agencies - Third Party P,0090663139,Evergreen Homecare Service Ltd,"1,283.38",07/12/2023
Delivery Units,Adults and Health,Other Agencies - Third Party P,0090663141,Evergreen Homecare Service Ltd,141.68,07/12/2023
Delivery Units,Adults and Health,Other Agencies - Third Party P,0090663142,Evergreen Homecare Service Ltd,743.82,07/12/2023
Delivery Units,Adults and Health,Other Agencies - Third Party P,0090663143,Evergreen Homecare Service Ltd,"1,062.60",07/12/2023
Delivery Units,Adults and Health,Other Agencies - Third Party P,0090663144,Evergreen Homecare Service Ltd,561.66,07/12/2023
Delivery Units,Adults and Health,Other Agencies - Third Party P,0090663146,Evergreen Homecare Service Ltd,141.68,07/12/2023
Delivery Units,Adults and Health,Other Agencies - Third Party P,0090663147,Evergreen Homecare Service Ltd,106.26,07/12/2023
Delivery Units,Adults and Health,Other Agencies - Third Party P,0090663148,Evergreen Homecare Service Ltd,70.84,07/12/2023
Delivery Units,Adults and Health,Other Agencies - Third Party P,0090663150,Evergreen Homecare Service Ltd,389.62,07/12/2023
Delivery Units,Adults and Health,Other Agencies - Third Party P,0090663151,Evergreen Homecare Service Ltd,465.52,07/12/2023
Delivery Units,Adults and Health,Other Agencies - Third Party P,0090663152,Evergreen Homecare Service Ltd,247.94,07/12/2023
Delivery Units,Adults and Health,Other Agencies - Third Party P,0090663153,Evergreen Homecare Service Ltd,"1,283.38",07/12/2023
Delivery Units,Adults and Health,Other Agencies - Third Party P,0090663155,Evergreen Homecare Service Ltd,"1,283.38",07/12/2023
Delivery Units,Adults and Health,Other Agencies - Third Party P,0090663157,Evergreen Homecare Service Ltd,"1,673.00",07/12/2023
Delivery Units,Adults and Health,Other Agencies - Third Party P,0090663158,Evergreen Homecare Service Ltd,"1,283.38",07/12/2023
Delivery Units,Adults and Health,Other Agencies - Third Party P,0090663159,Evergreen Homecare Service Ltd,500.94,07/12/2023
Delivery Units,Adults and Health,Other Agencies - Third Party P,0090663161,Evergreen Homecare Service Ltd,"1,283.38",07/12/2023
Delivery Units,Adults and Health,Other Agencies - Third Party P,0090663163,Evergreen Homecare Service Ltd,141.68,07/12/2023
Delivery Units,Adults and Health,Other Agencies - Third Party P,0090663164,Evergreen Homecare Service Ltd,743.82,07/12/2023
Delivery Units,Adults and Health,Other Agencies - Third Party P,0090663165,Evergreen Homecare Service Ltd,"1,062.60",07/12/2023
Delivery Units,Adults and Health,Other Agencies - Third Party P,0090663166,Evergreen Homecare Service Ltd,561.66,07/12/2023
Delivery Units,Adults and Health,Other Agencies - Third Party P,0090663168,Evergreen Homecare Service Ltd,141.68,07/12/2023
Delivery Units,Adults and Health,Other Agencies - Third Party P,0090663169,Evergreen Homecare Service Ltd,106.26,07/12/2023
Delivery Units,Adults and Health,Other Agencies - Third Party P,0090663170,Evergreen Homecare Service Ltd,70.84,07/12/2023
Delivery Units,Adults and Health,Other Agencies - Third Party P,0090663172,Evergreen Homecare Service Ltd,389.62,07/12/2023
Delivery Units,Adults and Health,Other Agencies - Third Party P,0090663173,Evergreen Homecare Service Ltd,465.52,07/12/2023
Delivery Units,Adults and Health,Other Agencies - Third Party P,0090663174,Evergreen Homecare Service Ltd,247.94,07/12/2023
Delivery Units,Adults and Health,Other Agencies - Third Party P,0090663175,Evergreen Homecare Service Ltd,"1,283.38",07/12/2023
Delivery Units,Adults and Health,Other Agencies - Third Party P,0090663177,Evergreen Homecare Service Ltd,"1,283.38",07/12/2023
Delivery Units,Adults and Health,Other Agencies - Third Party P,0090663179,Evergreen Homecare Service Ltd,"1,673.00",07/12/2023
Delivery Units,Adults and Health,Other Agencies - Third Party P,0090663180,Evergreen Homecare Service Ltd,"1,283.38",07/12/2023
Delivery Units,Adults and Health,Other Agencies - Third Party P,0090663181,Evergreen Homecare Service Ltd,500.94,07/12/2023
Delivery Units,Adults and Health,Other Agencies - Third Party P,0090663183,Evergreen Homecare Service Ltd,"1,283.38",07/12/2023
Delivery Units,Adults and Health,Other Agencies - Third Party P,0090663185,Evergreen Homecare Service Ltd,141.68,07/12/2023
Delivery Units,Adults and Health,Other Agencies - Third Party P,0090663190,Homecare Alliance Ltd,"2,913.09",07/12/2023
Delivery Units,Adults and Health,Other Agencies - Third Party P,0090663191,Circle Care Ltd,"1,156.68",07/12/2023
Delivery Units,Adults and Health,Other Agencies - Third Party P,0090663192,Navarros Care Ltd,"1,549.88",07/12/2023
Delivery Units,Adults and Health,Other Agencies - Third Party P,0090663420,Exceptional Care at Home Ltd,455.70,07/12/2023
Delivery Units,Adults and Health,Other Agencies - Third Party P,0090663422,Exceptional Care at Home Ltd,117.60,07/12/2023
Delivery Units,Adults and Health,Other Agencies - Third Party P,0090663423,Exceptional Care at Home Ltd,313.60,07/12/2023
Delivery Units,Adults and Health,Other Agencies - Third Party P,0090663424,Exceptional Care at Home Ltd,240.10,07/12/2023
Delivery Units,Adults and Health,Other Agencies - Third Party P,0090663425,Exceptional Care at Home Ltd,240.10,07/12/2023
Delivery Units,Adults and Health,Other Agencies - Third Party P,0090663426,Exceptional Care at Home Ltd,235.20,07/12/2023
Delivery Units,Adults and Health,Other Agencies - Third Party P,0090663427,Exceptional Care at Home Ltd,245.00,07/12/2023
Delivery Units,Adults and Health,Other Agencies - Third Party P,0090663428,Exceptional Care at Home Ltd,284.20,07/12/2023
Delivery Units,Adults and Health,Other Agencies - Third Party P,0090663429,Exceptional Care at Home Ltd,548.80,07/12/2023
Delivery Units,Adults and Health,Other Agencies - Third Party P,0090663430,Exceptional Care at Home Ltd,102.90,07/12/2023
Delivery Units,Adults and Health,Other Agencies - Third Party P,0090663431,Exceptional Care at Home Ltd,357.70,07/12/2023
Delivery Units,Adults and Health,Other Agencies - Third Party P,0090663432,Exceptional Care at Home Ltd,377.30,07/12/2023
Delivery Units,Adults and Health,Other Agencies - Third Party P,0090663433,Exceptional Care at Home Ltd,347.90,07/12/2023
Delivery Units,Adults and Health,Other Agencies - Third Party P,0090663434,Exceptional Care at Home Ltd,220.50,07/12/2023
Delivery Units,Adults and Health,Other Agencies - Third Party P,0090663435,Exceptional Care at Home Ltd,627.20,07/12/2023
Delivery Units,Adults and Health,Other Agencies - Third Party P,0090663437,Exceptional Care at Home Ltd,343.00,07/12/2023
Delivery Units,Adults and Health,Other Agencies - Third Party P,0090663438,Exceptional Care at Home Ltd,137.20,07/12/2023
Delivery Units,Adults and Health,Other Agencies - Third Party P,0090663439,Exceptional Care at Home Ltd,891.80,07/12/2023
Delivery Units,Adults and Health,Other Agencies - Third Party P,0090663440,Exceptional Care at Home Ltd,465.50,07/12/2023
Delivery Units,Adults and Health,Other Agencies - Third Party P,0090663441,Exceptional Care at Home Ltd,68.60,07/12/2023
Delivery Units,Adults and Health,Other Agencies - Third Party P,0090663442,Exceptional Care at Home Ltd,"1,061.01",07/12/2023
Delivery Units,Adults and Health,Other Agencies - Third Party P,0090663443,Exceptional Care at Home Ltd,102.90,07/12/2023
Delivery Units,Adults and Health,Other Agencies - Third Party P,0090663444,Exceptional Care at Home Ltd,205.80,07/12/2023
Delivery Units,Adults and Health,Other Agencies - Third Party P,0090663445,Exceptional Care at Home Ltd,274.40,07/12/2023
Delivery Units,Adults and Health,Other Agencies - Third Party P,0090663446,Exceptional Care at Home Ltd,396.90,07/12/2023
Delivery Units,Adults and Health,Other Agencies - Third Party P,0090663447,Exceptional Care at Home Ltd,754.60,07/12/2023
Delivery Units,Adults and Health,Other Agencies - Third Party P,0090663448,Exceptional Care at Home Ltd,323.40,07/12/2023
Delivery Units,Adults and Health,Other Agencies - Third Party P,0090663449,Exceptional Care at Home Ltd,411.60,07/12/2023
Delivery Units,Adults and Health,Other Agencies - Third Party P,0090663450,Exceptional Care at Home Ltd,240.10,07/12/2023
Delivery Units,Adults and Health,Other Agencies - Third Party P,0090663451,Exceptional Care at Home Ltd,509.60,07/12/2023
Delivery Units,Adults and Health,Other Agencies - Third Party P,0090663453,Exceptional Care at Home Ltd,362.60,07/12/2023
Delivery Units,Adults and Health,Other Agencies - Third Party P,0090663454,Exceptional Care at Home Ltd,568.40,07/12/2023
Delivery Units,Adults and Health,Other Agencies - Third Party P,0090663455,Exceptional Care at Home Ltd,411.60,07/12/2023
Delivery Units,Adults and Health,Other Agencies - Third Party P,0090663456,Exceptional Care at Home Ltd,620.67,07/12/2023
Delivery Units,Adults and Health,Other Agencies - Third Party P,0090663457,Exceptional Care at Home Ltd,98.00,07/12/2023
Delivery Units,Adults and Health,Other Agencies - Third Party P,0090663458,Exceptional Care at Home Ltd,512.21,07/12/2023
Delivery Units,Adults and Health,Other Agencies - Third Party P,0090663459,Exceptional Care at Home Ltd,200.90,07/12/2023
Delivery Units,Adults and Health,Other Agencies - Third Party P,0090663460,Exceptional Care at Home Ltd,308.70,07/12/2023
Delivery Units,Adults and Health,Other Agencies - Third Party P,0090663462,Exceptional Care at Home Ltd,240.10,07/12/2023
Delivery Units,Adults and Health,Other Agencies - Third Party P,0090663463,Exceptional Care at Home Ltd,44.10,07/12/2023
Delivery Units,Adults and Health,Other Agencies - Third Party P,0090663464,Exceptional Care at Home Ltd,240.10,07/12/2023
Delivery Units,Adults and Health,Other Agencies - Third Party P,0090663465,Exceptional Care at Home Ltd,259.70,07/12/2023
Delivery Units,Adults and Health,Other Agencies - Third Party P,0090663466,Exceptional Care at Home Ltd,210.70,07/12/2023
Delivery Units,Adults and Health,Other Agencies - Third Party P,0090663467,Exceptional Care at Home Ltd,205.80,07/12/2023
Delivery Units,Adults and Health,Other Agencies - Third Party P,0090663468,Exceptional Care at Home Ltd,88.20,07/12/2023
Delivery Units,Adults and Health,Other Agencies - Third Party P,0090663469,Exceptional Care at Home Ltd,274.40,07/12/2023
Delivery Units,Adults and Health,Other Agencies - Third Party P,0090663470,Exceptional Care at Home Ltd,308.70,07/12/2023
Delivery Units,Adults and Health,Other Agencies - Third Party P,0090663472,Exceptional Care at Home Ltd,"1,029.00",07/12/2023
Delivery Units,Adults and Health,Other Agencies - Third Party P,0090663473,Exceptional Care at Home Ltd,891.80,07/12/2023
Delivery Units,Adults and Health,Other Agencies - Third Party P,0090663474,Exceptional Care at Home Ltd,651.70,07/12/2023
Delivery Units,Adults and Health,Other Agencies - Third Party P,0090663477,Exceptional Care at Home Ltd,308.70,07/12/2023
Delivery Units,Adults and Health,Other Agencies - Third Party P,0090663478,Exceptional Care at Home Ltd,583.10,07/12/2023
Delivery Units,Adults and Health,Other Agencies - Third Party P,0090663479,Exceptional Care at Home Ltd,240.10,07/12/2023
Delivery Units,Adults and Health,Other Agencies - Third Party P,0090663480,Exceptional Care at Home Ltd,308.70,07/12/2023
Delivery Units,Adults and Health,Other Agencies - Third Party P,0090663481,Exceptional Care at Home Ltd,725.20,07/12/2023
Delivery Units,Adults and Health,Other Agencies - Third Party P,0090663482,Exceptional Care at Home Ltd,240.10,07/12/2023
Delivery Units,Adults and Health,Other Agencies - Third Party P,0090663484,Exceptional Care at Home Ltd,102.90,07/12/2023
Delivery Units,Adults and Health,Other Agencies - Third Party P,0090663485,Exceptional Care at Home Ltd,617.40,07/12/2023
Delivery Units,Adults and Health,Other Agencies - Third Party P,0090663486,Exceptional Care at Home Ltd,308.70,07/12/2023
Delivery Units,Adults and Health,Other Agencies - Third Party P,0090663490,Exceptional Care at Home Ltd,377.30,07/12/2023
Delivery Units,Adults and Health,Other Agencies - Third Party P,0090663491,Exceptional Care at Home Ltd,171.50,07/12/2023
Delivery Units,Adults and Health,Other Agencies - Third Party P,0090663492,Exceptional Care at Home Ltd,535.73,07/12/2023
Delivery Units,Adults and Health,Other Agencies - Third Party P,0090663493,Exceptional Care at Home Ltd,71.87,07/12/2023
Delivery Units,Adults and Health,Other Agencies - Third Party P,0090663494,Exceptional Care at Home Ltd,891.80,07/12/2023
Delivery Units,Adults and Health,Other Agencies - Third Party P,0090663496,Exceptional Care at Home Ltd,343.00,07/12/2023
Delivery Units,Adults and Health,Other Agencies - Third Party P,0090663497,Exceptional Care at Home Ltd,823.20,07/12/2023
Delivery Units,Adults and Health,Other Agencies - Third Party P,0090663498,Exceptional Care at Home Ltd,132.30,07/12/2023
Delivery Units,Adults and Health,Other Agencies - Third Party P,0090663499,Exceptional Care at Home Ltd,205.80,07/12/2023
Delivery Units,Adults and Health,Other Agencies - Third Party P,0090663500,Exceptional Care at Home Ltd,343.00,07/12/2023
Delivery Units,Adults and Health,Other Agencies - Third Party P,0090663501,Exceptional Care at Home Ltd,411.60,07/12/2023
Delivery Units,Adults and Health,Other Agencies - Third Party P,0090663505,Exceptional Care at Home Ltd,102.90,07/12/2023
Delivery Units,Adults and Health,Other Agencies - Third Party P,0090663507,Exceptional Care at Home Ltd,823.20,07/12/2023
Delivery Units,Adults and Health,Other Agencies - Third Party P,0090663522,Exceptional Care at Home Ltd,"1,300.00",07/12/2023
Delivery Units,Adults and Health,Other Agencies - Third Party P,0090663533,Exceptional Care at Home Ltd,617.40,07/12/2023
Delivery Units,Adults and Health,Other Agencies - Third Party P,0090663534,Exceptional Care at Home Ltd,102.90,07/12/2023
Delivery Units,Adults and Health,Other Agencies - Third Party P,0090663540,Exceptional Care at Home Ltd,617.40,07/12/2023
Delivery Units,Adults and Health,Other Agencies - Third Party P,0090663549,Exceptional Care at Home Ltd,754.60,07/12/2023
Delivery Units,Adults and Health,Other Agencies - Third Party P,0090663550,Exceptional Care at Home Ltd,156.80,07/12/2023
Delivery Units,Adults and Health,Other Agencies - Third Party P,0090663551,Exceptional Care at Home Ltd,377.30,07/12/2023
Delivery Units,Adults and Health,Other Agencies - Third Party P,0090663552,Exceptional Care at Home Ltd,455.70,07/12/2023
Delivery Units,Adults and Health,Other Agencies - Third Party P,0090663554,Exceptional Care at Home Ltd,274.40,07/12/2023
Delivery Units,Adults and Health,Other Agencies - Third Party P,0090663555,Exceptional Care at Home Ltd,313.60,07/12/2023
Delivery Units,Adults and Health,Other Agencies - Third Party P,0090663556,Exceptional Care at Home Ltd,240.10,07/12/2023
Delivery Units,Adults and Health,Other Agencies - Third Party P,0090663557,Exceptional Care at Home Ltd,240.10,07/12/2023
Delivery Units,Adults and Health,Other Agencies - Third Party P,0090663558,Exceptional Care at Home Ltd,235.20,07/12/2023
Delivery Units,Adults and Health,Other Agencies - Third Party P,0090663559,Exceptional Care at Home Ltd,245.00,07/12/2023
Delivery Units,Adults and Health,Other Agencies - Third Party P,0090663560,Exceptional Care at Home Ltd,284.20,07/12/2023
Delivery Units,Adults and Health,Other Agencies - Third Party P,0090663561,Exceptional Care at Home Ltd,548.80,07/12/2023
Delivery Units,Adults and Health,Other Agencies - Third Party P,0090663562,Exceptional Care at Home Ltd,102.90,07/12/2023
Delivery Units,Adults and Health,Other Agencies - Third Party P,0090663563,Exceptional Care at Home Ltd,338.10,07/12/2023
Delivery Units,Adults and Health,Other Agencies - Third Party P,0090663564,Exceptional Care at Home Ltd,377.30,07/12/2023
Delivery Units,Adults and Health,Other Agencies - Third Party P,0090663565,Exceptional Care at Home Ltd,347.90,07/12/2023
Delivery Units,Adults and Health,Other Agencies - Third Party P,0090663566,Exceptional Care at Home Ltd,220.50,07/12/2023
Delivery Units,Adults and Health,Other Agencies - Third Party P,0090663567,Exceptional Care at Home Ltd,627.20,07/12/2023
Delivery Units,Adults and Health,Other Agencies - Third Party P,0090663569,Exceptional Care at Home Ltd,343.00,07/12/2023
Delivery Units,Adults and Health,Other Agencies - Third Party P,0090663570,Exceptional Care at Home Ltd,137.20,07/12/2023
Delivery Units,Adults and Health,Other Agencies - Third Party P,0090663571,Exceptional Care at Home Ltd,891.80,07/12/2023
Delivery Units,Adults and Health,Other Agencies - Third Party P,0090663572,Exceptional Care at Home Ltd,465.50,07/12/2023
Delivery Units,Adults and Health,Other Agencies - Third Party P,0090663573,Exceptional Care at Home Ltd,68.60,07/12/2023
Delivery Units,Adults and Health,Other Agencies - Third Party P,0090663574,Exceptional Care at Home Ltd,"1,061.01",07/12/2023
Delivery Units,Adults and Health,Other Agencies - Third Party P,0090663575,Exceptional Care at Home Ltd,102.90,07/12/2023
Delivery Units,Adults and Health,Other Agencies - Third Party P,0090663576,Exceptional Care at Home Ltd,205.80,07/12/2023
Delivery Units,Adults and Health,Other Agencies - Third Party P,0090663577,Exceptional Care at Home Ltd,274.40,07/12/2023
Delivery Units,Adults and Health,Other Agencies - Third Party P,0090663578,Exceptional Care at Home Ltd,396.90,07/12/2023
Delivery Units,Adults and Health,Other Agencies - Third Party P,0090663579,Exceptional Care at Home Ltd,754.60,07/12/2023
Delivery Units,Adults and Health,Other Agencies - Third Party P,0090663580,Exceptional Care at Home Ltd,323.40,07/12/2023
Delivery Units,Adults and Health,Other Agencies - Third Party P,0090663581,Exceptional Care at Home Ltd,392.00,07/12/2023
Delivery Units,Adults and Health,Other Agencies - Third Party P,0090663582,Exceptional Care at Home Ltd,240.10,07/12/2023
Delivery Units,Adults and Health,Other Agencies - Third Party P,0090663583,Exceptional Care at Home Ltd,509.60,07/12/2023
Delivery Units,Adults and Health,Other Agencies - Third Party P,0090663585,Exceptional Care at Home Ltd,362.60,07/12/2023
Delivery Units,Adults and Health,Other Agencies - Third Party P,0090663586,Exceptional Care at Home Ltd,480.20,07/12/2023
Delivery Units,Adults and Health,Other Agencies - Third Party P,0090663587,Exceptional Care at Home Ltd,411.60,07/12/2023
Delivery Units,Adults and Health,Other Agencies - Third Party P,0090663588,Exceptional Care at Home Ltd,617.40,07/12/2023
Delivery Units,Adults and Health,Other Agencies - Third Party P,0090663589,Exceptional Care at Home Ltd,98.00,07/12/2023
Delivery Units,Adults and Health,Other Agencies - Third Party P,0090663590,Exceptional Care at Home Ltd,512.21,07/12/2023
Delivery Units,Adults and Health,Other Agencies - Third Party P,0090663591,Exceptional Care at Home Ltd,200.90,07/12/2023
Delivery Units,Adults and Health,Other Agencies - Third Party P,0090663592,Exceptional Care at Home Ltd,308.70,07/12/2023
Delivery Units,Adults and Health,Other Agencies - Third Party P,0090663594,Exceptional Care at Home Ltd,240.10,07/12/2023
Delivery Units,Adults and Health,Other Agencies - Third Party P,0090663595,Exceptional Care at Home Ltd,44.10,07/12/2023
Delivery Units,Adults and Health,Other Agencies - Third Party P,0090663596,Exceptional Care at Home Ltd,240.10,07/12/2023
Delivery Units,Adults and Health,Other Agencies - Third Party P,0090663597,Exceptional Care at Home Ltd,259.70,07/12/2023
Delivery Units,Adults and Health,Other Agencies - Third Party P,0090663598,Exceptional Care at Home Ltd,210.70,07/12/2023
Delivery Units,Adults and Health,Other Agencies - Third Party P,0090663599,Exceptional Care at Home Ltd,205.80,07/12/2023
Delivery Units,Adults and Health,Other Agencies - Third Party P,0090663600,Exceptional Care at Home Ltd,88.20,07/12/2023
Delivery Units,Adults and Health,Other Agencies - Third Party P,0090663601,Exceptional Care at Home Ltd,274.40,07/12/2023
Delivery Units,Adults and Health,Other Agencies - Third Party P,0090663602,Exceptional Care at Home Ltd,308.70,07/12/2023
Delivery Units,Adults and Health,Other Agencies - Third Party P,0090663604,Exceptional Care at Home Ltd,"1,029.00",07/12/2023
Delivery Units,Adults and Health,Other Agencies - Third Party P,0090663605,Exceptional Care at Home Ltd,651.70,07/12/2023
Delivery Units,Adults and Health,Other Agencies - Third Party P,0090663608,Exceptional Care at Home Ltd,308.70,07/12/2023
Delivery Units,Adults and Health,Other Agencies - Third Party P,0090663609,Exceptional Care at Home Ltd,583.10,07/12/2023
Delivery Units,Adults and Health,Other Agencies - Third Party P,0090663610,Exceptional Care at Home Ltd,240.10,07/12/2023
Delivery Units,Adults and Health,Other Agencies - Third Party P,0090663611,Exceptional Care at Home Ltd,308.70,07/12/2023
Delivery Units,Adults and Health,Other Agencies - Third Party P,0090663612,Exceptional Care at Home Ltd,725.20,07/12/2023
Delivery Units,Adults and Health,Other Agencies - Third Party P,0090663613,Exceptional Care at Home Ltd,240.10,07/12/2023
Delivery Units,Adults and Health,Other Agencies - Third Party P,0090663615,Exceptional Care at Home Ltd,102.90,07/12/2023
Delivery Units,Adults and Health,Other Agencies - Third Party P,0090663616,Exceptional Care at Home Ltd,617.40,07/12/2023
Delivery Units,Adults and Health,Other Agencies - Third Party P,0090663617,Exceptional Care at Home Ltd,308.70,07/12/2023
Delivery Units,Adults and Health,Other Agencies - Third Party P,0090663621,Exceptional Care at Home Ltd,377.30,07/12/2023
Delivery Units,Adults and Health,Other Agencies - Third Party P,0090663622,Exceptional Care at Home Ltd,171.50,07/12/2023
Delivery Units,Adults and Health,Other Agencies - Third Party P,0090663623,Exceptional Care at Home Ltd,411.60,07/12/2023
Delivery Units,Adults and Health,Other Agencies - Third Party P,0090663624,Exceptional Care at Home Ltd,71.87,07/12/2023
Delivery Units,Adults and Health,Other Agencies - Third Party P,0090663625,Exceptional Care at Home Ltd,891.80,07/12/2023
